Workbook

Sheet Control
C30: Numerical value
C31: Suggested formula
C32: Probabilistic parameters
C33: Data specified elsewhere
C34: Suggested formula edited

Sheet Inert Restorati (hidden)
A1: SOURCE CONCENTRATIONS: Inert Restorati
A3: Source Data Options | B3: Source Type
A11: Target Standard
A13: Select which Quality Standard (defined on the Contaminants sheet) to apply
A14: Not Specified
A17: Source Geometry
A19: Inert_Restorati_Source_length | C19: m
A20: Inert_Restorati_Source_width | C20: m
A21: Inert_Restorati_Source_area | B21: =area_b -> 160618 | C21: m2
A22: Inert_Restorati_Source_thickness | B22: =thick_b -> 6.28 | C22: m
A23: Inert_Restorati_Source_volume | B23: =vol_b -> 417835.8075 | C23: m3
A26: General Source Properties
A28: Inert_Restorati_Source_field_capacity | B28: [-] | C28: 0.3
A29: Distribution | C29: constant
A30: Inert_Restorati_Source_field_capacity_param1
A31: Inert_Restorati_Source_field_capacity_param2
A32: Inert_Restorati_Source_field_capacity_param3
A35: Inert_Restorati_Source_porosity_total | B35: [-]
A36: Distribution | C36: constant
A37: Inert_Restorati_Source_porosity_total_param1
A38: Inert_Restorati_Source_porosity_total_param2
A39: Inert_Restorati_Source_porosity_total_param3
A42: Inert_Restorati_Source_porosity_water_filled | B42: [-]
A43: Distribution | C43: constant
A44: Inert_Restorati_Source_porosity_water_filled_param1
A45: Inert_Restorati_Source_porosity_water_filled_param2
A46: Inert_Restorati_Source_porosity_water_filled_param3
A49: Inert_Restorati_Source_porosity_air_filled | B49: [-] | C49: =Inert_Restorati_Source_porosity_total - Inert_Restorati_Source_porosity_water_filled -> 0
A50: Distribution | C50: constant
A51: Inert_Restorati_Source_porosity_air_filled_param1
A52: Inert_Restorati_Source_porosity_air_filled_param2
A53: Inert_Restorati_Source_porosity_air_filled_param3
A56: Inert_Restorati_Source_dry_bulk_density | B56: kg/m3
A57: Distribution | C57: constant
A58: Inert_Restorati_Source_dry_bulk_density_param1
A59: Inert_Restorati_Source_dry_bulk_density_param2
A60: Inert_Restorati_Source_dry_bulk_density_param3
A63: Inert_Restorati_Source_fraction_organic_carbon | B63: [-]
A64: Distribution | C64: constant
A65: Inert_Restorati_Source_fraction_organic_carbon_param1
A66: Inert_Restorati_Source_fraction_organic_carbon_param2
A67: Inert_Restorati_Source_fraction_organic_carbon_param3
A71: Source Contaminant Information
A73: Source determinand names | C73: =IF( ISTEXT( (Contaminants_Source_determinand_names Contaminants_Species1)), (Contaminants_Source_determinand_names Contaminants_Species1), "Undefined" ) -> Barium | D73: =IF( ISTEXT( (Contaminants_Source_determinand_names Contaminants_Species2)), (Contaminants_Source_determinand_names Contaminants_Species2), "Undefined" ) -> Copper | E73: =IF( ISTEXT( (Contaminants_Source_determinand_names Contaminants_Species3)), (Contaminants_Source_determinand_names Contaminants_Species3), "Undefined" ) -> Lead | F73: =IF( ISTEXT( (Contaminants_Source_determinand_names Contaminants_Species4)), (Contaminants_Source_determinand_names Contaminants_Species4), "Undefined" ) -> Total Chromium | G73: =IF( ISTEXT( (Contaminants_Source_determinand_names Contaminants_Species5)), (Contaminants_Source_determinand_names Contaminants_Species5), "Undefined" ) -> Cadmium | H73: =IF( ISTEXT( (Contaminants_Source_determinand_names Contaminants_Species6)), (Contaminants_Source_determinand_names Contaminants_Species6), "Undefined" ) -> Mercury | I73: =IF( ISTEXT( (Contaminants_Source_determinand_names Contaminants_Species7)), (Contaminants_Source_determinand_names Contaminants_Species7), "Undefined" ) -> Molybdenum | J73: =IF( ISTEXT( (Contaminants_Source_determinand_names Contaminants_Species8)), (Contaminants_Source_determinand_names Contaminants_Species8), "Undefined" ) -> Antimony
A75: Inert_Restorati_Pore_water_concentration | B75: mg/L | C75: 4 | D75: 0.6 | E75: 0.15 | F75: =User_ScreeningAssessment_VoidB!E6 -> 0.1 | G75: 0.02 | H75: =User_ScreeningAssessment_VoidB!E8 -> 0.002 | I75: =User_ScreeningAssessment_VoidB!E9 -> 0.2 | J75: 0.1
A76: Distribution | C76: constant | D76: constant | E76: constant | F76: constant | G76: constant | H76: constant | I76: constant | J76: constant
A77: Inert_Restorati_Pore_water_concentration_param1
A78: Inert_Restorati_Pore_water_concentration_param2
A79: Inert_Restorati_Pore_water_concentration_param3
A82: Inert_Restorati_Leaching_test_concentration | B82: mg/L
A83: Distribution | C83: constant | D83: constant | E83: constant | F83: constant | G83: constant | H83: constant | I83: constant | J83: constant
A84: Inert_Restorati_Leaching_test_concentration_param1
A85: Inert_Restorati_Leaching_test_concentration_param2
A86: Inert_Restorati_Leaching_test_concentration_param3
A89: Inert_Restorati_Soil_contaminant_concentration | B89: mg/kg | C89: 1 | D89: 4 | E89: 0.1 | F89: 0.6 | G89: 0.002 | H89: 0.2 | I89: 0.15 | J89: 0.1
A90: Distribution | C90: constant | D90: constant | E90: constant | F90: constant | G90: constant | H90: constant | I90: constant | J90: constant
A91: Inert_Restorati_Soil_contaminant_concentration_param1
A92: Inert_Restorati_Soil_contaminant_concentration_param2
A93: Inert_Restorati_Soil_contaminant_concentration_param3
A96: Inert_Restorati_Source_solid_water_partitioning_coefficient_Kd | B96: L/kg | C96: =(Contaminants_Organic_Carbon_Water_Partition_Coefficient_Koc Contaminants_Species1) * ( Inert_Restorati_Source_fraction_organic_carbon) -> 0 | D96: =(Contaminants_Organic_Carbon_Water_Partition_Coefficient_Koc Contaminants_Species2) * ( Inert_Restorati_Source_fraction_organic_carbon) -> 0 | E96: =(Contaminants_Organic_Carbon_Water_Partition_Coefficient_Koc Contaminants_Species3) * ( Inert_Restorati_Source_fraction_organic_carbon) -> 0 | F96: =(Contaminants_Organic_Carbon_Water_Partition_Coefficient_Koc Contaminants_Species4) * ( Inert_Restorati_Source_fraction_organic_carbon) -> 0 | G96: =(Contaminants_Organic_Carbon_Water_Partition_Coefficient_Koc Contaminants_Species5) * ( Inert_Restorati_Source_fraction_organic_carbon) -> 0 | H96: =(Contaminants_Organic_Carbon_Water_Partition_Coefficient_Koc Contaminants_Species6) * ( Inert_Restorati_Source_fraction_organic_carbon) -> 0 | I96: =(Contaminants_Organic_Carbon_Water_Partition_Coefficient_Koc Contaminants_Species7) * ( Inert_Restorati_Source_fraction_organic_carbon) -> 0 | J96: =(Contaminants_Organic_Carbon_Water_Partition_Coefficient_Koc Contaminants_Species8) * ( Inert_Restorati_Source_fraction_organic_carbon) -> 0
A97: Distribution | C97: constant | D97: constant | E97: constant | F97: constant | G97: constant | H97: constant | I97: constant | J97: constant
A98: Inert_Restorati_Source_solid_water_partitioning_coefficient_Kd_param1
A99: Inert_Restorati_Source_solid_water_partitioning_coefficient_Kd_param2
A100: Inert_Restorati_Source_solid_water_partitioning_coefficient_Kd_param3
A103: Inert_Restorati_Initial_inventory | B103: kg | C103: =0.001 * (Inert_Restorati_Pore_water_concentration) * (Inert_Restorati_Source_field_capacity) * (Inert_Restorati_Source_volume) -> 501.402969 | D103: 75.21044535 | E103: 18.80261134 | F103: 12.53507422 | G103: 2.507014845 | H103: 0.2507014845 | I103: 25.07014845 | J103: 12.53507422
A104: Distribution | C104: constant | D104: constant | E104: constant | F104: constant | G104: constant | H104: constant | I104: constant | J104: constant
A105: Inert_Restorati_Initial_inventory_param1
A106: Inert_Restorati_Initial_inventory_param2
A107: Inert_Restorati_Initial_inventory_param3
A110: Inert_Restorati_Kappa_slope_value_m | B110: kg/L
A111: Distribution | C111: constant | D111: constant | E111: constant | F111: constant | G111: constant | H111: constant | I111: constant | J111: constant
A112: Inert_Restorati_Kappa_slope_value_m_param1
A113: Inert_Restorati_Kappa_slope_value_m_param2
A114: Inert_Restorati_Kappa_slope_value_m_param3
A117: Inert_Restorati_Kappa_intercept_value_c | B117: kg/L
A118: Distribution | C118: constant | D118: constant | E118: constant | F118: constant | G118: constant | H118: constant | I118: constant | J118: constant
A119: Inert_Restorati_Kappa_intercept_value_c_param1
A120: Inert_Restorati_Kappa_intercept_value_c_param2
A121: Inert_Restorati_Kappa_intercept_value_c_param3
A124: Inert_Restorati_Kappa_Value | B124: kg/L | C124: =IF(AND(ISNUMBER(Inert_Restorati_Kappa_slope_value_m),ISNUMBER(Inert_Restorati_Kappa_intercept_value_c),ISNUMBER(Inert_Restorati_Input_concentration)), IF(Inert_Restorati_Input_concentration>0,MAX(0,Inert_Restorati_Kappa_slope_value_m * LN(1000 * Inert_Restorati_Input_concentration) + Inert_Restorati_Kappa_intercept_value_c),""),"Not-used") -> Not-used | D124: Not-used | E124: Not-used | F124: Not-used | G124: Not-used | H124: Not-used | I124: Not-used | J124: Not-used
A125: Distribution | C125: constant | D125: constant | E125: constant | F125: constant | G125: constant | H125: constant | I125: constant | J125: constant
A126: Inert_Restorati_Kappa_Value_param1
A127: Inert_Restorati_Kappa_Value_param2
A128: Inert_Restorati_Kappa_Value_param3
A131: Inert_Restorati_Input_concentration | B131: mg/L | C131: =(Inert_Restorati_Pore_water_concentration) -> 4 | D131: 0.6 | E131: 0.15 | F131: 0.1 | G131: 0.02 | H131: 0.002 | I131: 0.2 | J131: 0.1

Sheet Contaminants
A1: CONTAMINANT INFORMATION
D3: Species1 | E3: Species2 | F3: Species3 | G3: Species4 | H3: Species5 | I3: Species6 | J3: Species7 | K3: Species8
A4: Source determinand names | C4: 8 | D4: Barium | E4: Copper | F4: Lead | G4: Total Chromium | H4: Cadmium | I4: Mercury | J4: Molybdenum | K4: Antimony
A7: Receptor Target Concentrations
B8: Name | D8: Values in mg/L
A9: Quality Standard 1 | B9: EAL (GW) | D9: =User_ScreeningAssessment_VoidB!G4 -> 0.05 | E9: =User_ScreeningAssessment_VoidB!G7 -> 0.0042 | F9: =User_ScreeningAssessment_VoidB!G11 -> 2e-05 | G9: =User_ScreeningAssessment_VoidB!G6 -> 0.0005 | H9: =User_ScreeningAssessment_VoidB!G5 -> 0.000251 | I9: =User_ScreeningAssessment_VoidB!G8 -> 2e-05 | J9: =User_ScreeningAssessment_VoidB!G9 -> 0.001 | K9: =User_ScreeningAssessment_VoidB!G12 -> 0.001
A10: Quality Standard 2
A11: Quality Standard 3
A12: Quality Standard 4
B13: Not Specified
A15: Generic Contaminant Properties
A17: Contaminants_Solubility | B17: mg/L
A18: Distribution | D18: constant | E18: constant | F18: constant | G18: constant | H18: constant | I18: constant | J18: constant | K18: constant
A19: Contaminants_Solubility_param1
A20: Contaminants_Solubility_param2
A21: Contaminants_Solubility_param3
A24: Contaminants_Henrys_Law_Constant | B24: [-]
A25: Distribution | D25: constant | E25: constant | F25: constant | G25: constant | H25: constant | I25: constant | J25: constant | K25: constant
A26: Contaminants_Henrys_Law_Constant_param1
A27: Contaminants_Henrys_Law_Constant_param2
A28: Contaminants_Henrys_Law_Constant_param3
A31: Contaminants_Organic_Carbon_Water_Partition_Coefficient_Koc | B31: L/kg
A32: Distribution | D32: constant | E32: constant | F32: constant | G32: constant | H32: constant | I32: constant | J32: constant | K32: constant
A33: Contaminants_Organic_Carbon_Water_Partition_Coefficient_Koc_param1
A34: Contaminants_Organic_Carbon_Water_Partition_Coefficient_Koc_param2
A35: Contaminants_Organic_Carbon_Water_Partition_Coefficient_Koc_param3
A38: Contaminants_Free_Water_Diffusion_Coefficient | B38: m2/s | D38: =Free_Water_Diffusion_Coefficient -> 2e-09 | E38: 2e-09 | F38: 2e-09 | G38: 2e-09 | H38: 2e-09 | I38: 2e-09 | J38: 2e-09 | K38: 2e-09
A39: Distribution | D39: constant | E39: constant | F39: constant | G39: constant | H39: constant | I39: constant | J39: constant | K39: constant
A40: Contaminants_Free_Water_Diffusion_Coefficient_param1
A41: Contaminants_Free_Water_Diffusion_Coefficient_param2
A42: Contaminants_Free_Water_Diffusion_Coefficient_param3

Sheet Hydrogeology
A1: HYDROGEOLOGICAL UNITS
A3: Hydrogeological Units | C3: Attenution Laye | D3: Beenham Grange
A5: Hydrogeology_Unit_Thickness | B5: m | C5: 1 | D5: =thick_b -> 6.28
A6: Distribution | C6: constant | D6: constant | E6: constant | F6: constant | G6: constant | H6: constant | I6: constant | J6: constant | K6: constant | L6: constant | M6: constant | N6: constant | O6: constant | P6: constant | Q6: constant | R6: constant
A7: Hydrogeology_Unit_Thickness_param1
A8: Hydrogeology_Unit_Thickness_param2
A9: Hydrogeology_Unit_Thickness_param3
A12: Hydrogeology_Log_Hydraulic_Conductivity | B12: log(m/s)
A13: Distribution | C13: constant | D13: constant | E13: constant | F13: constant | G13: constant | H13: constant | I13: constant | J13: constant | K13: constant | L13: constant | M13: constant | N13: constant | O13: constant | P13: constant | Q13: constant | R13: constant
A14: Hydrogeology_Log_Hydraulic_Conductivity_param1
A15: Hydrogeology_Log_Hydraulic_Conductivity_param2
A16: Hydrogeology_Log_Hydraulic_Conductivity_param3
A19: Hydrogeology_Hydraulic_Conductivity | B19: m/s | C19: =AL_K -> 1e-07 | D19: =BGF_K -> 0.001412 | E19: =POWER(10, (Hydrogeology_Log_Hydraulic_Conductivity)) -> 1 | F19: 1 | G19: 1 | H19: 1 | I19: 1 | J19: 1 | K19: 1 | L19: 1 | M19: 1 | N19: 1 | O19: 1 | P19: 1 | Q19: 1 | R19: 1
A20: Distribution | C20: constant | D20: constant | E20: constant | F20: constant | G20: constant | H20: constant | I20: constant | J20: constant | K20: constant | L20: constant | M20: constant | N20: constant | O20: constant | P20: constant | Q20: constant | R20: constant
A21: Hydrogeology_Hydraulic_Conductivity_param1
A22: Hydrogeology_Hydraulic_Conductivity_param2
A23: Hydrogeology_Hydraulic_Conductivity_param3
A26: Hydrogeology_Head | B26: m
A27: Distribution | C27: constant | D27: constant | E27: constant | F27: constant | G27: constant | H27: constant | I27: constant | J27: constant | K27: constant | L27: constant | M27: constant | N27: constant | O27: constant | P27: constant | Q27: constant | R27: constant
A28: Hydrogeology_Head_param1
A29: Hydrogeology_Head_param2
A30: Hydrogeology_Head_param3
A33: Hydrogeology_Hydraulic_Gradient | B33: [-] | C33: =(maxele_b-gwele_b)/distancetoedge_b -> 0.01886666667 | D33: =BGF_hydraulic_gradient -> 0.003
A34: Distribution | C34: constant | D34: constant | E34: constant | F34: constant | G34: constant | H34: constant | I34: constant | J34: constant | K34: constant | L34: constant | M34: constant | N34: constant | O34: constant | P34: constant | Q34: constant | R34: constant
A35: Hydrogeology_Hydraulic_Gradient_param1
A36: Hydrogeology_Hydraulic_Gradient_param2
A37: Hydrogeology_Hydraulic_Gradient_param3
A40: Hydrogeology_Porosity | B40: [-] | C40: =AL_porosity -> 0.05 | D40: =BGF_porosity -> 0.2
A41: Distribution | C41: constant | D41: constant | E41: constant | F41: constant | G41: constant | H41: constant | I41: constant | J41: constant | K41: constant | L41: constant | M41: constant | N41: constant | O41: constant | P41: constant | Q41: constant | R41: constant
A42: Hydrogeology_Porosity_param1
A43: Hydrogeology_Porosity_param2
A44: Hydrogeology_Porosity_param3
A47: Hydrogeology_Velocity | B47: m/s | C47: =(Hydrogeology_Hydraulic_Conductivity) * (Hydrogeology_Hydraulic_Gradient) / (Hydrogeology_Porosity) -> 3.773333333e-08 | D47: 2.118e-05
A48: Distribution | C48: constant | D48: constant | E48: constant | F48: constant | G48: constant | H48: constant | I48: constant | J48: constant | K48: constant | L48: constant | M48: constant | N48: constant | O48: constant | P48: constant | Q48: constant | R48: constant
A49: Hydrogeology_Velocity_param1
A50: Hydrogeology_Velocity_param2
A51: Hydrogeology_Velocity_param3
A54: Hydrogeology_Tortuosity | B54: [-] | C54: =Tortuosity -> 5 | D54: 5 | E54: 5 | F54: 5 | G54: 5 | H54: 5 | I54: 5 | J54: 5 | K54: 5 | L54: 5 | M54: 5 | N54: 5 | O54: 5 | P54: 5 | Q54: 5 | R54: 5
A55: Distribution | C55: constant | D55: constant | E55: constant | F55: constant | G55: constant | H55: constant | I55: constant | J55: constant | K55: constant | L55: constant | M55: constant | N55: constant | O55: constant | P55: constant | Q55: constant | R55: constant
A56: Hydrogeology_Tortuosity_param1
A57: Hydrogeology_Tortuosity_param2
A58: Hydrogeology_Tortuosity_param3

Sheet Attenuation
A1: ATTENUATION PARAMETERS
A3: Hydrogeological Units | C3: Attenution Laye | D3: Beenham Grange
A5: General properties
A7: Attenuation_Dry_bulk_density | B7: kg/m3 | C7: =Attenuation_Layer_Bulk_Density -> 2000 | D7: =Beenham_Grange_Formation_Bulk_Density -> 1600
A8: Distribution | C8: constant | D8: constant | E8: constant | F8: constant | G8: constant | H8: constant | I8: constant | J8: constant | K8: constant | L8: constant | M8: constant | N8: constant | O8: constant | P8: constant | Q8: constant | R8: constant
A9: Attenuation_Dry_bulk_density_param1
A10: Attenuation_Dry_bulk_density_param2
A11: Attenuation_Dry_bulk_density_param3
A14: Attenuation_Fraction_organic_carbon | B14: [-]
A15: Distribution | C15: constant | D15: constant | E15: constant | F15: constant | G15: constant | H15: constant | I15: constant | J15: constant | K15: constant | L15: constant | M15: constant | N15: constant | O15: constant | P15: constant | Q15: constant | R15: constant
A16: Attenuation_Fraction_organic_carbon_param1
A17: Attenuation_Fraction_organic_carbon_param2
A18: Attenuation_Fraction_organic_carbon_param3
A22: Contaminant specific parameters
A24: =IF((Contaminants_Source_determinand_names Contaminants_Species1)=0,"Undefined",(Contaminants_Source_determinand_names Contaminants_Species1)) -> Barium
A26: Attenuation_Partition_Coefficient_Kd_Species_1 | B26: L/kg | C26: =AL_Kd_Ba -> 17 | D26: =BGF_Kd_Ba -> 17 | E26: =(Attenuation_Fraction_organic_carbon) * (Contaminants_Organic_Carbon_Water_Partition_Coefficient_Koc Contaminants_Species1) -> 0 | F26: =(Attenuation_Fraction_organic_carbon) * (Contaminants_Organic_Carbon_Water_Partition_Coefficient_Koc Contaminants_Species1) -> 0 | G26: =(Attenuation_Fraction_organic_carbon) * (Contaminants_Organic_Carbon_Water_Partition_Coefficient_Koc Contaminants_Species1) -> 0 | H26: =(Attenuation_Fraction_organic_carbon) * (Contaminants_Organic_Carbon_Water_Partition_Coefficient_Koc Contaminants_Species1) -> 0 | I26: =(Attenuation_Fraction_organic_carbon) * (Contaminants_Organic_Carbon_Water_Partition_Coefficient_Koc Contaminants_Species1) -> 0 | J26: =(Attenuation_Fraction_organic_carbon) * (Contaminants_Organic_Carbon_Water_Partition_Coefficient_Koc Contaminants_Species1) -> 0 | K26: =(Attenuation_Fraction_organic_carbon) * (Contaminants_Organic_Carbon_Water_Partition_Coefficient_Koc Contaminants_Species1) -> 0 | L26: =(Attenuation_Fraction_organic_carbon) * (Contaminants_Organic_Carbon_Water_Partition_Coefficient_Koc Contaminants_Species1) -> 0 | M26: =(Attenuation_Fraction_organic_carbon) * (Contaminants_Organic_Carbon_Water_Partition_Coefficient_Koc Contaminants_Species1) -> 0 | N26: =(Attenuation_Fraction_organic_carbon) * (Contaminants_Organic_Carbon_Water_Partition_Coefficient_Koc Contaminants_Species1) -> 0 | O26: =(Attenuation_Fraction_organic_carbon) * (Contaminants_Organic_Carbon_Water_Partition_Coefficient_Koc Contaminants_Species1) -> 0 | P26: =(Attenuation_Fraction_organic_carbon) * (Contaminants_Organic_Carbon_Water_Partition_Coefficient_Koc Contaminants_Species1) -> 0 | Q26: =(Attenuation_Fraction_organic_carbon) * (Contaminants_Organic_Carbon_Water_Partition_Coefficient_Koc Contaminants_Species1) -> 0 | R26: =(Attenuation_Fraction_organic_carbon) * (Contaminants_Organic_Carbon_Water_Partition_Coefficient_Koc Contaminants_Species1) -> 0
A27: Distribution | C27: constant | D27: constant | E27: constant | F27: constant | G27: constant | H27: constant | I27: constant | J27: constant | K27: constant | L27: constant | M27: constant | N27: constant | O27: constant | P27: constant | Q27: constant | R27: constant
A28: Attenuation_Partition_Coefficient_Kd_Species_1_param1
A29: Attenuation_Partition_Coefficient_Kd_Species_1_param2
A30: Attenuation_Partition_Coefficient_Kd_Species_1_param3
A33: Attenuation_Retardation_Species_1 | B33: [-] | C33: =1 + 0.001 * (Attenuation_Partition_Coefficient_Kd_Species_1) * (Attenuation_Dry_bulk_density) / (Hydrogeology_Porosity Hydrogeology!$C:$C) -> 681 | D33: =1 + 0.001 * (Attenuation_Partition_Coefficient_Kd_Species_1) * (Attenuation_Dry_bulk_density) / (Hydrogeology_Porosity Hydrogeology!$D:$D) -> 137 | E33: =1 + 0.001 * (Attenuation_Partition_Coefficient_Kd_Species_1) * (Attenuation_Dry_bulk_density) / (Hydrogeology_Porosity Hydrogeology!$E:$E) ->  | F33: =1 + 0.001 * (Attenuation_Partition_Coefficient_Kd_Species_1) * (Attenuation_Dry_bulk_density) / (Hydrogeology_Porosity Hydrogeology!$F:$F) ->  | G33: =1 + 0.001 * (Attenuation_Partition_Coefficient_Kd_Species_1) * (Attenuation_Dry_bulk_density) / (Hydrogeology_Porosity Hydrogeology!$G:$G) ->  | H33: =1 + 0.001 * (Attenuation_Partition_Coefficient_Kd_Species_1) * (Attenuation_Dry_bulk_density) / (Hydrogeology_Porosity Hydrogeology!$H:$H) ->  | I33: =1 + 0.001 * (Attenuation_Partition_Coefficient_Kd_Species_1) * (Attenuation_Dry_bulk_density) / (Hydrogeology_Porosity Hydrogeology!$I:$I) ->  | J33: =1 + 0.001 * (Attenuation_Partition_Coefficient_Kd_Species_1) * (Attenuation_Dry_bulk_density) / (Hydrogeology_Porosity Hydrogeology!$J:$J) ->  | K33: =1 + 0.001 * (Attenuation_Partition_Coefficient_Kd_Species_1) * (Attenuation_Dry_bulk_density) / (Hydrogeology_Porosity Hydrogeology!$K:$K) ->  | L33: =1 + 0.001 * (Attenuation_Partition_Coefficient_Kd_Species_1) * (Attenuation_Dry_bulk_density) / (Hydrogeology_Porosity Hydrogeology!$L:$L) ->  | M33: =1 + 0.001 * (Attenuation_Partition_Coefficient_Kd_Species_1) * (Attenuation_Dry_bulk_density) / (Hydrogeology_Porosity Hydrogeology!$M:$M) ->  | N33: =1 + 0.001 * (Attenuation_Partition_Coefficient_Kd_Species_1) * (Attenuation_Dry_bulk_density) / (Hydrogeology_Porosity Hydrogeology!$N:$N) ->  | O33: =1 + 0.001 * (Attenuation_Partition_Coefficient_Kd_Species_1) * (Attenuation_Dry_bulk_density) / (Hydrogeology_Porosity Hydrogeology!$O:$O) ->  | P33: =1 + 0.001 * (Attenuation_Partition_Coefficient_Kd_Species_1) * (Attenuation_Dry_bulk_density) / (Hydrogeology_Porosity Hydrogeology!$P:$P) ->  | Q33: =1 + 0.001 * (Attenuation_Partition_Coefficient_Kd_Species_1) * (Attenuation_Dry_bulk_density) / (Hydrogeology_Porosity Hydrogeology!$Q:$Q) ->  | R33: =1 + 0.001 * (Attenuation_Partition_Coefficient_Kd_Species_1) * (Attenuation_Dry_bulk_density) / (Hydrogeology_Porosity Hydrogeology!$R:$R) -> 
A34: Distribution | C34: constant | D34: constant | E34: constant | F34: constant | G34: constant | H34: constant | I34: constant | J34: constant | K34: constant | L34: constant | M34: constant | N34: constant | O34: constant | P34: constant | Q34: constant | R34: constant
A35: Attenuation_Retardation_Species_1_param1
A36: Attenuation_Retardation_Species_1_param2
A37: Attenuation_Retardation_Species_1_param3
A40: Attenuation_Half_Life_Species_1 | B40: days | C40: No Decay | D40: No Decay | E40: No Decay | F40: No Decay | G40: No Decay | H40: No Decay | I40: No Decay | J40: No Decay | K40: No Decay | L40: No Decay | M40: No Decay | N40: No Decay | O40: No Decay | P40: No Decay | Q40: No Decay | R40: No Decay
A41: Distribution | C41: constant | D41: constant | E41: constant | F41: constant | G41: constant | H41: constant | I41: constant | J41: constant | K41: constant | L41: constant | M41: constant | N41: constant | O41: constant | P41: constant | Q41: constant | R41: constant
A42: Attenuation_Half_Life_Species_1_param1
A43: Attenuation_Half_Life_Species_1_param2
A44: Attenuation_Half_Life_Species_1_param3
A47: Attenuation_Decay_Coefficient_Species_1 | B47: 1/s | C47: =IF((_xlfn.SINGLE(Attenuation_Half_Life_Species_1))<>"No Decay", LN(2) / ((_xlfn.SINGLE(Attenuation_Half_Life_Species_1)) *_xlfn.SINGLE( s_per_day)),0) -> 0 | D47: 0 | E47: 0 | F47: 0 | G47: 0 | H47: 0 | I47: 0 | J47: 0 | K47: 0 | L47: 0 | M47: 0 | N47: 0 | O47: 0 | P47: 0 | Q47: 0 | R47: 0
A48: Distribution | C48: constant | D48: constant | E48: constant | F48: constant | G48: constant | H48: constant | I48: constant | J48: constant | K48: constant | L48: constant | M48: constant | N48: constant | O48: constant | P48: constant | Q48: constant | R48: constant
A49: Attenuation_Decay_Coefficient_Species_1_param1
A50: Attenuation_Decay_Coefficient_Species_1_param2
A51: Attenuation_Decay_Coefficient_Species_1_param3
A54: =IF((Contaminants_Source_determinand_names Contaminants_Species2)=0,"Undefined",(Contaminants_Source_determinand_names Contaminants_Species2)) -> Copper
A56: Attenuation_Partition_Coefficient_Kd_Species_2 | B56: L/kg | C56: =AL_Kd_Cu -> 126.8 | D56: =BGF_Kd_Cu -> 295 | E56: =(Attenuation_Fraction_organic_carbon) * (Contaminants_Organic_Carbon_Water_Partition_Coefficient_Koc Contaminants_Species2) -> 0 | F56: =(Attenuation_Fraction_organic_carbon) * (Contaminants_Organic_Carbon_Water_Partition_Coefficient_Koc Contaminants_Species2) -> 0 | G56: =(Attenuation_Fraction_organic_carbon) * (Contaminants_Organic_Carbon_Water_Partition_Coefficient_Koc Contaminants_Species2) -> 0 | H56: =(Attenuation_Fraction_organic_carbon) * (Contaminants_Organic_Carbon_Water_Partition_Coefficient_Koc Contaminants_Species2) -> 0 | I56: =(Attenuation_Fraction_organic_carbon) * (Contaminants_Organic_Carbon_Water_Partition_Coefficient_Koc Contaminants_Species2) -> 0 | J56: =(Attenuation_Fraction_organic_carbon) * (Contaminants_Organic_Carbon_Water_Partition_Coefficient_Koc Contaminants_Species2) -> 0 | K56: =(Attenuation_Fraction_organic_carbon) * (Contaminants_Organic_Carbon_Water_Partition_Coefficient_Koc Contaminants_Species2) -> 0 | L56: =(Attenuation_Fraction_organic_carbon) * (Contaminants_Organic_Carbon_Water_Partition_Coefficient_Koc Contaminants_Species2) -> 0 | M56: =(Attenuation_Fraction_organic_carbon) * (Contaminants_Organic_Carbon_Water_Partition_Coefficient_Koc Contaminants_Species2) -> 0 | N56: =(Attenuation_Fraction_organic_carbon) * (Contaminants_Organic_Carbon_Water_Partition_Coefficient_Koc Contaminants_Species2) -> 0 | O56: =(Attenuation_Fraction_organic_carbon) * (Contaminants_Organic_Carbon_Water_Partition_Coefficient_Koc Contaminants_Species2) -> 0 | P56: =(Attenuation_Fraction_organic_carbon) * (Contaminants_Organic_Carbon_Water_Partition_Coefficient_Koc Contaminants_Species2) -> 0 | Q56: =(Attenuation_Fraction_organic_carbon) * (Contaminants_Organic_Carbon_Water_Partition_Coefficient_Koc Contaminants_Species2) -> 0 | R56: =(Attenuation_Fraction_organic_carbon) * (Contaminants_Organic_Carbon_Water_Partition_Coefficient_Koc Contaminants_Species2) -> 0
A57: Distribution | C57: constant | D57: constant | E57: constant | F57: constant | G57: constant | H57: constant | I57: constant | J57: constant | K57: constant | L57: constant | M57: constant | N57: constant | O57: constant | P57: constant | Q57: constant | R57: constant
A58: Attenuation_Partition_Coefficient_Kd_Species_2_param1
A59: Attenuation_Partition_Coefficient_Kd_Species_2_param2
A60: Attenuation_Partition_Coefficient_Kd_Species_2_param3
A63: Attenuation_Retardation_Species_2 | B63: [-] | C63: =1 + 0.001 * (Attenuation_Partition_Coefficient_Kd_Species_2) * (Attenuation_Dry_bulk_density) / (Hydrogeology_Porosity Hydrogeology!$C:$C) -> 5073 | D63: =1 + 0.001 * (Attenuation_Partition_Coefficient_Kd_Species_2) * (Attenuation_Dry_bulk_density) / (Hydrogeology_Porosity Hydrogeology!$D:$D) -> 2361 | E63: =1 + 0.001 * (Attenuation_Partition_Coefficient_Kd_Species_2) * (Attenuation_Dry_bulk_density) / (Hydrogeology_Porosity Hydrogeology!$E:$E) ->  | F63: =1 + 0.001 * (Attenuation_Partition_Coefficient_Kd_Species_2) * (Attenuation_Dry_bulk_density) / (Hydrogeology_Porosity Hydrogeology!$F:$F) ->  | G63: =1 + 0.001 * (Attenuation_Partition_Coefficient_Kd_Species_2) * (Attenuation_Dry_bulk_density) / (Hydrogeology_Porosity Hydrogeology!$G:$G) ->  | H63: =1 + 0.001 * (Attenuation_Partition_Coefficient_Kd_Species_2) * (Attenuation_Dry_bulk_density) / (Hydrogeology_Porosity Hydrogeology!$H:$H) ->  | I63: =1 + 0.001 * (Attenuation_Partition_Coefficient_Kd_Species_2) * (Attenuation_Dry_bulk_density) / (Hydrogeology_Porosity Hydrogeology!$I:$I) ->  | J63: =1 + 0.001 * (Attenuation_Partition_Coefficient_Kd_Species_2) * (Attenuation_Dry_bulk_density) / (Hydrogeology_Porosity Hydrogeology!$J:$J) ->  | K63: =1 + 0.001 * (Attenuation_Partition_Coefficient_Kd_Species_2) * (Attenuation_Dry_bulk_density) / (Hydrogeology_Porosity Hydrogeology!$K:$K) ->  | L63: =1 + 0.001 * (Attenuation_Partition_Coefficient_Kd_Species_2) * (Attenuation_Dry_bulk_density) / (Hydrogeology_Porosity Hydrogeology!$L:$L) ->  | M63: =1 + 0.001 * (Attenuation_Partition_Coefficient_Kd_Species_2) * (Attenuation_Dry_bulk_density) / (Hydrogeology_Porosity Hydrogeology!$M:$M) ->  | N63: =1 + 0.001 * (Attenuation_Partition_Coefficient_Kd_Species_2) * (Attenuation_Dry_bulk_density) / (Hydrogeology_Porosity Hydrogeology!$N:$N) ->  | O63: =1 + 0.001 * (Attenuation_Partition_Coefficient_Kd_Species_2) * (Attenuation_Dry_bulk_density) / (Hydrogeology_Porosity Hydrogeology!$O:$O) ->  | P63: =1 + 0.001 * (Attenuation_Partition_Coefficient_Kd_Species_2) * (Attenuation_Dry_bulk_density) / (Hydrogeology_Porosity Hydrogeology!$P:$P) ->  | Q63: =1 + 0.001 * (Attenuation_Partition_Coefficient_Kd_Species_2) * (Attenuation_Dry_bulk_density) / (Hydrogeology_Porosity Hydrogeology!$Q:$Q) ->  | R63: =1 + 0.001 * (Attenuation_Partition_Coefficient_Kd_Species_2) * (Attenuation_Dry_bulk_density) / (Hydrogeology_Porosity Hydrogeology!$R:$R) -> 
A64: Distribution | C64: constant | D64: constant | E64: constant | F64: constant | G64: constant | H64: constant | I64: constant | J64: constant | K64: constant | L64: constant | M64: constant | N64: constant | O64: constant | P64: constant | Q64: constant | R64: constant
A65: Attenuation_Retardation_Species_2_param1
A66: Attenuation_Retardation_Species_2_param2
A67: Attenuation_Retardation_Species_2_param3
A70: Attenuation_Half_Life_Species_2 | B70: days | C70: No Decay | D70: No Decay | E70: No Decay | F70: No Decay | G70: No Decay | H70: No Decay | I70: No Decay | J70: No Decay | K70: No Decay | L70: No Decay | M70: No Decay | N70: No Decay | O70: No Decay | P70: No Decay | Q70: No Decay | R70: No Decay
A71: Distribution | C71: constant | D71: constant | E71: constant | F71: constant | G71: constant | H71: constant | I71: constant | J71: constant | K71: constant | L71: constant | M71: constant | N71: constant | O71: constant | P71: constant | Q71: constant | R71: constant
A72: Attenuation_Half_Life_Species_2_param1
A73: Attenuation_Half_Life_Species_2_param2
A74: Attenuation_Half_Life_Species_2_param3
A77: Attenuation_Decay_Coefficient_Species_2 | B77: 1/s | C77: =IF((_xlfn.SINGLE(Attenuation_Half_Life_Species_2))<>"No Decay", LN(2) / ((_xlfn.SINGLE(Attenuation_Half_Life_Species_2)) *_xlfn.SINGLE( s_per_day)),0) -> 0 | D77: 0 | E77: 0 | F77: 0 | G77: 0 | H77: 0 | I77: 0 | J77: 0 | K77: 0 | L77: 0 | M77: 0 | N77: 0 | O77: 0 | P77: 0 | Q77: 0 | R77: 0
A78: Distribution | C78: constant | D78: constant | E78: constant | F78: constant | G78: constant | H78: constant | I78: constant | J78: constant | K78: constant | L78: constant | M78: constant | N78: constant | O78: constant | P78: constant | Q78: constant | R78: constant
A79: Attenuation_Decay_Coefficient_Species_2_param1
A80: Attenuation_Decay_Coefficient_Species_2_param2
A81: Attenuation_Decay_Coefficient_Species_2_param3
A84: =IF((Contaminants_Source_determinand_names Contaminants_Species3)=0,"Undefined",(Contaminants_Source_determinand_names Contaminants_Species3)) -> Lead
A86: Attenuation_Partition_Coefficient_Kd_Species_3 | B86: L/kg | C86: =AL_Kd_Pb -> 434.6 | D86: =BGF_Kd_Pb -> 270 | E86: =(Attenuation_Fraction_organic_carbon) * (Contaminants_Organic_Carbon_Water_Partition_Coefficient_Koc Contaminants_Species3) -> 0 | F86: =(Attenuation_Fraction_organic_carbon) * (Contaminants_Organic_Carbon_Water_Partition_Coefficient_Koc Contaminants_Species3) -> 0 | G86: =(Attenuation_Fraction_organic_carbon) * (Contaminants_Organic_Carbon_Water_Partition_Coefficient_Koc Contaminants_Species3) -> 0 | H86: =(Attenuation_Fraction_organic_carbon) * (Contaminants_Organic_Carbon_Water_Partition_Coefficient_Koc Contaminants_Species3) -> 0 | I86: =(Attenuation_Fraction_organic_carbon) * (Contaminants_Organic_Carbon_Water_Partition_Coefficient_Koc Contaminants_Species3) -> 0 | J86: =(Attenuation_Fraction_organic_carbon) * (Contaminants_Organic_Carbon_Water_Partition_Coefficient_Koc Contaminants_Species3) -> 0 | K86: =(Attenuation_Fraction_organic_carbon) * (Contaminants_Organic_Carbon_Water_Partition_Coefficient_Koc Contaminants_Species3) -> 0 | L86: =(Attenuation_Fraction_organic_carbon) * (Contaminants_Organic_Carbon_Water_Partition_Coefficient_Koc Contaminants_Species3) -> 0 | M86: =(Attenuation_Fraction_organic_carbon) * (Contaminants_Organic_Carbon_Water_Partition_Coefficient_Koc Contaminants_Species3) -> 0 | N86: =(Attenuation_Fraction_organic_carbon) * (Contaminants_Organic_Carbon_Water_Partition_Coefficient_Koc Contaminants_Species3) -> 0 | O86: =(Attenuation_Fraction_organic_carbon) * (Contaminants_Organic_Carbon_Water_Partition_Coefficient_Koc Contaminants_Species3) -> 0 | P86: =(Attenuation_Fraction_organic_carbon) * (Contaminants_Organic_Carbon_Water_Partition_Coefficient_Koc Contaminants_Species3) -> 0 | Q86: =(Attenuation_Fraction_organic_carbon) * (Contaminants_Organic_Carbon_Water_Partition_Coefficient_Koc Contaminants_Species3) -> 0 | R86: =(Attenuation_Fraction_organic_carbon) * (Contaminants_Organic_Carbon_Water_Partition_Coefficient_Koc Contaminants_Species3) -> 0
A87: Distribution | C87: constant | D87: constant | E87: constant | F87: constant | G87: constant | H87: constant | I87: constant | J87: constant | K87: constant | L87: constant | M87: constant | N87: constant | O87: constant | P87: constant | Q87: constant | R87: constant
A88: Attenuation_Partition_Coefficient_Kd_Species_3_param1
A89: Attenuation_Partition_Coefficient_Kd_Species_3_param2
A90: Attenuation_Partition_Coefficient_Kd_Species_3_param3
A93: Attenuation_Retardation_Species_3 | B93: [-] | C93: =1 + 0.001 * (Attenuation_Partition_Coefficient_Kd_Species_3) * (Attenuation_Dry_bulk_density) / (Hydrogeology_Porosity Hydrogeology!$C:$C) -> 17385 | D93: =1 + 0.001 * (Attenuation_Partition_Coefficient_Kd_Species_3) * (Attenuation_Dry_bulk_density) / (Hydrogeology_Porosity Hydrogeology!$D:$D) -> 2161 | E93: =1 + 0.001 * (Attenuation_Partition_Coefficient_Kd_Species_3) * (Attenuation_Dry_bulk_density) / (Hydrogeology_Porosity Hydrogeology!$E:$E) ->  | F93: =1 + 0.001 * (Attenuation_Partition_Coefficient_Kd_Species_3) * (Attenuation_Dry_bulk_density) / (Hydrogeology_Porosity Hydrogeology!$F:$F) ->  | G93: =1 + 0.001 * (Attenuation_Partition_Coefficient_Kd_Species_3) * (Attenuation_Dry_bulk_density) / (Hydrogeology_Porosity Hydrogeology!$G:$G) ->  | H93: =1 + 0.001 * (Attenuation_Partition_Coefficient_Kd_Species_3) * (Attenuation_Dry_bulk_density) / (Hydrogeology_Porosity Hydrogeology!$H:$H) ->  | I93: =1 + 0.001 * (Attenuation_Partition_Coefficient_Kd_Species_3) * (Attenuation_Dry_bulk_density) / (Hydrogeology_Porosity Hydrogeology!$I:$I) ->  | J93: =1 + 0.001 * (Attenuation_Partition_Coefficient_Kd_Species_3) * (Attenuation_Dry_bulk_density) / (Hydrogeology_Porosity Hydrogeology!$J:$J) ->  | K93: =1 + 0.001 * (Attenuation_Partition_Coefficient_Kd_Species_3) * (Attenuation_Dry_bulk_density) / (Hydrogeology_Porosity Hydrogeology!$K:$K) ->  | L93: =1 + 0.001 * (Attenuation_Partition_Coefficient_Kd_Species_3) * (Attenuation_Dry_bulk_density) / (Hydrogeology_Porosity Hydrogeology!$L:$L) ->  | M93: =1 + 0.001 * (Attenuation_Partition_Coefficient_Kd_Species_3) * (Attenuation_Dry_bulk_density) / (Hydrogeology_Porosity Hydrogeology!$M:$M) ->  | N93: =1 + 0.001 * (Attenuation_Partition_Coefficient_Kd_Species_3) * (Attenuation_Dry_bulk_density) / (Hydrogeology_Porosity Hydrogeology!$N:$N) ->  | O93: =1 + 0.001 * (Attenuation_Partition_Coefficient_Kd_Species_3) * (Attenuation_Dry_bulk_density) / (Hydrogeology_Porosity Hydrogeology!$O:$O) ->  | P93: =1 + 0.001 * (Attenuation_Partition_Coefficient_Kd_Species_3) * (Attenuation_Dry_bulk_density) / (Hydrogeology_Porosity Hydrogeology!$P:$P) ->  | Q93: =1 + 0.001 * (Attenuation_Partition_Coefficient_Kd_Species_3) * (Attenuation_Dry_bulk_density) / (Hydrogeology_Porosity Hydrogeology!$Q:$Q) ->  | R93: =1 + 0.001 * (Attenuation_Partition_Coefficient_Kd_Species_3) * (Attenuation_Dry_bulk_density) / (Hydrogeology_Porosity Hydrogeology!$R:$R) -> 
A94: Distribution | C94: constant | D94: constant | E94: constant | F94: constant | G94: constant | H94: constant | I94: constant | J94: constant | K94: constant | L94: constant | M94: constant | N94: constant | O94: constant | P94: constant | Q94: constant | R94: constant
A95: Attenuation_Retardation_Species_3_param1
A96: Attenuation_Retardation_Species_3_param2
A97: Attenuation_Retardation_Species_3_param3
A100: Attenuation_Half_Life_Species_3 | B100: days | C100: No Decay | D100: No Decay | E100: No Decay | F100: No Decay | G100: No Decay | H100: No Decay | I100: No Decay | J100: No Decay | K100: No Decay | L100: No Decay | M100: No Decay | N100: No Decay | O100: No Decay | P100: No Decay | Q100: No Decay | R100: No Decay
A101: Distribution | C101: constant | D101: constant | E101: constant | F101: constant | G101: constant | H101: constant | I101: constant | J101: constant | K101: constant | L101: constant | M101: constant | N101: constant | O101: constant | P101: constant | Q101: constant | R101: constant
A102: Attenuation_Half_Life_Species_3_param1
A103: Attenuation_Half_Life_Species_3_param2
A104: Attenuation_Half_Life_Species_3_param3
A107: Attenuation_Decay_Coefficient_Species_3 | B107: 1/s | C107: =IF((_xlfn.SINGLE(Attenuation_Half_Life_Species_3))<>"No Decay", LN(2) / ((_xlfn.SINGLE(Attenuation_Half_Life_Species_3)) *_xlfn.SINGLE( s_per_day)),0) -> 0 | D107: 0 | E107: 0 | F107: 0 | G107: 0 | H107: 0 | I107: 0 | J107: 0 | K107: 0 | L107: 0 | M107: 0 | N107: 0 | O107: 0 | P107: 0 | Q107: 0 | R107: 0
A108: Distribution | C108: constant | D108: constant | E108: constant | F108: constant | G108: constant | H108: constant | I108: constant | J108: constant | K108: constant | L108: constant | M108: constant | N108: constant | O108: constant | P108: constant | Q108: constant | R108: constant
A109: Attenuation_Decay_Coefficient_Species_3_param1
A110: Attenuation_Decay_Coefficient_Species_3_param2
A111: Attenuation_Decay_Coefficient_Species_3_param3
A114: =IF((Contaminants_Source_determinand_names Contaminants_Species4)=0,"Undefined",(Contaminants_Source_determinand_names Contaminants_Species4)) -> Total Chromium
A116: Attenuation_Partition_Coefficient_Kd_Species_4 | B116: L/kg | C116: =AL_Kd_Cr -> 966 | D116: =BGF_Kd_Cr -> 67 | E116: =(Attenuation_Fraction_organic_carbon) * (Contaminants_Organic_Carbon_Water_Partition_Coefficient_Koc Contaminants_Species4) -> 0 | F116: =(Attenuation_Fraction_organic_carbon) * (Contaminants_Organic_Carbon_Water_Partition_Coefficient_Koc Contaminants_Species4) -> 0 | G116: =(Attenuation_Fraction_organic_carbon) * (Contaminants_Organic_Carbon_Water_Partition_Coefficient_Koc Contaminants_Species4) -> 0 | H116: =(Attenuation_Fraction_organic_carbon) * (Contaminants_Organic_Carbon_Water_Partition_Coefficient_Koc Contaminants_Species4) -> 0 | I116: =(Attenuation_Fraction_organic_carbon) * (Contaminants_Organic_Carbon_Water_Partition_Coefficient_Koc Contaminants_Species4) -> 0 | J116: =(Attenuation_Fraction_organic_carbon) * (Contaminants_Organic_Carbon_Water_Partition_Coefficient_Koc Contaminants_Species4) -> 0 | K116: =(Attenuation_Fraction_organic_carbon) * (Contaminants_Organic_Carbon_Water_Partition_Coefficient_Koc Contaminants_Species4) -> 0 | L116: =(Attenuation_Fraction_organic_carbon) * (Contaminants_Organic_Carbon_Water_Partition_Coefficient_Koc Contaminants_Species4) -> 0 | M116: =(Attenuation_Fraction_organic_carbon) * (Contaminants_Organic_Carbon_Water_Partition_Coefficient_Koc Contaminants_Species4) -> 0 | N116: =(Attenuation_Fraction_organic_carbon) * (Contaminants_Organic_Carbon_Water_Partition_Coefficient_Koc Contaminants_Species4) -> 0 | O116: =(Attenuation_Fraction_organic_carbon) * (Contaminants_Organic_Carbon_Water_Partition_Coefficient_Koc Contaminants_Species4) -> 0 | P116: =(Attenuation_Fraction_organic_carbon) * (Contaminants_Organic_Carbon_Water_Partition_Coefficient_Koc Contaminants_Species4) -> 0 | Q116: =(Attenuation_Fraction_organic_carbon) * (Contaminants_Organic_Carbon_Water_Partition_Coefficient_Koc Contaminants_Species4) -> 0 | R116: =(Attenuation_Fraction_organic_carbon) * (Contaminants_Organic_Carbon_Water_Partition_Coefficient_Koc Contaminants_Species4) -> 0
A117: Distribution | C117: constant | D117: constant | E117: constant | F117: constant | G117: constant | H117: constant | I117: constant | J117: constant | K117: constant | L117: constant | M117: constant | N117: constant | O117: constant | P117: constant | Q117: constant | R117: constant
A118: Attenuation_Partition_Coefficient_Kd_Species_4_param1
A119: Attenuation_Partition_Coefficient_Kd_Species_4_param2
A120: Attenuation_Partition_Coefficient_Kd_Species_4_param3
A123: Attenuation_Retardation_Species_4 | B123: [-] | C123: =1 + 0.001 * (Attenuation_Partition_Coefficient_Kd_Species_4) * (Attenuation_Dry_bulk_density) / (Hydrogeology_Porosity Hydrogeology!$C:$C) -> 38641 | D123: =1 + 0.001 * (Attenuation_Partition_Coefficient_Kd_Species_4) * (Attenuation_Dry_bulk_density) / (Hydrogeology_Porosity Hydrogeology!$D:$D) -> 537 | E123: =1 + 0.001 * (Attenuation_Partition_Coefficient_Kd_Species_4) * (Attenuation_Dry_bulk_density) / (Hydrogeology_Porosity Hydrogeology!$E:$E) ->  | F123: =1 + 0.001 * (Attenuation_Partition_Coefficient_Kd_Species_4) * (Attenuation_Dry_bulk_density) / (Hydrogeology_Porosity Hydrogeology!$F:$F) ->  | G123: =1 + 0.001 * (Attenuation_Partition_Coefficient_Kd_Species_4) * (Attenuation_Dry_bulk_density) / (Hydrogeology_Porosity Hydrogeology!$G:$G) ->  | H123: =1 + 0.001 * (Attenuation_Partition_Coefficient_Kd_Species_4) * (Attenuation_Dry_bulk_density) / (Hydrogeology_Porosity Hydrogeology!$H:$H) ->  | I123: =1 + 0.001 * (Attenuation_Partition_Coefficient_Kd_Species_4) * (Attenuation_Dry_bulk_density) / (Hydrogeology_Porosity Hydrogeology!$I:$I) ->  | J123: =1 + 0.001 * (Attenuation_Partition_Coefficient_Kd_Species_4) * (Attenuation_Dry_bulk_density) / (Hydrogeology_Porosity Hydrogeology!$J:$J) ->  | K123: =1 + 0.001 * (Attenuation_Partition_Coefficient_Kd_Species_4) * (Attenuation_Dry_bulk_density) / (Hydrogeology_Porosity Hydrogeology!$K:$K) ->  | L123: =1 + 0.001 * (Attenuation_Partition_Coefficient_Kd_Species_4) * (Attenuation_Dry_bulk_density) / (Hydrogeology_Porosity Hydrogeology!$L:$L) ->  | M123: =1 + 0.001 * (Attenuation_Partition_Coefficient_Kd_Species_4) * (Attenuation_Dry_bulk_density) / (Hydrogeology_Porosity Hydrogeology!$M:$M) ->  | N123: =1 + 0.001 * (Attenuation_Partition_Coefficient_Kd_Species_4) * (Attenuation_Dry_bulk_density) / (Hydrogeology_Porosity Hydrogeology!$N:$N) ->  | O123: =1 + 0.001 * (Attenuation_Partition_Coefficient_Kd_Species_4) * (Attenuation_Dry_bulk_density) / (Hydrogeology_Porosity Hydrogeology!$O:$O) ->  | P123: =1 + 0.001 * (Attenuation_Partition_Coefficient_Kd_Species_4) * (Attenuation_Dry_bulk_density) / (Hydrogeology_Porosity Hydrogeology!$P:$P) ->  | Q123: =1 + 0.001 * (Attenuation_Partition_Coefficient_Kd_Species_4) * (Attenuation_Dry_bulk_density) / (Hydrogeology_Porosity Hydrogeology!$Q:$Q) ->  | R123: =1 + 0.001 * (Attenuation_Partition_Coefficient_Kd_Species_4) * (Attenuation_Dry_bulk_density) / (Hydrogeology_Porosity Hydrogeology!$R:$R) -> 
A124: Distribution | C124: constant | D124: constant | E124: constant | F124: constant | G124: constant | H124: constant | I124: constant | J124: constant | K124: constant | L124: constant | M124: constant | N124: constant | O124: constant | P124: constant | Q124: constant | R124: constant
A125: Attenuation_Retardation_Species_4_param1
A126: Attenuation_Retardation_Species_4_param2
A127: Attenuation_Retardation_Species_4_param3
A130: Attenuation_Half_Life_Species_4 | B130: days | C130: No Decay | D130: No Decay | E130: No Decay | F130: No Decay | G130: No Decay | H130: No Decay | I130: No Decay | J130: No Decay | K130: No Decay | L130: No Decay | M130: No Decay | N130: No Decay | O130: No Decay | P130: No Decay | Q130: No Decay | R130: No Decay
A131: Distribution | C131: constant | D131: constant | E131: constant | F131: constant | G131: constant | H131: constant | I131: constant | J131: constant | K131: constant | L131: constant | M131: constant | N131: constant | O131: constant | P131: constant | Q131: constant | R131: constant
A132: Attenuation_Half_Life_Species_4_param1
A133: Attenuation_Half_Life_Species_4_param2
A134: Attenuation_Half_Life_Species_4_param3
A137: Attenuation_Decay_Coefficient_Species_4 | B137: 1/s | C137: =IF((_xlfn.SINGLE(Attenuation_Half_Life_Species_4))<>"No Decay", LN(2) / ((_xlfn.SINGLE(Attenuation_Half_Life_Species_4)) *_xlfn.SINGLE( s_per_day)),0) -> 0 | D137: 0 | E137: 0 | F137: 0 | G137: 0 | H137: 0 | I137: 0 | J137: 0 | K137: 0 | L137: 0 | M137: 0 | N137: 0 | O137: 0 | P137: 0 | Q137: 0 | R137: 0
A138: Distribution | C138: constant | D138: constant | E138: constant | F138: constant | G138: constant | H138: constant | I138: constant | J138: constant | K138: constant | L138: constant | M138: constant | N138: constant | O138: constant | P138: constant | Q138: constant | R138: constant
A139: Attenuation_Decay_Coefficient_Species_4_param1
A140: Attenuation_Decay_Coefficient_Species_4_param2
A141: Attenuation_Decay_Coefficient_Species_4_param3
A144: =IF((Contaminants_Source_determinand_names Contaminants_Species5)=0,"Undefined",(Contaminants_Source_determinand_names Contaminants_Species5)) -> Cadmium
A146: Attenuation_Partition_Coefficient_Kd_Species_5 | B146: L/kg | C146: =AL_Kd_Cd -> 222 | D146: =BGF_Kd_Cd -> 74 | E146: =(Attenuation_Fraction_organic_carbon) * (Contaminants_Organic_Carbon_Water_Partition_Coefficient_Koc Contaminants_Species5) -> 0 | F146: =(Attenuation_Fraction_organic_carbon) * (Contaminants_Organic_Carbon_Water_Partition_Coefficient_Koc Contaminants_Species5) -> 0 | G146: =(Attenuation_Fraction_organic_carbon) * (Contaminants_Organic_Carbon_Water_Partition_Coefficient_Koc Contaminants_Species5) -> 0 | H146: =(Attenuation_Fraction_organic_carbon) * (Contaminants_Organic_Carbon_Water_Partition_Coefficient_Koc Contaminants_Species5) -> 0 | I146: =(Attenuation_Fraction_organic_carbon) * (Contaminants_Organic_Carbon_Water_Partition_Coefficient_Koc Contaminants_Species5) -> 0 | J146: =(Attenuation_Fraction_organic_carbon) * (Contaminants_Organic_Carbon_Water_Partition_Coefficient_Koc Contaminants_Species5) -> 0 | K146: =(Attenuation_Fraction_organic_carbon) * (Contaminants_Organic_Carbon_Water_Partition_Coefficient_Koc Contaminants_Species5) -> 0 | L146: =(Attenuation_Fraction_organic_carbon) * (Contaminants_Organic_Carbon_Water_Partition_Coefficient_Koc Contaminants_Species5) -> 0 | M146: =(Attenuation_Fraction_organic_carbon) * (Contaminants_Organic_Carbon_Water_Partition_Coefficient_Koc Contaminants_Species5) -> 0 | N146: =(Attenuation_Fraction_organic_carbon) * (Contaminants_Organic_Carbon_Water_Partition_Coefficient_Koc Contaminants_Species5) -> 0 | O146: =(Attenuation_Fraction_organic_carbon) * (Contaminants_Organic_Carbon_Water_Partition_Coefficient_Koc Contaminants_Species5) -> 0 | P146: =(Attenuation_Fraction_organic_carbon) * (Contaminants_Organic_Carbon_Water_Partition_Coefficient_Koc Contaminants_Species5) -> 0 | Q146: =(Attenuation_Fraction_organic_carbon) * (Contaminants_Organic_Carbon_Water_Partition_Coefficient_Koc Contaminants_Species5) -> 0 | R146: =(Attenuation_Fraction_organic_carbon) * (Contaminants_Organic_Carbon_Water_Partition_Coefficient_Koc Contaminants_Species5) -> 0
A147: Distribution | C147: constant | D147: constant | E147: constant | F147: constant | G147: constant | H147: constant | I147: constant | J147: constant | K147: constant | L147: constant | M147: constant | N147: constant | O147: constant | P147: constant | Q147: constant | R147: constant
A148: Attenuation_Partition_Coefficient_Kd_Species_5_param1
A149: Attenuation_Partition_Coefficient_Kd_Species_5_param2
A150: Attenuation_Partition_Coefficient_Kd_Species_5_param3
A153: Attenuation_Retardation_Species_5 | B153: [-] | C153: =1 + 0.001 * (Attenuation_Partition_Coefficient_Kd_Species_5) * (Attenuation_Dry_bulk_density) / (Hydrogeology_Porosity Hydrogeology!$C:$C) -> 8881 | D153: =1 + 0.001 * (Attenuation_Partition_Coefficient_Kd_Species_5) * (Attenuation_Dry_bulk_density) / (Hydrogeology_Porosity Hydrogeology!$D:$D) -> 593 | E153: =1 + 0.001 * (Attenuation_Partition_Coefficient_Kd_Species_5) * (Attenuation_Dry_bulk_density) / (Hydrogeology_Porosity Hydrogeology!$E:$E) ->  | F153: =1 + 0.001 * (Attenuation_Partition_Coefficient_Kd_Species_5) * (Attenuation_Dry_bulk_density) / (Hydrogeology_Porosity Hydrogeology!$F:$F) ->  | G153: =1 + 0.001 * (Attenuation_Partition_Coefficient_Kd_Species_5) * (Attenuation_Dry_bulk_density) / (Hydrogeology_Porosity Hydrogeology!$G:$G) ->  | H153: =1 + 0.001 * (Attenuation_Partition_Coefficient_Kd_Species_5) * (Attenuation_Dry_bulk_density) / (Hydrogeology_Porosity Hydrogeology!$H:$H) ->  | I153: =1 + 0.001 * (Attenuation_Partition_Coefficient_Kd_Species_5) * (Attenuation_Dry_bulk_density) / (Hydrogeology_Porosity Hydrogeology!$I:$I) ->  | J153: =1 + 0.001 * (Attenuation_Partition_Coefficient_Kd_Species_5) * (Attenuation_Dry_bulk_density) / (Hydrogeology_Porosity Hydrogeology!$J:$J) ->  | K153: =1 + 0.001 * (Attenuation_Partition_Coefficient_Kd_Species_5) * (Attenuation_Dry_bulk_density) / (Hydrogeology_Porosity Hydrogeology!$K:$K) ->  | L153: =1 + 0.001 * (Attenuation_Partition_Coefficient_Kd_Species_5) * (Attenuation_Dry_bulk_density) / (Hydrogeology_Porosity Hydrogeology!$L:$L) ->  | M153: =1 + 0.001 * (Attenuation_Partition_Coefficient_Kd_Species_5) * (Attenuation_Dry_bulk_density) / (Hydrogeology_Porosity Hydrogeology!$M:$M) ->  | N153: =1 + 0.001 * (Attenuation_Partition_Coefficient_Kd_Species_5) * (Attenuation_Dry_bulk_density) / (Hydrogeology_Porosity Hydrogeology!$N:$N) ->  | O153: =1 + 0.001 * (Attenuation_Partition_Coefficient_Kd_Species_5) * (Attenuation_Dry_bulk_density) / (Hydrogeology_Porosity Hydrogeology!$O:$O) ->  | P153: =1 + 0.001 * (Attenuation_Partition_Coefficient_Kd_Species_5) * (Attenuation_Dry_bulk_density) / (Hydrogeology_Porosity Hydrogeology!$P:$P) ->  | Q153: =1 + 0.001 * (Attenuation_Partition_Coefficient_Kd_Species_5) * (Attenuation_Dry_bulk_density) / (Hydrogeology_Porosity Hydrogeology!$Q:$Q) ->  | R153: =1 + 0.001 * (Attenuation_Partition_Coefficient_Kd_Species_5) * (Attenuation_Dry_bulk_density) / (Hydrogeology_Porosity Hydrogeology!$R:$R) -> 
A154: Distribution | C154: constant | D154: constant | E154: constant | F154: constant | G154: constant | H154: constant | I154: constant | J154: constant | K154: constant | L154: constant | M154: constant | N154: constant | O154: constant | P154: constant | Q154: constant | R154: constant
A155: Attenuation_Retardation_Species_5_param1
A156: Attenuation_Retardation_Species_5_param2
A157: Attenuation_Retardation_Species_5_param3
A160: Attenuation_Half_Life_Species_5 | B160: days | C160: No Decay | D160: No Decay | E160: No Decay | F160: No Decay | G160: No Decay | H160: No Decay | I160: No Decay | J160: No Decay | K160: No Decay | L160: No Decay | M160: No Decay | N160: No Decay | O160: No Decay | P160: No Decay | Q160: No Decay | R160: No Decay
A161: Distribution | C161: constant | D161: constant | E161: constant | F161: constant | G161: constant | H161: constant | I161: constant | J161: constant | K161: constant | L161: constant | M161: constant | N161: constant | O161: constant | P161: constant | Q161: constant | R161: constant
A162: Attenuation_Half_Life_Species_5_param1
A163: Attenuation_Half_Life_Species_5_param2
A164: Attenuation_Half_Life_Species_5_param3
A167: Attenuation_Decay_Coefficient_Species_5 | B167: 1/s | C167: =IF((_xlfn.SINGLE(Attenuation_Half_Life_Species_5))<>"No Decay", LN(2) / ((_xlfn.SINGLE(Attenuation_Half_Life_Species_5)) *_xlfn.SINGLE( s_per_day)),0) -> 0 | D167: 0 | E167: 0 | F167: 0 | G167: 0 | H167: 0 | I167: 0 | J167: 0 | K167: 0 | L167: 0 | M167: 0 | N167: 0 | O167: 0 | P167: 0 | Q167: 0 | R167: 0
A168: Distribution | C168: constant | D168: constant | E168: constant | F168: constant | G168: constant | H168: constant | I168: constant | J168: constant | K168: constant | L168: constant | M168: constant | N168: constant | O168: constant | P168: constant | Q168: constant | R168: constant
A169: Attenuation_Decay_Coefficient_Species_5_param1
A170: Attenuation_Decay_Coefficient_Species_5_param2
A171: Attenuation_Decay_Coefficient_Species_5_param3
A174: =IF((Contaminants_Source_determinand_names Contaminants_Species6)=0,"Undefined",(Contaminants_Source_determinand_names Contaminants_Species6)) -> Mercury
A176: Attenuation_Partition_Coefficient_Kd_Species_6 | B176: L/kg | C176: =AL_Kd_Hg -> 2142 | D176: =BGF_Kd_Hg -> 450 | E176: =(Attenuation_Fraction_organic_carbon) * (Contaminants_Organic_Carbon_Water_Partition_Coefficient_Koc Contaminants_Species6) -> 0 | F176: =(Attenuation_Fraction_organic_carbon) * (Contaminants_Organic_Carbon_Water_Partition_Coefficient_Koc Contaminants_Species6) -> 0 | G176: =(Attenuation_Fraction_organic_carbon) * (Contaminants_Organic_Carbon_Water_Partition_Coefficient_Koc Contaminants_Species6) -> 0 | H176: =(Attenuation_Fraction_organic_carbon) * (Contaminants_Organic_Carbon_Water_Partition_Coefficient_Koc Contaminants_Species6) -> 0 | I176: =(Attenuation_Fraction_organic_carbon) * (Contaminants_Organic_Carbon_Water_Partition_Coefficient_Koc Contaminants_Species6) -> 0 | J176: =(Attenuation_Fraction_organic_carbon) * (Contaminants_Organic_Carbon_Water_Partition_Coefficient_Koc Contaminants_Species6) -> 0 | K176: =(Attenuation_Fraction_organic_carbon) * (Contaminants_Organic_Carbon_Water_Partition_Coefficient_Koc Contaminants_Species6) -> 0 | L176: =(Attenuation_Fraction_organic_carbon) * (Contaminants_Organic_Carbon_Water_Partition_Coefficient_Koc Contaminants_Species6) -> 0 | M176: =(Attenuation_Fraction_organic_carbon) * (Contaminants_Organic_Carbon_Water_Partition_Coefficient_Koc Contaminants_Species6) -> 0 | N176: =(Attenuation_Fraction_organic_carbon) * (Contaminants_Organic_Carbon_Water_Partition_Coefficient_Koc Contaminants_Species6) -> 0 | O176: =(Attenuation_Fraction_organic_carbon) * (Contaminants_Organic_Carbon_Water_Partition_Coefficient_Koc Contaminants_Species6) -> 0 | P176: =(Attenuation_Fraction_organic_carbon) * (Contaminants_Organic_Carbon_Water_Partition_Coefficient_Koc Contaminants_Species6) -> 0 | Q176: =(Attenuation_Fraction_organic_carbon) * (Contaminants_Organic_Carbon_Water_Partition_Coefficient_Koc Contaminants_Species6) -> 0 | R176: =(Attenuation_Fraction_organic_carbon) * (Contaminants_Organic_Carbon_Water_Partition_Coefficient_Koc Contaminants_Species6) -> 0
A177: Distribution | C177: constant | D177: constant | E177: constant | F177: constant | G177: constant | H177: constant | I177: constant | J177: constant | K177: constant | L177: constant | M177: constant | N177: constant | O177: constant | P177: constant | Q177: constant | R177: constant
A178: Attenuation_Partition_Coefficient_Kd_Species_6_param1
A179: Attenuation_Partition_Coefficient_Kd_Species_6_param2
A180: Attenuation_Partition_Coefficient_Kd_Species_6_param3
A183: Attenuation_Retardation_Species_6 | B183: [-] | C183: =1 + 0.001 * (Attenuation_Partition_Coefficient_Kd_Species_6) * (Attenuation_Dry_bulk_density) / (Hydrogeology_Porosity Hydrogeology!$C:$C) -> 85681 | D183: =1 + 0.001 * (Attenuation_Partition_Coefficient_Kd_Species_6) * (Attenuation_Dry_bulk_density) / (Hydrogeology_Porosity Hydrogeology!$D:$D) -> 3601 | E183: =1 + 0.001 * (Attenuation_Partition_Coefficient_Kd_Species_6) * (Attenuation_Dry_bulk_density) / (Hydrogeology_Porosity Hydrogeology!$E:$E) ->  | F183: =1 + 0.001 * (Attenuation_Partition_Coefficient_Kd_Species_6) * (Attenuation_Dry_bulk_density) / (Hydrogeology_Porosity Hydrogeology!$F:$F) ->  | G183: =1 + 0.001 * (Attenuation_Partition_Coefficient_Kd_Species_6) * (Attenuation_Dry_bulk_density) / (Hydrogeology_Porosity Hydrogeology!$G:$G) ->  | H183: =1 + 0.001 * (Attenuation_Partition_Coefficient_Kd_Species_6) * (Attenuation_Dry_bulk_density) / (Hydrogeology_Porosity Hydrogeology!$H:$H) ->  | I183: =1 + 0.001 * (Attenuation_Partition_Coefficient_Kd_Species_6) * (Attenuation_Dry_bulk_density) / (Hydrogeology_Porosity Hydrogeology!$I:$I) ->  | J183: =1 + 0.001 * (Attenuation_Partition_Coefficient_Kd_Species_6) * (Attenuation_Dry_bulk_density) / (Hydrogeology_Porosity Hydrogeology!$J:$J) ->  | K183: =1 + 0.001 * (Attenuation_Partition_Coefficient_Kd_Species_6) * (Attenuation_Dry_bulk_density) / (Hydrogeology_Porosity Hydrogeology!$K:$K) ->  | L183: =1 + 0.001 * (Attenuation_Partition_Coefficient_Kd_Species_6) * (Attenuation_Dry_bulk_density) / (Hydrogeology_Porosity Hydrogeology!$L:$L) ->  | M183: =1 + 0.001 * (Attenuation_Partition_Coefficient_Kd_Species_6) * (Attenuation_Dry_bulk_density) / (Hydrogeology_Porosity Hydrogeology!$M:$M) ->  | N183: =1 + 0.001 * (Attenuation_Partition_Coefficient_Kd_Species_6) * (Attenuation_Dry_bulk_density) / (Hydrogeology_Porosity Hydrogeology!$N:$N) ->  | O183: =1 + 0.001 * (Attenuation_Partition_Coefficient_Kd_Species_6) * (Attenuation_Dry_bulk_density) / (Hydrogeology_Porosity Hydrogeology!$O:$O) ->  | P183: =1 + 0.001 * (Attenuation_Partition_Coefficient_Kd_Species_6) * (Attenuation_Dry_bulk_density) / (Hydrogeology_Porosity Hydrogeology!$P:$P) ->  | Q183: =1 + 0.001 * (Attenuation_Partition_Coefficient_Kd_Species_6) * (Attenuation_Dry_bulk_density) / (Hydrogeology_Porosity Hydrogeology!$Q:$Q) ->  | R183: =1 + 0.001 * (Attenuation_Partition_Coefficient_Kd_Species_6) * (Attenuation_Dry_bulk_density) / (Hydrogeology_Porosity Hydrogeology!$R:$R) -> 
A184: Distribution | C184: constant | D184: constant | E184: constant | F184: constant | G184: constant | H184: constant | I184: constant | J184: constant | K184: constant | L184: constant | M184: constant | N184: constant | O184: constant | P184: constant | Q184: constant | R184: constant
A185: Attenuation_Retardation_Species_6_param1
A186: Attenuation_Retardation_Species_6_param2
A187: Attenuation_Retardation_Species_6_param3
A190: Attenuation_Half_Life_Species_6 | B190: days | C190: No Decay | D190: No Decay | E190: No Decay | F190: No Decay | G190: No Decay | H190: No Decay | I190: No Decay | J190: No Decay | K190: No Decay | L190: No Decay | M190: No Decay | N190: No Decay | O190: No Decay | P190: No Decay | Q190: No Decay | R190: No Decay
A191: Distribution | C191: constant | D191: constant | E191: constant | F191: constant | G191: constant | H191: constant | I191: constant | J191: constant | K191: constant | L191: constant | M191: constant | N191: constant | O191: constant | P191: constant | Q191: constant | R191: constant
A192: Attenuation_Half_Life_Species_6_param1
A193: Attenuation_Half_Life_Species_6_param2
A194: Attenuation_Half_Life_Species_6_param3
A197: Attenuation_Decay_Coefficient_Species_6 | B197: 1/s | C197: =IF((_xlfn.SINGLE(Attenuation_Half_Life_Species_6))<>"No Decay", LN(2) / ((_xlfn.SINGLE(Attenuation_Half_Life_Species_6)) *_xlfn.SINGLE( s_per_day)),0) -> 0 | D197: 0 | E197: 0 | F197: 0 | G197: 0 | H197: 0 | I197: 0 | J197: 0 | K197: 0 | L197: 0 | M197: 0 | N197: 0 | O197: 0 | P197: 0 | Q197: 0 | R197: 0
A198: Distribution | C198: constant | D198: constant | E198: constant | F198: constant | G198: constant | H198: constant | I198: constant | J198: constant | K198: constant | L198: constant | M198: constant | N198: constant | O198: constant | P198: constant | Q198: constant | R198: constant
A199: Attenuation_Decay_Coefficient_Species_6_param1
A200: Attenuation_Decay_Coefficient_Species_6_param2
A201: Attenuation_Decay_Coefficient_Species_6_param3
A204: =IF((Contaminants_Source_determinand_names Contaminants_Species7)=0,"Undefined",(Contaminants_Source_determinand_names Contaminants_Species7)) -> Molybdenum
A206: Attenuation_Partition_Coefficient_Kd_Species_7 | B206: L/kg | C206: =AL_Kd_Mo -> 110 | D206: =BGF_Kd_Mo -> 110 | E206: =(Attenuation_Fraction_organic_carbon) * (Contaminants_Organic_Carbon_Water_Partition_Coefficient_Koc Contaminants_Species7) -> 0 | F206: =(Attenuation_Fraction_organic_carbon) * (Contaminants_Organic_Carbon_Water_Partition_Coefficient_Koc Contaminants_Species7) -> 0 | G206: =(Attenuation_Fraction_organic_carbon) * (Contaminants_Organic_Carbon_Water_Partition_Coefficient_Koc Contaminants_Species7) -> 0 | H206: =(Attenuation_Fraction_organic_carbon) * (Contaminants_Organic_Carbon_Water_Partition_Coefficient_Koc Contaminants_Species7) -> 0 | I206: =(Attenuation_Fraction_organic_carbon) * (Contaminants_Organic_Carbon_Water_Partition_Coefficient_Koc Contaminants_Species7) -> 0 | J206: =(Attenuation_Fraction_organic_carbon) * (Contaminants_Organic_Carbon_Water_Partition_Coefficient_Koc Contaminants_Species7) -> 0 | K206: =(Attenuation_Fraction_organic_carbon) * (Contaminants_Organic_Carbon_Water_Partition_Coefficient_Koc Contaminants_Species7) -> 0 | L206: =(Attenuation_Fraction_organic_carbon) * (Contaminants_Organic_Carbon_Water_Partition_Coefficient_Koc Contaminants_Species7) -> 0 | M206: =(Attenuation_Fraction_organic_carbon) * (Contaminants_Organic_Carbon_Water_Partition_Coefficient_Koc Contaminants_Species7) -> 0 | N206: =(Attenuation_Fraction_organic_carbon) * (Contaminants_Organic_Carbon_Water_Partition_Coefficient_Koc Contaminants_Species7) -> 0 | O206: =(Attenuation_Fraction_organic_carbon) * (Contaminants_Organic_Carbon_Water_Partition_Coefficient_Koc Contaminants_Species7) -> 0 | P206: =(Attenuation_Fraction_organic_carbon) * (Contaminants_Organic_Carbon_Water_Partition_Coefficient_Koc Contaminants_Species7) -> 0 | Q206: =(Attenuation_Fraction_organic_carbon) * (Contaminants_Organic_Carbon_Water_Partition_Coefficient_Koc Contaminants_Species7) -> 0 | R206: =(Attenuation_Fraction_organic_carbon) * (Contaminants_Organic_Carbon_Water_Partition_Coefficient_Koc Contaminants_Species7) -> 0
A207: Distribution | C207: constant | D207: constant | E207: constant | F207: constant | G207: constant | H207: constant | I207: constant | J207: constant | K207: constant | L207: constant | M207: constant | N207: constant | O207: constant | P207: constant | Q207: constant | R207: constant
A208: Attenuation_Partition_Coefficient_Kd_Species_7_param1
A209: Attenuation_Partition_Coefficient_Kd_Species_7_param2
A210: Attenuation_Partition_Coefficient_Kd_Species_7_param3
A213: Attenuation_Retardation_Species_7 | B213: [-] | C213: =1 + 0.001 * (Attenuation_Partition_Coefficient_Kd_Species_7) * (Attenuation_Dry_bulk_density) / (Hydrogeology_Porosity Hydrogeology!$C:$C) -> 4401 | D213: =1 + 0.001 * (Attenuation_Partition_Coefficient_Kd_Species_7) * (Attenuation_Dry_bulk_density) / (Hydrogeology_Porosity Hydrogeology!$D:$D) -> 881 | E213: =1 + 0.001 * (Attenuation_Partition_Coefficient_Kd_Species_7) * (Attenuation_Dry_bulk_density) / (Hydrogeology_Porosity Hydrogeology!$E:$E) ->  | F213: =1 + 0.001 * (Attenuation_Partition_Coefficient_Kd_Species_7) * (Attenuation_Dry_bulk_density) / (Hydrogeology_Porosity Hydrogeology!$F:$F) ->  | G213: =1 + 0.001 * (Attenuation_Partition_Coefficient_Kd_Species_7) * (Attenuation_Dry_bulk_density) / (Hydrogeology_Porosity Hydrogeology!$G:$G) ->  | H213: =1 + 0.001 * (Attenuation_Partition_Coefficient_Kd_Species_7) * (Attenuation_Dry_bulk_density) / (Hydrogeology_Porosity Hydrogeology!$H:$H) ->  | I213: =1 + 0.001 * (Attenuation_Partition_Coefficient_Kd_Species_7) * (Attenuation_Dry_bulk_density) / (Hydrogeology_Porosity Hydrogeology!$I:$I) ->  | J213: =1 + 0.001 * (Attenuation_Partition_Coefficient_Kd_Species_7) * (Attenuation_Dry_bulk_density) / (Hydrogeology_Porosity Hydrogeology!$J:$J) ->  | K213: =1 + 0.001 * (Attenuation_Partition_Coefficient_Kd_Species_7) * (Attenuation_Dry_bulk_density) / (Hydrogeology_Porosity Hydrogeology!$K:$K) ->  | L213: =1 + 0.001 * (Attenuation_Partition_Coefficient_Kd_Species_7) * (Attenuation_Dry_bulk_density) / (Hydrogeology_Porosity Hydrogeology!$L:$L) ->  | M213: =1 + 0.001 * (Attenuation_Partition_Coefficient_Kd_Species_7) * (Attenuation_Dry_bulk_density) / (Hydrogeology_Porosity Hydrogeology!$M:$M) ->  | N213: =1 + 0.001 * (Attenuation_Partition_Coefficient_Kd_Species_7) * (Attenuation_Dry_bulk_density) / (Hydrogeology_Porosity Hydrogeology!$N:$N) ->  | O213: =1 + 0.001 * (Attenuation_Partition_Coefficient_Kd_Species_7) * (Attenuation_Dry_bulk_density) / (Hydrogeology_Porosity Hydrogeology!$O:$O) ->  | P213: =1 + 0.001 * (Attenuation_Partition_Coefficient_Kd_Species_7) * (Attenuation_Dry_bulk_density) / (Hydrogeology_Porosity Hydrogeology!$P:$P) ->  | Q213: =1 + 0.001 * (Attenuation_Partition_Coefficient_Kd_Species_7) * (Attenuation_Dry_bulk_density) / (Hydrogeology_Porosity Hydrogeology!$Q:$Q) ->  | R213: =1 + 0.001 * (Attenuation_Partition_Coefficient_Kd_Species_7) * (Attenuation_Dry_bulk_density) / (Hydrogeology_Porosity Hydrogeology!$R:$R) -> 
A214: Distribution | C214: constant | D214: constant | E214: constant | F214: constant | G214: constant | H214: constant | I214: constant | J214: constant | K214: constant | L214: constant | M214: constant | N214: constant | O214: constant | P214: constant | Q214: constant | R214: constant
A215: Attenuation_Retardation_Species_7_param1
A216: Attenuation_Retardation_Species_7_param2
A217: Attenuation_Retardation_Species_7_param3
A220: Attenuation_Half_Life_Species_7 | B220: days | C220: No Decay | D220: No Decay | E220: No Decay | F220: No Decay | G220: No Decay | H220: No Decay | I220: No Decay | J220: No Decay | K220: No Decay | L220: No Decay | M220: No Decay | N220: No Decay | O220: No Decay | P220: No Decay | Q220: No Decay | R220: No Decay
A221: Distribution | C221: constant | D221: constant | E221: constant | F221: constant | G221: constant | H221: constant | I221: constant | J221: constant | K221: constant | L221: constant | M221: constant | N221: constant | O221: constant | P221: constant | Q221: constant | R221: constant
A222: Attenuation_Half_Life_Species_7_param1
A223: Attenuation_Half_Life_Species_7_param2
A224: Attenuation_Half_Life_Species_7_param3
A227: Attenuation_Decay_Coefficient_Species_7 | B227: 1/s | C227: =IF((_xlfn.SINGLE(Attenuation_Half_Life_Species_7))<>"No Decay", LN(2) / ((_xlfn.SINGLE(Attenuation_Half_Life_Species_7)) *_xlfn.SINGLE( s_per_day)),0) -> 0 | D227: 0 | E227: 0 | F227: 0 | G227: 0 | H227: 0 | I227: 0 | J227: 0 | K227: 0 | L227: 0 | M227: 0 | N227: 0 | O227: 0 | P227: 0 | Q227: 0 | R227: 0
A228: Distribution | C228: constant | D228: constant | E228: constant | F228: constant | G228: constant | H228: constant | I228: constant | J228: constant | K228: constant | L228: constant | M228: constant | N228: constant | O228: constant | P228: constant | Q228: constant | R228: constant
A229: Attenuation_Decay_Coefficient_Species_7_param1
A230: Attenuation_Decay_Coefficient_Species_7_param2
A231: Attenuation_Decay_Coefficient_Species_7_param3
A234: =IF((Contaminants_Source_determinand_names Contaminants_Species8)=0,"Undefined",(Contaminants_Source_determinand_names Contaminants_Species8)) -> Antimony
A236: Attenuation_Partition_Coefficient_Kd_Species_8 | B236: L/kg | C236: =AL_Kd_Sb -> 140 | D236: =BGF_Kd_Sb -> 17 | E236: =(Attenuation_Fraction_organic_carbon) * (Contaminants_Organic_Carbon_Water_Partition_Coefficient_Koc Contaminants_Species8) -> 0 | F236: =(Attenuation_Fraction_organic_carbon) * (Contaminants_Organic_Carbon_Water_Partition_Coefficient_Koc Contaminants_Species8) -> 0 | G236: =(Attenuation_Fraction_organic_carbon) * (Contaminants_Organic_Carbon_Water_Partition_Coefficient_Koc Contaminants_Species8) -> 0 | H236: =(Attenuation_Fraction_organic_carbon) * (Contaminants_Organic_Carbon_Water_Partition_Coefficient_Koc Contaminants_Species8) -> 0 | I236: =(Attenuation_Fraction_organic_carbon) * (Contaminants_Organic_Carbon_Water_Partition_Coefficient_Koc Contaminants_Species8) -> 0 | J236: =(Attenuation_Fraction_organic_carbon) * (Contaminants_Organic_Carbon_Water_Partition_Coefficient_Koc Contaminants_Species8) -> 0 | K236: =(Attenuation_Fraction_organic_carbon) * (Contaminants_Organic_Carbon_Water_Partition_Coefficient_Koc Contaminants_Species8) -> 0 | L236: =(Attenuation_Fraction_organic_carbon) * (Contaminants_Organic_Carbon_Water_Partition_Coefficient_Koc Contaminants_Species8) -> 0 | M236: =(Attenuation_Fraction_organic_carbon) * (Contaminants_Organic_Carbon_Water_Partition_Coefficient_Koc Contaminants_Species8) -> 0 | N236: =(Attenuation_Fraction_organic_carbon) * (Contaminants_Organic_Carbon_Water_Partition_Coefficient_Koc Contaminants_Species8) -> 0 | O236: =(Attenuation_Fraction_organic_carbon) * (Contaminants_Organic_Carbon_Water_Partition_Coefficient_Koc Contaminants_Species8) -> 0 | P236: =(Attenuation_Fraction_organic_carbon) * (Contaminants_Organic_Carbon_Water_Partition_Coefficient_Koc Contaminants_Species8) -> 0 | Q236: =(Attenuation_Fraction_organic_carbon) * (Contaminants_Organic_Carbon_Water_Partition_Coefficient_Koc Contaminants_Species8) -> 0 | R236: =(Attenuation_Fraction_organic_carbon) * (Contaminants_Organic_Carbon_Water_Partition_Coefficient_Koc Contaminants_Species8) -> 0
A237: Distribution | C237: constant | D237: constant | E237: constant | F237: constant | G237: constant | H237: constant | I237: constant | J237: constant | K237: constant | L237: constant | M237: constant | N237: constant | O237: constant | P237: constant | Q237: constant | R237: constant
A238: Attenuation_Partition_Coefficient_Kd_Species_8_param1
A239: Attenuation_Partition_Coefficient_Kd_Species_8_param2
A240: Attenuation_Partition_Coefficient_Kd_Species_8_param3
A243: Attenuation_Retardation_Species_8 | B243: [-] | C243: =1 + 0.001 * (Attenuation_Partition_Coefficient_Kd_Species_8) * (Attenuation_Dry_bulk_density) / (Hydrogeology_Porosity Hydrogeology!$C:$C) -> 5601 | D243: =1 + 0.001 * (Attenuation_Partition_Coefficient_Kd_Species_8) * (Attenuation_Dry_bulk_density) / (Hydrogeology_Porosity Hydrogeology!$D:$D) -> 137 | E243: =1 + 0.001 * (Attenuation_Partition_Coefficient_Kd_Species_8) * (Attenuation_Dry_bulk_density) / (Hydrogeology_Porosity Hydrogeology!$E:$E) ->  | F243: =1 + 0.001 * (Attenuation_Partition_Coefficient_Kd_Species_8) * (Attenuation_Dry_bulk_density) / (Hydrogeology_Porosity Hydrogeology!$F:$F) ->  | G243: =1 + 0.001 * (Attenuation_Partition_Coefficient_Kd_Species_8) * (Attenuation_Dry_bulk_density) / (Hydrogeology_Porosity Hydrogeology!$G:$G) ->  | H243: =1 + 0.001 * (Attenuation_Partition_Coefficient_Kd_Species_8) * (Attenuation_Dry_bulk_density) / (Hydrogeology_Porosity Hydrogeology!$H:$H) ->  | I243: =1 + 0.001 * (Attenuation_Partition_Coefficient_Kd_Species_8) * (Attenuation_Dry_bulk_density) / (Hydrogeology_Porosity Hydrogeology!$I:$I) ->  | J243: =1 + 0.001 * (Attenuation_Partition_Coefficient_Kd_Species_8) * (Attenuation_Dry_bulk_density) / (Hydrogeology_Porosity Hydrogeology!$J:$J) ->  | K243: =1 + 0.001 * (Attenuation_Partition_Coefficient_Kd_Species_8) * (Attenuation_Dry_bulk_density) / (Hydrogeology_Porosity Hydrogeology!$K:$K) ->  | L243: =1 + 0.001 * (Attenuation_Partition_Coefficient_Kd_Species_8) * (Attenuation_Dry_bulk_density) / (Hydrogeology_Porosity Hydrogeology!$L:$L) ->  | M243: =1 + 0.001 * (Attenuation_Partition_Coefficient_Kd_Species_8) * (Attenuation_Dry_bulk_density) / (Hydrogeology_Porosity Hydrogeology!$M:$M) ->  | N243: =1 + 0.001 * (Attenuation_Partition_Coefficient_Kd_Species_8) * (Attenuation_Dry_bulk_density) / (Hydrogeology_Porosity Hydrogeology!$N:$N) ->  | O243: =1 + 0.001 * (Attenuation_Partition_Coefficient_Kd_Species_8) * (Attenuation_Dry_bulk_density) / (Hydrogeology_Porosity Hydrogeology!$O:$O) ->  | P243: =1 + 0.001 * (Attenuation_Partition_Coefficient_Kd_Species_8) * (Attenuation_Dry_bulk_density) / (Hydrogeology_Porosity Hydrogeology!$P:$P) ->  | Q243: =1 + 0.001 * (Attenuation_Partition_Coefficient_Kd_Species_8) * (Attenuation_Dry_bulk_density) / (Hydrogeology_Porosity Hydrogeology!$Q:$Q) ->  | R243: =1 + 0.001 * (Attenuation_Partition_Coefficient_Kd_Species_8) * (Attenuation_Dry_bulk_density) / (Hydrogeology_Porosity Hydrogeology!$R:$R) -> 
A244: Distribution | C244: constant | D244: constant | E244: constant | F244: constant | G244: constant | H244: constant | I244: constant | J244: constant | K244: constant | L244: constant | M244: constant | N244: constant | O244: constant | P244: constant | Q244: constant | R244: constant
A245: Attenuation_Retardation_Species_8_param1
A246: Attenuation_Retardation_Species_8_param2
A247: Attenuation_Retardation_Species_8_param3
A250: Attenuation_Half_Life_Species_8 | B250: days | C250: No Decay | D250: No Decay | E250: No Decay | F250: No Decay | G250: No Decay | H250: No Decay | I250: No Decay | J250: No Decay | K250: No Decay | L250: No Decay | M250: No Decay | N250: No Decay | O250: No Decay | P250: No Decay | Q250: No Decay | R250: No Decay
A251: Distribution | C251: constant | D251: constant | E251: constant | F251: constant | G251: constant | H251: constant | I251: constant | J251: constant | K251: constant | L251: constant | M251: constant | N251: constant | O251: constant | P251: constant | Q251: constant | R251: constant
A252: Attenuation_Half_Life_Species_8_param1
A253: Attenuation_Half_Life_Species_8_param2
A254: Attenuation_Half_Life_Species_8_param3
A257: Attenuation_Decay_Coefficient_Species_8 | B257: 1/s | C257: =IF((_xlfn.SINGLE(Attenuation_Half_Life_Species_8))<>"No Decay", LN(2) / ((_xlfn.SINGLE(Attenuation_Half_Life_Species_8)) *_xlfn.SINGLE( s_per_day)),0) -> 0 | D257: 0 | E257: 0 | F257: 0 | G257: 0 | H257: 0 | I257: 0 | J257: 0 | K257: 0 | L257: 0 | M257: 0 | N257: 0 | O257: 0 | P257: 0 | Q257: 0 | R257: 0
A258: Distribution | C258: constant | D258: constant | E258: constant | F258: constant | G258: constant | H258: constant | I258: constant | J258: constant | K258: constant | L258: constant | M258: constant | N258: constant | O258: constant | P258: constant | Q258: constant | R258: constant
A259: Attenuation_Decay_Coefficient_Species_8_param1
A260: Attenuation_Decay_Coefficient_Species_8_param2
A261: Attenuation_Decay_Coefficient_Species_8_param3

Sheet WaterBalance
A1: WATER BALANCE
A3: User defined
A5: Enter your own calculations for the water balance
A6: Carry fluxes and velocities over onto the Pathway sheet

Sheet Pathways
A1: PATHWAY SUMMARY
A3: Path 1 | C3: Section 1 | E3: Section 2 | G3: Section 3
A4: Path 1 Type | C4: Source | E4: Unit | G4: Unit
A5: Path 1 Name | C5: Inert Restoration Material | E5: Attenution Layer: Node 1 | G5: Beenham Grange Formation: Node 1
A6: Path 1 Process | C6: Declining source | E6: ADRD (1D) + Dilution | G6: No Processes
A7: Path 1 Standards | F7: Target Standard | G7: EAL (GW)
A8: Path 1 Parameter1 | B8: Q_managed [m3/s] | C8: 0 | D8: Velocity [m/s] | E8: =(Attenution_Laye Hydrogeology_Velocity) -> 3.773333333e-08
A9: Path 1 Parameter2 | B9: Managed time [years] | C9: 0 | D9: Dispersivity [m] | E9: =E10/10 -> 0.1
A10: Path 1 Parameter3 | B10: Q_path [m3/s] | C10: =QSide_B -> 2.763015787e-05 | D10: Travel Distance [m] | E10: =AL_traveldis -> 1
A11: Path 1 Parameter4 | B11: Q_decline [m3/s] | C11: =QSide_B -> 2.763015787e-05 | D11: Mixing Depth [m]
A12: Path 1 Parameter5 | D12: Mixing Width [m]
A13: Path 1 Parameter6 | D13: Q_Dilute [m3/s] | E13: =QRO_b -> 0.001270237551 | F13: Q_Dilute [m3/s] | G13: 0
A16: Path 2 | C16: Section 1 | E16: Section 2 | G16: Section 3 | I16: Section 4
A17: Path 2 Type | C17: Source | E17: Unit | G17: Unit | I17: Receptor
A18: Path 2 Name | C18: Inert Restoration Material | E18: Attenution Layer: Node 2 | G18: Beenham Grange Formation: Node 2 | I18: Groundwater
A19: Path 2 Process | C19: Declining source | E19: ADRD (1D) + Dilution | G19: ADRD (1D) + Dilution | I19: User defined
A20: Path 2 Standards | H20: Target Standard | I20: EAL (GW)
A21: Path 2 Parameter1 | B21: Q_managed [m3/s] | C21: 0 | D21: Velocity [m/s] | E21: =(Attenution_Laye Hydrogeology_Velocity) -> 3.773333333e-08 | F21: Velocity [m/s] | G21: =(Beenham_Grange_ Hydrogeology_Velocity) -> 2.118e-05
A22: Path 2 Parameter2 | B22: Managed time [years] | C22: 0 | D22: Dispersivity [m] | E22: =E23/10 -> 0.1 | F22: Dispersivity [m] | G22: =G23/10 -> 1
A23: Path 2 Parameter3 | B23: Q_path [m3/s] | C23: =QSide_B -> 2.763015787e-05 | D23: Travel Distance [m] | E23: =AL_traveldis -> 1 | F23: Travel Distance [m] | G23: =dis_gw_b -> 10
A24: Path 2 Parameter4 | B24: Q_decline [m3/s] | C24: =QSide_B -> 2.763015787e-05 | D24: Mixing Depth [m] | F24: Mixing Depth [m]
A25: Path 2 Parameter5 | D25: Mixing Width [m] | F25: Mixing Width [m]
A26: Path 2 Parameter6 | D26: Q_Dilute [m3/s] | E26: =QRO_b -> 0.001270237551 | F26: Q_Dilute [m3/s] | G26: =Path2_Param5*Path2_Param4*(Beenham_Grange_ Hydrogeology_Hydraulic_Conductivity)*(Beenham_Grange_ Hydrogeology_Hydraulic_Gradient) -> 0 | H26: Q_dilute [m3/s] | I26: =Groundwater__Q_dilute -> 0

Sheet Groundwater (hidden)
A1: RECEPTOR: Groundwater
A3: Receptor Options
F5: Enter data and equations for User defined Receptor
F7: Q_dilute | H7: m3/s

Sheet Simulation
A1: SIMULATION PARAMETERS
B3: Monte Carlo Analysis with Crystal Ball | J3: Named Constants
C5: Reported Percentile | F5: 95 | K5: s_per_year | L5: =365.25*60*60*24 -> 31557600
C6: Number of simulations | F6: 10000 | K6: s_per_day | L6: =60*60*24 -> 86400
J9: Laplace Transform Solution Parameters
C11: Minimise while running: | K11: sigma | L11: 0
K12: nu | L12: 1
K13: nsum | L13: 16
K14: omega | L14: 11
B17: Reporting Options
C22: Number of timeslices for breakthrough curves | G22: 100
B24: The timeslices specified on the results sheets are saved below.
C25: Path1 timeslices in years | E25: Path2 timeslices in years
C26: TS_Path1 | E26: TS_Path2
C27: 10 | E27: 10
C28: 20 | E28: 20
C29: 30 | E29: 30
C30: 40 | E30: 40
C31: 50 | E31: 50
C32: 60 | E32: 60
C33: 70 | E33: 70
C34: 80 | E34: 80
C35: 90 | E35: 90
C36: 100 | E36: 100
C37: 110 | E37: 110
C38: 120 | E38: 120
C39: 130 | E39: 130
C40: 140 | E40: 140
C41: 150 | E41: 150
C42: 160 | E42: 160
C43: 170 | E43: 170
C44: 180 | E44: 180
C45: 190 | E45: 190
C46: 200 | E46: 200
C47: 210 | E47: 210
C48: 220 | E48: 220
C49: 230 | E49: 230
C50: 240 | E50: 240
C51: 250 | E51: 250
C52: 260 | E52: 260
C53: 270 | E53: 270
C54: 280 | E54: 280
C55: 290 | E55: 290
C56: 300 | E56: 300
C57: 310 | E57: 310
C58: 320 | E58: 320
C59: 330 | E59: 330
C60: 340 | E60: 340
C61: 350 | E61: 350
C62: 360 | E62: 360
C63: 370 | E63: 370
C64: 380 | E64: 380
C65: 390 | E65: 390
C66: 400 | E66: 400
C67: 410 | E67: 410
C68: 420 | E68: 420
C69: 430 | E69: 430
C70: 440 | E70: 440
C71: 450 | E71: 450
C72: 460 | E72: 460
C73: 470 | E73: 470
C74: 480 | E74: 480
C75: 490 | E75: 490
C76: 500 | E76: 500
C77: 510 | E77: 510
C78: 520 | E78: 520
C79: 530 | E79: 530
C80: 540 | E80: 540
C81: 550 | E81: 550
C82: 560 | E82: 560
C83: 570 | E83: 570
C84: 580 | E84: 580
C85: 590 | E85: 590
C86: 600 | E86: 600
C87: 610 | E87: 610
C88: 620 | E88: 620
C89: 630 | E89: 630
C90: 640 | E90: 640
C91: 650 | E91: 650
C92: 660 | E92: 660
C93: 670 | E93: 670
C94: 680 | E94: 680
C95: 690 | E95: 690
C96: 700 | E96: 700
C97: 710 | E97: 710
C98: 720 | E98: 720
C99: 730 | E99: 730
C100: 740 | E100: 740
C101: 750 | E101: 750
C102: 760 | E102: 760
C103: 770 | E103: 770
C104: 780 | E104: 780
C105: 790 | E105: 790
C106: 800 | E106: 800
C107: 810 | E107: 810
C108: 820 | E108: 820
C109: 830 | E109: 830
C110: 840 | E110: 840
C111: 850 | E111: 850
C112: 860 | E112: 860
C113: 870 | E113: 870
C114: 880 | E114: 880
C115: 890 | E115: 890
C116: 900 | E116: 900
C117: 910 | E117: 910
C118: 920 | E118: 920
C119: 930 | E119: 930
C120: 940 | E120: 940
C121: 950 | E121: 950
C122: 960 | E122: 960
C123: 970 | E123: 970
C124: 980 | E124: 980
C125: 990 | E125: 990
C126: 1000 | E126: 1000

Sheet Audit
A1: AUDIT TRAIL SHEET
A3: Author | B3: Date | C3: Time | E3: Cell Address | G3: New Value | H3: Old Value | I3: Cell Name
A6: Saved 27/02/2023: 12:38:52 Level Number: 5
A8: BREAKTHROUGH RESULTS
A10: Advanced
A11: Pollutant Linkage: Inert Restorati, Attenution Layer, Beenham Grange Formation | K11: Pollutant Linkage: Inert Restorati, Attenution Layer, Beenham Grange Formation, Groundwater | U11: Pollutant Linkage: Inert Restorati, Attenution Layer, Beenham Grange Formation, River Enborne | AE11: Pollutant Linkage: Inert Restorati, Attenution Layer, Beenham Grange Formation, Spring Ditch
A12: Concentrations in mg/L in Beenham Grange Formation | K12: Concentrations in mg/L in Groundwater | U12: Concentrations in mg/L in River Enborne | AE12: Concentrations in mg/L in Spring Ditch
A14: Compared with EAL (GW) target concentration in mg/L | K14: No target concentrations specified for comparison | U14: Compared with EAL (River Enborne) target concentration in mg/L | AE14: Compared with EAL (Spring Ditch) target concentration in mg/L
B15: 0.266 | C15: 0.0482 | D15: 0.001 | E15: 0.004365 | F15: 2e-05 | G15: 0.002 | H15: 0.0002 | I15: 0.001 | V15: 0.266 | W15: 0.0276 | X15: 0.0047 | Y15: 0.028 | Z15: 0.0005 | AA15: 0.00175 | AB15: 0.0012 | AC15: 0.001 | AF15: 0.266 | AG15: 0.03 | AH15: 0.0047 | AI15: 0.028 | AJ15: 0.0005 | AK15: 0.0015 | AL15: 0.0012 | AM15: 0.005
A17: Time(years) | B17: Species1 | C17: Species2 | D17: Species3 | E17: Species4 | F17: Species5 | G17: Species6 | H17: Species7 | I17: Species8 | K17: Time(years) | L17: Species1 | M17: Species2 | N17: Species3 | O17: Species4 | P17: Species5 | Q17: Species6 | R17: Species7 | S17: Species8 | U17: Time(years) | V17: Species1 | W17: Species2 | X17: Species3 | Y17: Species4 | Z17: Species5 | AA17: Species6 | AB17: Species7 | AC17: Species8 | AE17: Time(years) | AF17: Species1 | AG17: Species2 | AH17: Species3 | AI17: Species4 | AJ17: Species5 | AK17: Species6 | AL17: Species7 | AM17: Species8
B18: Ammoniacal Nitrogen | C18: Barium | D18: Total Chromiun | E18: Copper | F18: Mercury | G18: Molybdenum | H18: Lead | I18: Antimony | L18: Ammoniacal Nitrogen | M18: Barium | N18: Total Chromiun | O18: Copper | P18: Mercury | Q18: Molybdenum | R18: Lead | S18: Antimony | V18: Ammoniacal Nitrogen | W18: Barium | X18: Total Chromiun | Y18: Copper | Z18: Mercury | AA18: Molybdenum | AB18: Lead | AC18: Antimony | AF18: Ammoniacal Nitrogen | AG18: Barium | AH18: Total Chromiun | AI18: Copper | AJ18: Mercury | AK18: Molybdenum | AL18: Lead | AM18: Antimony
A19: 10 | B19: 1.597107698e-12 | C19: 1.959288206e-22 | D19: 0 | E19: 0 | F19: 0 | G19: 0 | H19: 0 | I19: 0 | K19: 10 | L19: 1.542194118e-12 | M19: 0 | N19: 0 | O19: 0 | P19: 0 | Q19: 0 | R19: 0 | S19: 0 | U19: 10 | V19: 1.132204981e-15 | W19: 4.294760866e-26 | X19: 0 | Y19: 0 | Z19: 0 | AA19: 0 | AB19: 0 | AC19: 0 | AE19: 10 | AF19: 1.71404722e-13 | AG19: 2.145487248e-24 | AH19: 0 | AI19: 0 | AJ19: 0 | AK19: 0 | AL19: 0 | AM19: 0
A20: 20 | B20: 2.079373126e-07 | C20: 1.5145223e-15 | D20: 0 | E20: 0 | F20: 0 | G20: 0 | H20: 0 | I20: 0 | K20: 20 | L20: 2.060996247e-07 | M20: 9.841483819e-17 | N20: 0 | O20: 0 | P20: 0 | Q20: 0 | R20: 0 | S20: 0 | U20: 20 | V20: 1.573167886e-10 | W20: 2.714108201e-21 | X20: 0 | Y20: 0 | Z20: 0 | AA20: 0 | AB20: 0 | AC20: 0 | AE20: 20 | AF20: 2.350977945e-08 | AG20: 1.346921217e-18 | AH20: 0 | AI20: 0 | AJ20: 0 | AK20: 0 | AL20: 0 | AM20: 0
A21: 30 | B21: 1.103456844e-05 | C21: 5.955399692e-11 | D21: 0 | E21: 0 | F21: 0 | G21: 0 | H21: 0 | I21: 0 | K21: 30 | L21: 1.099073789e-05 | M21: 1.527668105e-11 | N21: 0 | O21: 0 | P21: 0 | Q21: 0 | R21: 0 | S21: 0 | U21: 30 | V21: 8.451105323e-09 | W21: 2.026682266e-15 | X21: 0 | Y21: 0 | Z21: 0 | AA21: 0 | AB21: 0 | AC21: 0 | AE21: 30 | AF21: 1.259865669e-06 | AG21: 5.265553e-13 | AH21: 0 | AI21: 0 | AJ21: 0 | AK21: 0 | AL21: 0 | AM21: 0
A22: 40 | B22: 8.15080335e-05 | C22: 1.216855308e-08 | D22: 0 | E22: 0 | F22: 0 | G22: 0 | H22: 0 | I22: 0 | K22: 40 | L22: 8.132488274e-05 | M22: 5.465174013e-09 | N22: 0 | O22: 0 | P22: 0 | Q22: 0 | R22: 0 | S22: 0 | U22: 40 | V22: 6.269571415e-08 | W22: 1.379635484e-12 | X22: 0 | Y22: 0 | Z22: 0 | AA22: 0 | AB22: 0 | AC22: 0 | AE22: 40 | AF22: 9.338402896e-06 | AG22: 2.94953394e-10 | AH22: 0 | AI22: 0 | AJ22: 0 | AK22: 0 | AL22: 0 | AM22: 0
A23: 50 | B23: 0.0002716293226 | C23: 3.007350639e-07 | D23: 0 | E23: 0 | F23: 0 | G23: 0 | H23: 0 | I23: 0 | K23: 50 | L23: 0.0002712379557 | M23: 1.781248732e-07 | N23: 0 | O23: 0 | P23: 0 | Q23: 0 | R23: 0 | S23: 0 | U23: 50 | V23: 2.09358861e-07 | W23: 6.416519688e-11 | X23: 0 | Y23: 0 | Z23: 0 | AA23: 0 | AB23: 0 | AC23: 0 | AE23: 50 | AF23: 3.117098798e-05 | AG23: 1.227349079e-08 | AH23: 0 | AI23: 0 | AJ23: 0 | AK23: 0 | AL23: 0 | AM23: 0
A24: 60 | B24: 0.0006060760439 | C24: 2.574426501e-06 | D24: 0 | E24: 0 | F24: 0 | G24: 0 | H24: 0 | I24: 0 | K24: 60 | L24: 0.000605470377 | M24: 1.781376021e-06 | N24: 0 | O24: 0 | P24: 0 | Q24: 0 | R24: 0 | S24: 0 | U24: 60 | V24: 4.676510513e-07 | W24: 7.949137693e-10 | X24: 0 | Y24: 0 | Z24: 0 | AA24: 0 | AB24: 0 | AC24: 0 | AE24: 60 | AF24: 6.961215345e-05 | AG24: 1.419616918e-07 | AH24: 0 | AI24: 0 | AJ24: 0 | AK24: 0 | AL24: 0 | AM24: 0
A25: 70 | B25: 0.001073522851 | C25: 1.199746155e-05 | D25: 0 | E25: 0 | F25: 0 | G25: 0 | H25: 0 | I25: 0 | K25: 70 | L25: 0.001072737813 | M25: 9.134789131e-06 | N25: 0 | O25: 0 | P25: 0 | Q25: 0 | R25: 0 | S25: 0 | U25: 70 | V25: 8.288911064e-07 | W25: 4.676645654e-09 | X25: 0 | Y25: 0 | Z25: 0 | AA25: 0 | AB25: 0 | AC25: 0 | AE25: 70 | AF25: 0.0001233679443 | AG25: 7.985947134e-07 | AH25: 0 | AI25: 0 | AJ25: 0 | AK25: 0 | AL25: 0 | AM25: 0
A26: 80 | B26: 0.001644514474 | C26: 3.818138615e-05 | D26: 0 | E26: 0 | F26: 0 | G26: 0 | H26: 0 | I26: 0 | K26: 80 | L26: 0.0016435997 | M26: 3.095720064e-05 | N26: 0 | O26: 0 | P26: 0 | Q26: 0 | R26: 0 | S26: 0 | U26: 80 | V26: 1.270322804e-06 | W26: 1.738882151e-08 | X26: 0 | Y26: 0 | Z26: 0 | AA26: 0 | AB26: 0 | AC26: 0 | AE26: 80 | AF26: 0.0001890518291 | AG26: 2.879919859e-06 | AH26: 0 | AI26: 0 | AJ26: 0 | AK26: 0 | AL26: 0 | AM26: 0
A27: 90 | B27: 0.002285589879 | C27: 9.414542749e-05 | D27: 0 | E27: 0 | F27: 0 | G27: 0 | H27: 0 | I27: 0 | K27: 90 | L27: 0.002284594143 | M27: 7.972459967e-05 | N27: 0 | O27: 0 | P27: 0 | Q27: 0 | R27: 0 | S27: 0 | U27: 90 | V27: 1.766061185e-06 | W27: 4.779961043e-08 | X27: 0 | Y27: 0 | Z27: 0 | AA27: 0 | AB27: 0 | AC27: 0 | AE27: 90 | AF27: 0.0002628126795 | AG27: 7.7468253e-06 | AH27: 0 | AI27: 0 | AJ27: 0 | AK27: 0 | AL27: 0 | AM27: 0
A28: 100 | B28: 0.002966449207 | C28: 0.0001940506927 | D28: 0 | E28: 0 | F28: 0 | G28: 0 | H28: 0 | I28: 0 | K28: 100 | L28: 0.002965413837 | M28: 0.0001695526284 | N28: 0 | O28: 0 | P28: 0 | Q28: 0 | R28: 0 | S28: 0 | U28: 100 | V28: 2.292653815e-06 | W28: 1.065979505e-07 | X28: 0 | Y28: 0 | Z28: 0 | AA28: 0 | AB28: 0 | AC28: 0 | AE28: 100 | AF28: 0.0003411616595 | AG28: 1.700456894e-05 | AH28: 0 | AI28: 0 | AJ28: 0 | AK28: 0 | AL28: 0 | AM28: 0
A29: 110 | B29: 0.003662497641 | C29: 0.0003509471539 | D29: 0 | E29: 0 | F29: 0 | G29: 0 | H29: 0 | I29: 0 | K29: 110 | L29: 0.003661454898 | M29: 0.0003138652865 | N29: 0 | O29: 0 | P29: 0 | Q29: 0 | R29: 0 | S29: 0 | U29: 110 | V29: 2.83105818e-06 | W29: 2.044674465e-07 | X29: 0 | Y29: 0 | Z29: 0 | AA29: 0 | AB29: 0 | AC29: 0 | AE29: 110 | AF29: 0.0004212661369 | AG29: 3.223068559e-05 | AH29: 0 | AI29: 0 | AJ29: 0 | AK29: 0 | AL29: 0 | AM29: 0
A30: 120 | B30: 0.004355067815 | C30: 0.0005752301667 | D30: 0 | E30: 0 | F30: 0 | G30: 0 | H30: 0 | I30: 0 | K30: 120 | L30: 0.004354041507 | M30: 0.0005236821057 | N30: 0 | O30: 0 | P30: 0 | Q30: 0 | R30: 0 | S30: 0 | U30: 120 | V30: 3.366818047e-06 | W30: 3.505847659e-07 | X30: 0 | Y30: 0 | Z30: 0 | AA30: 0 | AB30: 0 | AC30: 0 | AE30: 120 | AF30: 0.0005009757931 | AG30: 5.475977803e-05 | AH30: 0 | AI30: 0 | AJ30: 0 | AK30: 0 | AL30: 0 | AM30: 0
A31: 130 | B31: 0.005030695413 | C31: 0.000873925745 | D31: 0 | E31: 0 | F31: 0 | G31: 0 | H31: 0 | I31: 0 | K31: 130 | L31: 0.005029702287 | M31: 0.0008067417601 | N31: 0 | O31: 0 | P31: 0 | Q31: 0 | R31: 0 | S31: 0 | U31: 130 | V31: 3.889504618e-06 | W31: 5.517451727e-07 | X31: 0 | Y31: 0 | Z31: 0 | AA31: 0 | AB31: 0 | AC31: 0 | AE31: 130 | AF31: 0.0005787394337 | AG31: 8.556325948e-05 | AH31: 0 | AI31: 0 | AJ31: 0 | AK31: 0 | AL31: 0 | AM31: 0
A32: 140 | B32: 0.005680131326 | C32: 0.001250628154 | D32: 0 | E32: 0 | F32: 0 | G32: 0 | H32: 0 | I32: 0 | K32: 140 | L32: 0.005679182562 | M32: 0.001167324931 | N32: 0 | O32: 0 | P32: 0 | Q32: 0 | R32: 0 | S32: 0 | U32: 140 | V32: 4.391952604e-06 | W32: 8.120742687e-07 | X32: 0 | Y32: 0 | Z32: 0 | AA32: 0 | AB32: 0 | AC32: 0 | AE32: 140 | AF32: 0.0006534913241 | AG32: 0.0001252143106 | AH32: 0 | AI32: 0 | AJ32: 0 | AK32: 0 | AL32: 0 | AM32: 0
A33: 150 | B33: 0.006297387462 | C33: 0.001705843454 | D33: 0 | E33: 0 | F33: 0 | G33: 0 | H33: 0 | I33: 0 | K33: 150 | L33: 0.006296490008 | M33: 0.001606532737 | N33: 0 | O33: 0 | P33: 0 | Q33: 0 | R33: 0 | S33: 0 | U33: 150 | V33: 4.869521813e-06 | W33: 1.133150959e-06 | X33: 0 | Y33: 0 | Z33: 0 | AA33: 0 | AB33: 0 | AC33: 0 | AE33: 150 | AF33: 0.0007245413382 | AG33: 0.0001739111046 | AH33: 0 | AI33: 0 | AJ33: 0 | AK33: 0 | AL33: 0 | AM33: 0
A34: 160 | B34: 0.006878922707 | C34: 0.002237529609 | D34: 0 | E34: 0 | F34: 0 | G34: 0 | H34: 0 | I34: 0 | K34: 160 | L34: 0.006878080379 | M34: 0.002122799777 | N34: 0 | O34: 0 | P34: 0 | Q34: 0 | R34: 0 | S34: 0 | U34: 160 | V34: 5.319467004e-06 | W34: 1.514360737e-06 | X34: 0 | Y34: 0 | Z34: 0 | AA34: 0 | AB34: 0 | AC34: 0 | AE34: 160 | AF34: 0.000791481218 | AG34: 0.0002315317907 | AH34: 0 | AI34: 0 | AJ34: 0 | AK34: 0 | AL34: 0 | AM34: 0
A35: 170 | B35: 0.007422989658 | C35: 0.002841689324 | D35: 0 | E35: 0 | F35: 0 | G35: 0 | H35: 0 | I35: 0 | K35: 170 | L35: 0.007422203998 | M35: 0.002712484363 | N35: 0 | O35: 0 | P35: 0 | Q35: 0 | R35: 0 | S35: 0 | U35: 170 | V35: 5.7404321e-06 | W35: 1.953341749e-06 | X35: 0 | Y35: 0 | Z35: 0 | AA35: 0 | AB35: 0 | AC35: 0 | AE35: 170 | AF35: 0.000854109337 | AG35: 0.0002977015465 | AH35: 0 | AI35: 0 | AJ35: 0 | AK35: 0 | AL35: 0 | AM35: 0
A36: 180 | B36: 0.007929128295 | C36: 0.003512931084 | D36: 0 | E36: 0 | F36: 0 | G36: 0 | H36: 0 | I36: 0 | K36: 180 | L36: 0.007928399235 | M36: 0.003370440415 | N36: 0 | O36: 0 | P36: 0 | Q36: 0 | R36: 0 | S36: 0 | U36: 180 | V36: 6.132058141e-06 | W36: 2.446435872e-06 | X36: 0 | Y36: 0 | Z36: 0 | AA36: 0 | AB36: 0 | AC36: 0 | AE36: 180 | AF36: 0.0009123723817 | AG36: 0.0003718593466 | AH36: 0 | AI36: 0 | AJ36: 0 | AK36: 0 | AL36: 0 | AM36: 0
A37: 190 | B37: 0.008397782022 | C37: 0.00424495677 | D37: 0 | E37: 0 | F37: 0 | G37: 0 | H37: 0 | I37: 0 | K37: 190 | L37: 0.008397108377 | M37: 0.004090521904 | N37: 0 | O37: 0 | P37: 0 | Q37: 0 | R37: 0 | S37: 0 | U37: 190 | V37: 6.494685955e-06 | W37: 2.989096879e-06 | X37: 0 | Y37: 0 | Z37: 0 | AA37: 0 | AB37: 0 | AC37: 0 | AE37: 190 | AF37: 0.0009663211249 | AG37: 0.000453317839 | AH37: 0 | AI37: 0 | AJ37: 0 | AK37: 0 | AL37: 0 | AM37: 0
A38: 200 | B38: 0.008830010825 | C38: 0.005030961567 | D38: 0 | E38: 0 | F38: 0 | G38: 0 | H38: 0 | I38: 0 | K38: 200 | L38: 0.008829390662 | M38: 0.004866001007 | N38: 0 | O38: 0 | P38: 0 | Q38: 0 | R38: 0 | S38: 0 | U38: 200 | V38: 6.829134034e-06 | W38: 3.576234883e-06 | X38: 0 | Y38: 0 | Z38: 0 | AA38: 0 | AB38: 0 | AC38: 0 | AE38: 200 | AF38: 0.001016077385 | AG38: 0.0005413135571 | AH38: 0 | AI38: 0 | AJ38: 0 | AK38: 0 | AL38: 0 | AM38: 0
A39: 210 | B39: 0.009227279459 | C39: 0.005863947414 | D39: 0 | E39: 0 | F39: 0 | G39: 0 | H39: 0 | I39: 0 | K39: 210 | L39: 0.009226710367 | M39: 0.005689898735 | N39: 0 | O39: 0 | P39: 0 | Q39: 0 | R39: 0 | S39: 0 | U39: 210 | V39: 7.136534494e-06 | W39: 4.202492572e-06 | X39: 0 | Y39: 0 | Z39: 0 | AA39: 0 | AB39: 0 | AC39: 0 | AE39: 210 | AF39: 0.001061809627 | AG39: 0.0006350469952 | AH39: 0 | AI39: 0 | AJ39: 0 | AK39: 0 | AL39: 0 | AM39: 0
A40: 220 | B40: 0.009591302602 | C40: 0.006736959003 | D40: 0 | E40: 0 | F40: 0 | G40: 0 | H40: 0 | I40: 0 | K40: 220 | L40: 0.009590781889 | M40: 0.006555235942 | N40: 0 | O40: 0 | P40: 0 | Q40: 0 | R40: 0 | S40: 0 | U40: 220 | V40: 7.418213156e-06 | W40: 4.862457612e-06 | X40: 0 | Y40: 0 | Z40: 0 | AA40: 0 | AB40: 0 | AC40: 0 | AE40: 220 | AF40: 0.001103715123 | AG40: 0.0007337132882 | AH40: 0 | AI40: 0 | AJ40: 0 | AK40: 0 | AL40: 0 | AM40: 0
A41: 230 | B41: 0.009923932821 | C41: 0.007643254329 | D41: 0 | E41: 0 | F41: 0 | G41: 3.353859709e-40 | H41: 0 | I41: 0 | K41: 230 | L41: 0.009923457656 | M41: 0.007455216309 | N41: 0 | O41: 0 | P41: 0 | Q41: 2.165735832e-40 | R41: 0 | S41: 0 | U41: 230 | V41: 7.675602778e-06 | W41: 5.550819556e-06 | X41: 0 | Y41: 0 | Z41: 0 | AA41: 0 | AB41: 0 | AC41: 0 | AE41: 230 | AF41: 0.001142007048 | AG41: 0.0008365247775 | AH41: 0 | AI41: 0 | AJ41: 0 | AK41: 0 | AL41: 0 | AM41: 0
A42: 240 | B42: 0.01022708046 | C42: 0.008576422114 | D42: 0 | E42: 0 | F42: 0 | G42: 0 | H42: 0 | I42: 0 | K42: 240 | L42: 0.01022664798 | M42: 0.008383353748 | N42: 0 | O42: 0 | P42: 0 | Q42: 8.543805724e-40 | R42: 0 | S42: 0 | U42: 240 | V42: 7.910181008e-06 | W42: 6.262480821e-06 | X42: 0 | Y42: 0 | Z42: 0 | AA42: 0 | AB42: 0 | AC42: 0 | AE42: 240 | AF42: 0.001176905248 | AG42: 0.0009427268879 | AH42: 0 | AI42: 0 | AJ42: 0 | AK42: 1.860925687e-40 | AL42: 0 | AM42: 0
A43: 250 | B43: 0.01050265723 | C43: 0.009530457427 | D43: 0 | E43: 0 | F43: 0 | G43: 0 | H43: 0 | I43: 0 | K43: 250 | L43: 0.01050226458 | M43: 0.009333555779 | N43: 0 | O43: 0 | P43: 0 | Q43: 0 | R43: 0 | S43: 0 | U43: 250 | V43: 8.12342667e-06 | W43: 6.992630949e-06 | X43: 0 | Y43: 0 | Z43: 0 | AA43: 0 | AB43: 0 | AC43: 0 | AE43: 250 | AF43: 0.001208629742 | AG43: 0.001051608677 | AH43: 0 | AI43: 0 | AJ43: 0 | AK43: 0 | AL43: 0 | AM43: 0
A44: 260 | B44: 0.01075253719 | C44: 0.01049980527 | D44: 0 | E44: 3.467129431e-40 | F44: 0 | G44: 7.444348731e-38 | H44: 0 | I44: 0 | K44: 260 | L44: 0.01075218161 | M44: 0.010300173 | N44: 0 | O44: 0 | P44: 0 | Q44: 2.445082283e-38 | R44: 0 | S44: 0 | U44: 260 | V44: 8.316789582e-06 | W44: 7.736792343e-06 | X44: 0 | Y44: 0 | Z44: 0 | AA44: 0 | AB44: 0 | AC44: 0 | AE44: 260 | AF44: 0.001237396231 | AG44: 0.001162509255 | AH44: 0 | AI44: 0 | AJ44: 0 | AK44: 0 | AL44: 0 | AM44: 0
A45: 270 | B45: 0.01097853067 | C45: 0.01147938018 | D45: 0 | E45: 1.163239034e-39 | F45: 0 | G45: 4.849421326e-37 | H45: 0 | I45: 0 | K45: 270 | L45: 0.01097820952 | M45: 0.01127802308 | N45: 0 | O45: 4.860283183e-40 | P45: 0 | Q45: 3.144793724e-37 | R45: 0 | S45: 0 | U45: 270 | V45: 8.491670315e-06 | W45: 8.490844386e-06 | X45: 0 | Y45: 0 | Z45: 0 | AA45: 1.065314908e-40 | AB45: 0 | AC45: 0 | AE45: 270 | AF45: 0.001263413085 | AG45: 0.00127482109 | AH45: 0 | AI45: 0 | AJ45: 0 | AK45: 2.388300325e-38 | AL45: 0 | AM45: 0
A46: 280 | B46: 0.01118236754 | C46: 0.01246456841 | D46: 0 | E46: 0 | F46: 0 | G46: 3.269543061e-36 | H46: 0 | I46: 0 | K46: 280 | L46: 0.01118207829 | M46: 0.01226239603 | N46: 0 | O46: 6.718501208e-39 | P46: 0 | Q46: 1.404313357e-36 | R46: 0 | S46: 0 | U46: 280 | V46: 8.649407216e-06 | W46: 9.251031592e-06 | X46: 0 | Y46: 0 | Z46: 0 | AA46: 6.798992368e-40 | AB46: 0 | AC46: 0 | AE46: 280 | AF46: 0.001286879417 | AG46: 0.001387991006 | AH46: 0 | AI46: 1.48082163e-40 | AJ46: 0 | AK46: 1.092577814e-37 | AL46: 0 | AM46: 0
A47: 290 | B47: 0.01136568718 | C47: 0.01345121764 | D47: 0 | E47: 4.343773398e-39 | F47: 0 | G47: 2.360351308e-35 | H47: 0 | I47: 1.126965081e-40 | K47: 290 | L47: 0.01136542745 | M47: 0.01324904618 | N47: 0 | O47: 0 | P47: 0 | Q47: 1.069702213e-35 | R47: 0 | S47: 1.094223716e-40 | U47: 290 | V47: 8.791268696e-06 | W47: 1.001396026e-05 | X47: 0 | Y47: 0 | Z47: 0 | AA47: 2.526954923e-39 | AB47: 0 | AC47: 0 | AE47: 290 | AF47: 0.001307983934 | AG47: 0.001501519539 | AH47: 0 | AI47: 1.631416103e-39 | AJ47: 0 | AK47: 5.320694769e-37 | AL47: 0 | AM47: 0
A48: 300 | B48: 0.01153003353 | C48: 0.01443561838 | D48: 0 | E48: 2.370629592e-37 | F48: 0 | G48: 1.295072359e-34 | H48: 0 | I48: 1.337578556e-40 | K48: 300 | L48: 0.01152980108 | M48: 0.014234175 | N48: 0 | O48: 0 | P48: 0 | Q48: 7.274288414e-35 | R48: 0 | S48: 1.847078342e-40 | U48: 300 | V48: 8.918449321e-06 | W48: 1.077658712e-05 | X48: 0 | Y48: 0 | Z48: 0 | AA48: 2.071335289e-38 | AB48: 0 | AC48: 0 | AE48: 300 | AF48: 0.001326904355 | AG48: 0.001614959147 | AH48: 0 | AI48: 0 | AJ48: 0 | AK48: 4.391901781e-36 | AL48: 0 | AM48: 0
A49: 310 | B49: 0.01167685349 | C49: 0.01541447985 | D49: 0 | E49: 1.209205307e-36 | F49: 0 | G49: 5.496093157e-34 | H49: 0 | I49: 0 | K49: 310 | L49: 0.01167664623 | M49: 0.01521440792 | N49: 0 | O49: 3.548756827e-37 | P49: 0 | Q49: 3.501368172e-34 | R49: 0 | S49: 0 | U49: 310 | V49: 9.032068599e-06 | W49: 1.153620266e-05 | X49: 0 | Y49: 0 | Z49: 0 | AA49: 1.324725412e-37 | AB49: 0 | AC49: 0 | AE49: 310 | AF49: 0.001343807234 | AG49: 0.001727911664 | AH49: 0 | AI49: 0 | AJ49: 0 | AK49: 2.524523228e-35 | AL49: 0 | AM49: 0
A50: 320 | B50: 0.01180749781 | C50: 0.01638490267 | D50: 0 | E50: 6.036637453e-36 | F50: 0 | G50: 1.911112141e-33 | H50: 0 | I50: 5.432495266e-40 | K50: 320 | L50: 0.01180731379 | M50: 0.01618676754 | N50: 0 | O50: 2.02748208e-36 | P50: 0 | Q50: 1.333706204e-33 | R50: 0 | S50: 0 | U50: 320 | V50: 9.133171663e-06 | W50: 1.229041112e-05 | X50: 0 | Y50: 0 | Z50: 0 | AA50: 5.8159443e-37 | AB50: 0 | AC50: 0 | AE50: 320 | AF50: 0.001358848056 | AG50: 0.001840025282 | AH50: 0 | AI50: 6.082244058e-38 | AJ50: 0 | AK50: 1.048116891e-34 | AL50: 0 | AM50: 0
A51: 330 | B51: 0.01192322366 | C51: 0.01734435001 | D51: 0 | E51: 3.48123427e-35 | F51: 0 | G51: 5.404708218e-33 | H51: 0 | I51: 3.147561436e-38 | K51: 330 | L51: 0.01192306106 | M51: 0.01714864496 | N51: 0 | O51: 5.786284242e-36 | P51: 0 | Q51: 4.254229841e-33 | R51: 0 | S51: 2.857913752e-38 | U51: 330 | V51: 9.222731242e-06 | W51: 1.30371087e-05 | X51: 0 | Y51: 1.831172902e-39 | Z51: 0 | AA51: 2.050561092e-36 | AB51: 0 | AC51: 0 | AE51: 330 | AF51: 0.001372171538 | AG51: 0.001950991291 | AH51: 0 | AI51: 4.210206561e-37 | AJ51: 0 | AK51: 3.591753818e-34 | AL51: 0 | AM51: 2.964565607e-39
A52: 340 | B52: 0.01202519828 | C52: 0.01829061833 | D52: 0 | E52: 1.707608001e-34 | F52: 0 | G52: 1.137948304e-32 | H52: 0 | I52: 1.483559281e-37 | K52: 340 | L52: 0.01202505543 | M52: 0.0180977706 | N52: 0 | O52: 3.111877634e-35 | P52: 0 | Q52: 1.092527486e-32 | R52: 0 | S52: 1.389013943e-37 | U52: 340 | V52: 9.301650496e-06 | W52: 1.3774461e-05 | X52: 0 | Y52: 6.05054009e-39 | Z52: 0 | AA52: 6.172915494e-36 | AB52: 0 | AC52: 0 | AE52: 340 | AF52: 0.001383912045 | AG52: 0.002060540717 | AH52: 0 | AI52: 1.077533995e-36 | AJ52: 0 | AK52: 1.039772167e-33 | AL52: 0 | AM52: 1.506537447e-38
A53: 350 | B53: 0.01211450335 | C53: 0.01922180857 | D53: 0 | E53: 6.732978207e-34 | F53: 0 | G53: 1.224758171e-32 | H53: 0 | I53: 6.030659354e-37 | K53: 350 | L53: 0.01211437869 | M53: 0.01903218516 | N53: 0 | O53: 1.855903641e-34 | P53: 0 | Q53: 1.954641282e-32 | R53: 0 | S53: 5.438458631e-37 | U53: 350 | V53: 9.370766382e-06 | W53: 1.450088051e-05 | X53: 0 | Y53: 1.702619888e-38 | Z53: 0 | AA53: 1.500859962e-35 | AB53: 0 | AC53: 3.643453928e-40 | AE53: 350 | AF53: 0.001394194091 | AG53: 0.002168440977 | AH53: 0 | AI53: 4.573042704e-36 | AJ53: 0 | AK53: 2.343342103e-33 | AL53: 0 | AM53: 5.677315372e-38
A54: 360 | B54: 0.01219213972 | C54: 0.02013629841 | D54: 0 | E54: 2.232688918e-33 | F54: 0 | G54: 0 | H54: 0 | I54: 2.928977008e-36 | K54: 360 | L54: 0.01219203181 | M54: 0.01995021169 | N54: 0 | O54: 8.054269008e-34 | P54: 0 | Q54: 9.380569997e-33 | R54: 0 | S54: 2.623513101e-36 | U54: 360 | V54: 9.430853326e-06 | W54: 1.521500466e-05 | X54: 0 | Y54: 9.646039339e-38 | Z54: 0 | AA54: 2.461106685e-35 | AB54: 0 | AC54: 1.718039177e-39 | AE54: 360 | AF54: 0.00140313289 | AG54: 0.002274492632 | AH54: 0 | AI54: 2.788590035e-35 | AJ54: 0 | AK54: 3.182361782e-33 | AL54: 0 | AM54: 2.702355248e-37
A55: 370 | B55: 0.01225903237 | C55: 0.02103271582 | D55: 0 | E55: 6.402773477e-33 | F55: 0 | G55: 0 | H55: 0 | I55: 1.346736413e-35 | K55: 370 | L55: 0.01225893988 | M55: 0.02085042882 | N55: 0 | O55: 2.745527314e-33 | P55: 0 | Q55: 0 | R55: 0 | S55: 1.231707408e-35 | U55: 370 | V55: 9.482627032e-06 | W55: 1.591567489e-05 | X55: 0 | Y55: 5.057111864e-37 | Z55: 0 | AA55: 4.368036292e-36 | AB55: 0 | AC55: 8.312239419e-39 | AE55: 370 | AF55: 0.001410834918 | AG55: 0.002378526277 | AH55: 0 | AI55: 1.258695766e-34 | AJ55: 0 | AK55: 0 | AL55: 0 | AM55: 1.294716648e-36
A56: 380 | B56: 0.01231603529 | C56: 0.02190991431 | D56: 0 | E56: 1.56770737e-32 | F56: 0 | G56: 0 | H56: 0 | I56: 5.166860763e-35 | K56: 380 | L56: 0.01231595699 | M56: 0.02173164567 | N56: 0 | O56: 8.07847474e-33 | P56: 0 | Q56: 0 | R56: 0 | S56: 4.8137831e-35 | U56: 380 | V56: 9.526748306e-06 | W56: 1.660191677e-05 | X56: 0 | Y56: 1.938015759e-36 | Z56: 0 | AA56: 0 | AB56: 0 | AC56: 3.344641324e-38 | AE56: 380 | AF56: 0.001417398484 | AG56: 0.002480399611 | AH56: 0 | AI56: 4.309513914e-34 | AJ56: 0 | AK56: 0 | AL56: 0 | AM56: 5.158284069e-36
A57: 390 | B57: 0.0123639364 | C57: 0.02276694979 | D57: 0 | E57: 3.092142442e-32 | F57: 0 | G57: 0 | H57: 0 | I57: 1.679745179e-34 | K57: 390 | L57: 0.01236387116 | M57: 0.02259287838 | N57: 0 | O57: 2.110913591e-32 | P57: 0 | Q57: 0 | R57: 0 | S57: 1.584393025e-34 | U57: 390 | V57: 9.563826815e-06 | W57: 1.727292149e-05 | X57: 0 | Y57: 5.965582859e-36 | Z57: 0 | AA57: 0 | AB57: 0 | AC57: 1.121958112e-37 | AE57: 390 | AF57: 0.00142291429 | AG57: 0.002579994698 | AH57: 0 | AI57: 1.247496496e-33 | AJ57: 0 | AK57: 0 | AL57: 0 | AM57: 1.719279498e-35
A58: 400 | B58: 0.01240346225 | C58: 0.02360305934 | D58: 0 | E58: 4.101164567e-32 | F58: 0 | G58: 0 | H58: 0 | I58: 4.790829539e-34 | K58: 400 | L58: 0.01240340902 | M58: 0.02343332846 | N58: 0 | O58: 4.72182839e-32 | P58: 0 | Q58: 0 | R58: 0 | S58: 4.563548511e-34 | U58: 400 | V58: 9.594424729e-06 | W58: 1.792802863e-05 | X58: 0 | Y58: 1.609242092e-35 | Z58: 0 | AA58: 0 | AB58: 0 | AC58: 3.277741159e-37 | AE58: 400 | AF58: 0.00142746597 | AG58: 0.002677215434 | AH58: 0 | AI58: 3.23143027e-33 | AJ58: 0 | AK58: 0 | AL58: 0 | AM58: 4.99942998e-35
A59: 410 | B59: 0.01243528246 | C59: 0.02441764155 | D59: 0 | E59: 0 | F59: 0 | G59: 0 | H59: 0 | I59: 1.214193839e-33 | K59: 410 | L59: 0.01243524029 | M59: 0.02425236282 | N59: 0 | O59: 8.209824467e-32 | P59: 0 | Q59: 0 | R59: 0 | S59: 1.169435532e-33 | U59: 410 | V59: 9.619060198e-06 | W59: 1.856671039e-05 | X59: 0 | Y59: 3.900945082e-35 | Z59: 0 | AA59: 0 | AB59: 0 | AC59: 8.529925434e-37 | AE59: 410 | AF59: 0.00143113061 | AG59: 0.002771985205 | AH59: 0 | AI59: 7.385177023e-33 | AJ59: 0 | AK59: 0 | AL59: 0 | AM59: 1.294564647e-34
A60: 420 | B60: 0.01246001405 | C60: 0.02521023861 | D60: 0 | E60: 0 | F60: 0 | G60: 2.113733481e-31 | H60: 0 | I60: 2.69339559e-33 | K60: 420 | L60: 0.01245998205 | M60: 0.02504949554 | N60: 0 | O60: 7.932791342e-32 | P60: 0 | Q60: 0 | R60: 0 | S60: 2.63266359e-33 | U60: 420 | V60: 9.638210649e-06 | W60: 1.918855702e-05 | X60: 0 | Y60: 8.168753125e-35 | Z60: 0 | AA60: 0 | AB60: 0 | AC60: 1.96038738e-36 | AE60: 420 | AF60: 0.001433979238 | AG60: 0.002864244757 | AH60: 0 | AI60: 1.38152411e-32 | AJ60: 0 | AK60: 0 | AL60: 0 | AM60: 2.955361904e-34
A61: 430 | B61: 0.01247822542 | C61: 0.02598052009 | D61: 0 | E61: 0 | F61: 0 | G61: 1.474576493e-29 | H61: 0 | I61: 4.992399739e-33 | K61: 430 | L61: 0.01247820278 | M61: 0.02582437126 | N61: 0 | O61: 0 | P61: 0 | Q61: 4.700849046e-30 | R61: 0 | S61: 4.987983448e-33 | U61: 430 | V61: 9.652315898e-06 | W61: 1.979326362e-05 | X61: 0 | Y61: 1.328462655e-34 | Z61: 0 | AA61: 0 | AB61: 0 | AC61: 3.828949048e-36 | AE61: 430 | AF61: 0.001436077285 | AG61: 0.002953950234 | AH61: 0 | AI61: 1.730125428e-32 | AJ61: 0 | AK61: 0 | AL61: 0 | AM61: 5.715833589e-34
A62: 440 | B62: 0.01249044013 | C62: 0.02672826806 | D62: 0 | E62: 0 | F62: 0 | G62: 4.922568516e-29 | H62: 0 | I62: 6.816011139e-33 | K62: 440 | L62: 0.01249042609 | M62: 0.02657675007 | N62: 0 | O62: 0 | P62: 0 | Q62: 3.246366079e-29 | R62: 0 | S62: 7.114563597e-33 | U62: 440 | V62: 9.661781055e-06 | W62: 2.038061808e-05 | X62: 0 | Y62: 1.123833337e-34 | Z62: 0 | AA62: 6.705737941e-33 | AB62: 0 | AC62: 5.783431563e-36 | AE62: 440 | AF62: 0.00143748502 | AG62: 0.003041071417 | AH62: 0 | AI62: 0 | AJ62: 0 | AK62: 1.827845613e-30 | AL62: 0 | AM62: 8.478401629e-34
A63: 450 | B63: 0.01249714039 | C63: 0.02745336378 | D63: 0 | E63: 0 | F63: 0 | G63: 1.100597138e-28 | H63: 0 | I63: 2.959280775e-33 | K63: 450 | L63: 0.01249713425 | M63: 0.02730649387 | N63: 0 | O63: 0 | P63: 0 | Q63: 9.132668794e-29 | R63: 0 | S63: 4.148256192e-33 | U63: 450 | V63: 9.666979241e-06 | W63: 2.09504902e-05 | X63: 0 | Y63: 0 | Z63: 0 | AA63: 4.051970538e-32 | AB63: 0 | AC63: 4.450056784e-36 | AE63: 450 | AF63: 0.001438257953 | AG63: 0.003125590112 | AH63: 0 | AI63: 0 | AJ63: 0 | AK63: 7.557001984e-30 | AL63: 0 | AM63: 6.032277234e-34
A64: 460 | B64: 0.01249877031 | C64: 0.02815577557 | D64: 0 | E64: 0 | F64: 0 | G64: 1.88848044e-28 | H64: 0 | I64: 0 | K64: 460 | L64: 0.01249877145 | M64: 0.02801355402 | N64: 0 | O64: 0 | P64: 0 | Q64: 1.853827898e-28 | R64: 0 | S64: 0 | U64: 460 | V64: 9.668254108e-06 | W64: 2.150282184e-05 | X64: 0 | Y64: 0 | Z64: 0 | AA64: 1.104281643e-31 | AB64: 0 | AC64: 0 | AE64: 460 | AF64: 0.00143844721 | AG64: 0.003207498702 | AH64: 0 | AI64: 0 | AJ64: 0 | AK64: 1.844524994e-29 | AL64: 0 | AM64: 0
A65: 470 | B65: 0.01249573896 | C65: 0.02883554798 | D65: 0 | E65: 0 | F65: 0 | G65: 2.431045736e-28 | H65: 0 | I65: 0 | K65: 470 | L65: 0.01249574678 | M65: 0.02869796023 | N65: 0 | O65: 0 | P65: 0 | Q65: 2.909337208e-28 | R65: 0 | S65: 0 | U65: 470 | V65: 9.665922179e-06 | W65: 2.203761803e-05 | X65: 0 | Y65: 0 | Z65: 0 | AA65: 2.198965338e-31 | AB65: 0 | AC65: 0 | AE65: 470 | AF65: 0.00143809988 | AG65: 0.003286798843 | AH65: 0 | AI65: 0 | AJ65: 0 | AK65: 3.400815445e-29 | AL65: 0 | AM65: 0
A66: 480 | B66: 0.01248842314 | C66: 0.02949279204 | D66: 0 | E66: 0 | F66: 0 | G66: 1.752859835e-28 | H66: 0 | I66: 0 | K66: 480 | L66: 0.01248843711 | M66: 0.0293598106 | N66: 0 | O66: 0 | P66: 0 | Q66: 3.290424105e-28 | R66: 0 | S66: 0 | U66: 480 | V66: 9.660275013e-06 | W66: 2.255493901e-05 | X66: 0 | Y66: 0 | Z66: 0 | AA66: 3.399359149e-31 | AB66: 0 | AC66: 0 | AE66: 480 | AF66: 0.001437259338 | AG66: 0.003363500285 | AH66: 0 | AI66: 0 | AJ66: 0 | AK66: 4.8262664e-29 | AL66: 0 | AM66: 0
A67: 490 | B67: 0.01247716997 | C67: 0.03012767642 | D67: 0 | E67: 1.728635082e-29 | F67: 0 | G67: 0 | H67: 0 | I67: 0 | K67: 490 | L67: 0.01247718959 | M67: 0.02999926264 | N67: 0 | O67: 0 | P67: 0 | Q67: 1.411728627e-28 | R67: 0 | S67: 0 | U67: 490 | V67: 9.651581196e-06 | W67: 2.305489303e-05 | X67: 0 | Y67: 0 | Z67: 0 | AA67: 3.788727833e-31 | AB67: 0 | AC67: 0 | AE67: 490 | AF67: 0.001435965543 | AG67: 0.003437619819 | AH67: 0 | AI67: 0 | AJ67: 0 | AK67: 4.561895262e-29 | AL67: 0 | AM67: 0
A68: 500 | B68: 0.01246229926 | C68: 0.03074041967 | D68: 0 | E68: 7.487262319e-29 | F68: 0 | G68: 0 | H68: 0 | I68: 0 | K68: 500 | L68: 0.01246232406 | M68: 0.03061652522 | N68: 0 | O68: 0 | P68: 0 | Q68: 0 | R68: 0 | S68: 0 | U68: 500 | V68: 9.640088192e-06 | W68: 2.353762995e-05 | X68: 0 | Y68: 0 | Z68: 0 | AA68: 1.56685679e-31 | AB68: 0 | AC68: 0 | AE68: 500 | AF68: 0.00143425531 | AG68: 0.003509180334 | AH68: 0 | AI68: 0 | AJ68: 0 | AK68: 0 | AL68: 0 | AM68: 0
A69: 510 | B69: 0.01244410571 | C69: 0.03133128315 | D69: 0 | E69: 1.848804535e-28 | F69: 0 | G69: 0 | H69: 0 | I69: 0 | K69: 510 | L69: 0.01244413527 | M69: 0.03121185146 | N69: 0 | O69: 5.692545639e-29 | P69: 0 | Q69: 0 | R69: 0 | S69: 0 | U69: 510 | V69: 9.62602403e-06 | W69: 2.400333547e-05 | X69: 0 | Y69: 0 | Z69: 0 | AA69: 0 | AB69: 0 | AC69: 0 | AE69: 510 | AF69: 0.001432162564 | AG69: 0.003578209968 | AH69: 0 | AI69: 0 | AJ69: 0 | AK69: 0 | AL69: 0 | AM69: 0
A70: 520 | B70: 0.01242286092 | C70: 0.0319005648 | D70: 0 | E70: 3.548515923e-28 | F70: 0 | G70: 0 | H70: 0 | I70: 0 | K70: 520 | L70: 0.01242289485 | M70: 0.03178553223 | N70: 0 | O70: 1.946002318e-28 | P70: 0 | Q70: 0 | R70: 0 | S70: 0 | U70: 520 | V70: 9.609598872e-06 | W70: 2.4452226e-05 | X70: 0 | Y70: 0 | Z70: 0 | AA70: 0 | AB70: 0 | AC70: 0 | AE70: 520 | AF70: 0.00142971857 | AG70: 0.003644741354 | AH70: 0 | AI70: 3.603146652e-30 | AJ70: 0 | AK70: 0 | AL70: 0 | AM70: 0
A71: 530 | B71: 0.01239881526 | C71: 0.03244859352 | D71: 0 | E71: 5.605802769e-28 | F71: 0 | G71: 0 | H71: 0 | I71: 0 | K71: 530 | L71: 0.01239885321 | M71: 0.0323378905 | N71: 0 | O71: 4.401204709e-28 | P71: 0 | Q71: 0 | R71: 0 | S71: 0 | U71: 530 | V71: 9.591006445e-06 | W71: 2.48845441e-05 | X71: 0 | Y71: 6.30433538e-32 | Z71: 0 | AA71: 0 | AB71: 0 | AC71: 0 | AE71: 530 | AF71: 0.001426952149 | AG71: 0.003708810948 | AH71: 0 | AI71: 2.096493851e-29 | AJ71: 0 | AK71: 0 | AL71: 0 | AM71: 0
A72: 540 | B72: 0.01237219956 | C72: 0.03297572423 | D72: 0 | E72: 7.158950751e-28 | F72: 0 | G72: 0 | H72: 0 | I72: 2.362710609e-30 | K72: 540 | L72: 0.01237224119 | M72: 0.03286927621 | N72: 0 | O72: 7.955513359e-28 | P72: 0 | Q72: 0 | R72: 0 | S72: 1.918240563e-30 | U72: 540 | V72: 9.570425362e-06 | W72: 2.530055434e-05 | X72: 0 | Y72: 2.410158035e-31 | Z72: 0 | AA72: 0 | AB72: 0 | AC72: 9.832353579e-34 | AE72: 540 | AF72: 0.001423889874 | AG72: 0.003770458424 | AH72: 0 | AI72: 5.525532504e-29 | AJ72: 0 | AK72: 0 | AL72: 0 | AM72: 1.707875081e-31
A73: 550 | B73: 0.0123432267 | C73: 0.03348233342 | D73: 0 | E73: 6.410456983e-28 | F73: 0 | G73: 0 | H73: 0 | I73: 1.015119185e-29 | K73: 550 | L73: 0.01234327171 | M73: 0.03338006175 | N73: 0 | O73: 1.18988079e-27 | P73: 0 | Q73: 0 | R73: 0 | S73: 9.430751094e-30 | U73: 550 | V73: 9.548020333e-06 | W73: 2.570053974e-05 | X73: 0 | Y73: 5.677238502e-31 | Z73: 0 | AA73: 0 | AB73: 0 | AC73: 6.459574125e-33 | AE73: 550 | AF73: 0.001420556249 | AG73: 0.003829726143 | AH73: 0 | AI73: 1.104039987e-28 | AJ73: 0 | AK73: 0 | AL73: 0 | AM73: 1.002431021e-30
A74: 560 | B74: 0.01231209301 | C74: 0.03396881527 | D74: 0 | E74: 4.556756572e-29 | F74: 0 | G74: 6.631541885e-28 | H74: 0 | I74: 2.470075736e-29 | K74: 560 | L74: 0.01231214111 | M74: 0.03387063795 | N74: 0 | O74: 1.422271203e-27 | P74: 0 | Q74: 0 | R74: 0 | S74: 2.374747169e-29 | U74: 560 | V74: 9.523943278e-06 | W74: 2.608479845e-05 | X74: 0 | Y74: 1.060933708e-30 | Z74: 0 | AA74: 0 | AB74: 0 | AC74: 1.722469121e-32 | AE74: 560 | AF74: 0.001416973876 | AG74: 0.00388665868 | AH74: 0 | AI74: 1.821113759e-28 | AJ74: 0 | AK74: 0 | AL74: 0 | AM74: 2.620160771e-30
A75: 570 | B75: 0.01227897962 | C75: 0.0344355781 | D75: 0 | E75: 0 | F75: 0 | G75: 1.555319626e-26 | H75: 0 | I75: 4.747086389e-29 | K75: 570 | L75: 0.01227903055 | M75: 0.03434141049 | N75: 0 | O75: 1.110151795e-27 | P75: 0 | Q75: 5.625513212e-27 | R75: 0 | S75: 4.654657344e-29 | U75: 570 | V75: 9.49833435e-06 | W75: 2.645364098e-05 | X75: 0 | Y75: 1.655394689e-30 | Z75: 0 | AA75: 0 | AB75: 0 | AC75: 3.482000592e-32 | AE75: 570 | AF75: 0.001413163605 | AG75: 0.003941302399 | AH75: 0 | AI75: 2.490266198e-28 | AJ75: 0 | AK75: 0 | AL75: 0 | AM75: 5.241465638e-30
A76: 580 | B76: 0.01224405366 | C76: 0.03488304136 | D76: 0 | E76: 0 | F76: 0 | G76: 4.008096139e-26 | H76: 0 | I76: 7.7174105e-29 | K76: 580 | L76: 0.01224410719 | M76: 0.03479279676 | N76: 0 | O76: 0 | P76: 0 | Q76: 2.879461495e-26 | R76: 0 | S76: 7.690477576e-29 | U76: 580 | V76: 9.471322875e-06 | W76: 2.680738761e-05 | X76: 0 | Y76: 2.129377662e-30 | Z76: 0 | AA76: 5.692570009e-30 | AB76: 0 | AC76: 5.895044031e-32 | AE76: 580 | AF76: 0.001409144676 | AG76: 0.003993705083 | AH76: 0 | AI76: 2.627967843e-28 | AJ76: 0 | AK76: 1.697350541e-27 | AL76: 0 | AM76: 8.801750678e-30
A77: 590 | B77: 0.0122074694 | C77: 0.03531163288 | D77: 0 | E77: 0 | F77: 0 | G77: 7.364401687e-26 | H77: 0 | I77: 1.069358271e-28 | K77: 590 | L77: 0.0122075253 | M77: 0.03522522306 | N77: 0 | O77: 0 | P77: 0 | Q77: 6.452472556e-26 | R77: 0 | S77: 1.084377565e-28 | U77: 590 | V77: 9.44302821e-06 | W77: 2.714636614e-05 | X77: 0 | Y77: 2.029091064e-30 | Z77: 0 | AA77: 3.092502319e-29 | AB77: 0 | AC77: 8.526015232e-32 | AE77: 590 | AF77: 0.001404934846 | AG77: 0.004043915605 | AH77: 0 | AI77: 1.409587159e-28 | AJ77: 0 | AK77: 5.667841859e-27 | AL77: 0 | AM77: 1.262381848e-29
A78: 600 | B78: 0.01216936923 | C78: 0.03572178648 | D78: 0 | E78: 0 | F78: 0 | G78: 1.116794883e-25 | H78: 0 | I78: 1.209595948e-28 | K78: 600 | L78: 0.0121694273 | M78: 0.03563912215 | N78: 0 | O78: 0 | P78: 0 | Q78: 1.105677101e-25 | R78: 0 | S78: 1.258633882e-28 | U78: 600 | V78: 9.413560538e-06 | W78: 2.747090994e-05 | X78: 0 | Y78: 6.26654285e-31 | Z78: 0 | AA78: 6.983782399e-29 | AB78: 0 | AC78: 1.025671805e-31 | AE78: 600 | AF78: 0.001400550507 | AG78: 0.004091983635 | AH78: 0 | AI78: 0 | AJ78: 0 | AK78: 1.142962779e-26 | AL78: 0 | AM78: 1.501149971e-29
A79: 610 | B79: 0.01212988463 | C79: 0.03611393984 | D79: 0 | E79: 0 | F79: 0 | G79: 1.44225894e-25 | H79: 0 | I79: 9.170667026e-29 | K79: 610 | L79: 0.01212994468 | M79: 0.03603493108 | N79: 0 | O79: 0 | P79: 0 | Q79: 1.589656994e-25 | R79: 0 | S79: 1.019636184e-28 | U79: 610 | V79: 9.383021593e-06 | W79: 2.778135619e-05 | X79: 0 | Y79: 0 | Z79: 0 | AA79: 1.200421939e-28 | AB79: 0 | AC79: 9.027041371e-32 | AE79: 610 | AF79: 0.001396006795 | AG79: 0.004137959386 | AH79: 0 | AI79: 0 | AJ79: 0 | AK79: 1.841886927e-26 | AL79: 0 | AM79: 1.287570387e-29
A80: 620 | B80: 0.01208913701 | C80: 0.03648853267 | D80: 0 | E80: 0 | F80: 0 | G80: 1.552821494e-25 | H80: 0 | I80: 0 | K80: 620 | L80: 0.01208919886 | M80: 0.03641308928 | N80: 0 | O80: 0 | P80: 0 | Q80: 1.945144851e-25 | R80: 0 | S80: 0 | U80: 620 | V80: 9.351505324e-06 | W80: 2.807804437e-05 | X80: 0 | Y80: 0 | Z80: 0 | AA80: 1.730523782e-28 | AB80: 0 | AC80: 1.720822889e-32 | AE80: 620 | AF80: 0.001391317687 | AG80: 0.00418189339 | AH80: 0 | AI80: 0 | AJ80: 0 | AK80: 2.516669041e-26 | AL80: 0 | AM80: 1.584252581e-30
A81: 630 | B81: 0.01204723854 | C81: 0.03684600509 | D81: 0 | E81: 0 | F81: 0 | G81: 1.236172484e-25 | H81: 0 | I81: 0 | K81: 630 | L81: 0.01204730204 | M81: 0.03677403689 | N81: 0 | O81: 0 | P81: 0 | Q81: 1.945280348e-25 | R81: 0 | S81: 0 | U81: 630 | V81: 9.319098514e-06 | W81: 2.836131486e-05 | X81: 0 | Y81: 0 | Z81: 0 | AA81: 2.126692613e-28 | AB81: 0 | AC81: 0 | AE81: 630 | AF81: 0.001386496092 | AG81: 0.004223836296 | AH81: 0 | AI81: 0 | AJ81: 0 | AK81: 2.913074329e-26 | AL81: 0 | AM81: 0
A82: 640 | B82: 0.01200429283 | C82: 0.03718679621 | D82: 0 | E82: 0 | F82: 0 | G82: 2.558711218e-26 | H82: 0 | I82: 0 | K82: 640 | L82: 0.01200435782 | M82: 0.03711821333 | N82: 0 | O82: 0 | P82: 0 | Q82: 1.3069777e-25 | R82: 0 | S82: 0 | U82: 640 | V82: 9.285881338e-06 | W82: 2.863150783e-05 | X82: 0 | Y82: 0 | Z82: 0 | AA82: 2.147493841e-28 | AB82: 0 | AC82: 0 | AE82: 640 | AF82: 0.001381553939 | AG82: 0.004263838704 | AH82: 0 | AI82: 0 | AJ82: 0 | AK82: 2.675202058e-26 | AL82: 0 | AM82: 0
A83: 650 | B83: 0.01196039563 | C83: 0.03751134289 | D83: 0 | E83: 1.651495603e-26 | F83: 0 | G83: 0 | H83: 0 | I83: 0 | K83: 650 | L83: 0.01196046197 | M83: 0.03744605601 | N83: 0 | O83: 0 | P83: 0 | Q83: 0 | R83: 0 | S83: 0 | U83: 650 | V83: 9.251927879e-06 | W83: 2.888896219e-05 | X83: 0 | Y83: 0 | Z83: 0 | AA83: 1.491871762e-28 | AB83: 0 | AC83: 0 | AE83: 650 | AF83: 0.00137650225 | AG83: 0.004301951009 | AH83: 0 | AI83: 0 | AJ83: 0 | AK83: 1.384222043e-26 | AL83: 0 | AM83: 0
A84: 660 | B84: 0.01191563541 | C84: 0.03782007867 | D84: 0 | E84: 6.314319903e-26 | F84: 0 | G84: 0 | H84: 0 | I84: 0 | K84: 660 | L84: 0.01191570298 | M84: 0.03775799923 | N84: 0 | O84: 0 | P84: 0 | Q84: 0 | R84: 0 | S84: 0 | U84: 660 | V84: 9.217306608e-06 | W84: 2.91340147e-05 | X84: 0 | Y84: 0 | Z84: 0 | AA84: 0 | AB84: 0 | AC84: 0 | AE84: 660 | AF84: 0.001371351211 | AG84: 0.004338223276 | AH84: 0 | AI84: 0 | AJ84: 0 | AK84: 0 | AL84: 0 | AM84: 0
A85: 670 | B85: 0.01187009399 | C85: 0.03811343287 | D85: 0 | E85: 1.318972014e-25 | F85: 0 | G85: 0 | H85: 0 | I85: 0 | K85: 670 | L85: 0.01187016267 | M85: 0.03805447324 | N85: 0 | O85: 4.020905066e-26 | P85: 0 | Q85: 0 | R85: 0 | S85: 0 | U85: 670 | V85: 9.182080814e-06 | W85: 2.936699918e-05 | X85: 0 | Y85: 0 | Z85: 0 | AA85: 0 | AB85: 0 | AC85: 0 | AE85: 670 | AF85: 0.001366110237 | AG85: 0.004372705125 | AH85: 0 | AI85: 0 | AJ85: 0 | AK85: 0 | AL85: 0 | AM85: 0
A86: 680 | B86: 0.01182384698 | C86: 0.03839182981 | D86: 0 | E86: 2.204135267e-25 | F86: 0 | G86: 0 | H86: 0 | I86: 0 | K86: 680 | L86: 0.01182391666 | M86: 0.03833590344 | N86: 0 | O86: 1.29714073e-25 | P86: 0 | Q86: 0 | R86: 0 | S86: 0 | U86: 680 | V86: 9.146309012e-06 | W86: 2.958824589e-05 | X86: 0 | Y86: 0 | Z86: 0 | AA86: 0 | AB86: 0 | AC86: 0 | AE86: 680 | AF86: 0.001360788035 | AG86: 0.004405445631 | AH86: 0 | AI86: 0 | AJ86: 0 | AK86: 0 | AL86: 0 | AM86: 0
A87: 690 | B87: 0.0117769643 | C87: 0.03865568808 | D87: 0 | E87: 3.192267669e-25 | F87: 0 | G87: 0 | H87: 0 | I87: 0 | K87: 690 | L87: 0.01177703489 | M87: 0.03860270963 | N87: 0 | O87: 2.577185326e-25 | P87: 0 | Q87: 0 | R87: 0 | S87: 0 | U87: 690 | V87: 9.110045308e-06 | W87: 2.979808096e-05 | X87: 0 | Y87: 6.173341628e-30 | Z87: 0 | AA87: 0 | AB87: 0 | AC87: 0 | AE87: 690 | AF87: 0.001355392652 | AG87: 0.004436493247 | AH87: 0 | AI87: 1.051980326e-26 | AJ87: 0 | AK87: 0 | AL87: 0 | AM87: 0
A88: 700 | B88: 0.01172951063 | C88: 0.03890542003 | D88: 0 | E88: 4.096548771e-25 | F88: 0 | G88: 0 | H88: 0 | I88: 0 | K88: 700 | L88: 0.01172958202 | M88: 0.03885530549 | N88: 0 | O88: 4.179160778e-25 | P88: 0 | Q88: 0 | R88: 0 | S88: 0 | U88: 700 | V88: 9.073339737e-06 | W88: 2.999682585e-05 | X88: 0 | Y88: 1.053885008e-28 | Z88: 0 | AA88: 0 | AB88: 0 | AC88: 0 | AE88: 700 | AF88: 0.001349931534 | AG88: 0.004465895731 | AH88: 0 | AI88: 2.839820706e-26 | AJ88: 0 | AK88: 0 | AL88: 0 | AM88: 0
A89: 710 | B89: 0.01168154578 | C89: 0.03914143127 | D89: 0 | E89: 4.626978691e-25 | F89: 0 | G89: 0 | H89: 0 | I89: 0 | K89: 710 | L89: 0.01168161789 | M89: 0.03909409804 | N89: 0 | O89: 5.911089266e-25 | P89: 0 | Q89: 0 | R89: 0 | S89: 0 | U89: 710 | V89: 9.036238581e-06 | W89: 3.018479704e-05 | X89: 0 | Y89: 2.59187159e-28 | Z89: 0 | AA89: 0 | AB89: 0 | AC89: 0 | AE89: 710 | AF89: 0.001344411565 | AG89: 0.004493700086 | AH89: 0 | AI89: 5.310059147e-26 | AJ89: 0 | AK89: 0 | AL89: 0 | AM89: 0
A90: 720 | B90: 0.01163312507 | C90: 0.03936412026 | D90: 0 | E90: 4.396878619e-25 | F90: 0 | G90: 0 | H90: 0 | I90: 4.152107214e-27 | K90: 720 | L90: 0.01163319783 | M90: 0.03931948724 | N90: 0 | O90: 7.420180552e-25 | P90: 0 | Q90: 0 | R90: 0 | S90: 3.633355545e-27 | U90: 720 | V90: 8.99878465e-06 | W90: 3.036230559e-05 | X90: 0 | Y90: 4.67111614e-28 | Z90: 0 | AA90: 0 | AB90: 0 | AC90: 2.197966616e-30 | AE90: 720 | AF90: 0.001338839115 | AG90: 0.00451995251 | AH90: 0 | AI90: 8.306987476e-26 | AJ90: 0 | AK90: 0 | AL90: 0 | AM90: 3.575825352e-28
A91: 730 | B91: 0.01158429969 | C91: 0.03957387801 | D91: 0 | E91: 2.953612717e-25 | F91: 0 | G91: 0 | H91: 0 | I91: 1.174028745e-26 | K91: 730 | L91: 0.01158437302 | M91: 0.03953186564 | N91: 0 | O91: 8.180981799e-25 | P91: 0 | Q91: 0 | R91: 0 | S91: 1.114894907e-26 | U91: 730 | V91: 8.96101755e-06 | W91: 3.052965696e-05 | X91: 0 | Y91: 7.142938814e-28 | Z91: 0 | AA91: 0 | AB91: 0 | AC91: 7.910300117e-30 | AE91: 730 | AF91: 0.001333220076 | AG91: 0.00454469836 | AH91: 0 | AI91: 1.14356067e-25 | AJ91: 0 | AK91: 0 | AL91: 0 | AM91: 1.212824639e-27
A92: 740 | B92: 0.011535117 | C92: 0.0397710878 | D92: 0 | E92: 0 | F92: 0 | G92: 6.448155493e-25 | H92: 0 | I92: 2.235836791e-26 | K92: 740 | L92: 0.01153519083 | M92: 0.03973161813 | N92: 0 | O92: 7.515529891e-25 | P92: 0 | Q92: 0 | R92: 0 | S92: 2.179102249e-26 | U92: 740 | V92: 8.922973927e-06 | W92: 3.06871507e-05 | X92: 0 | Y92: 9.661925844e-28 | Z92: 0 | AA92: 0 | AB92: 0 | AC92: 1.614810266e-29 | AE92: 740 | AF92: 0.0013275599 | AG92: 0.004567982113 | AH92: 0 | AI92: 1.401221776e-25 | AJ92: 0 | AK92: 0 | AL92: 0 | AM92: 2.438605034e-27
A93: 750 | B93: 0.01148562083 | C93: 0.039956125 | D93: 0 | E93: 0 | F93: 0 | G93: 2.891626081e-24 | H93: 0 | I93: 3.566252932e-26 | K93: 750 | L93: 0.01148569509 | M93: 0.0399191217 | N93: 0 | O93: 4.655557835e-25 | P93: 0 | Q93: 1.554264413e-24 | R93: 0 | S93: 3.527507418e-26 | U93: 750 | V93: 8.884687689e-06 | W93: 3.083508032e-05 | X93: 0 | Y93: 1.164994326e-27 | Z93: 0 | AA93: 0 | AB93: 0 | AC93: 2.676220676e-29 | AE93: 750 | AF93: 0.00132186363 | AG93: 0.004589847345 | AH93: 0 | AI93: 1.505374216e-25 | AJ93: 0 | AK93: 0 | AL93: 0 | AM93: 4.009175013e-27
A94: 760 | B94: 0.01143585172 | C94: 0.0401293569 | D94: 0 | E94: 0 | F94: 0 | G94: 5.82633573e-24 | H94: 0 | I94: 5.05037804e-26 | K94: 760 | L94: 0.01143592637 | M94: 0.04009474533 | N94: 0 | O94: 0 | P94: 0 | Q94: 4.608502526e-24 | R94: 0 | S94: 5.051244827e-26 | U94: 760 | V94: 8.846190216e-06 | W94: 3.097373316e-05 | X94: 0 | Y94: 1.229254773e-27 | Z94: 0 | AA94: 1.434581708e-27 | AB94: 0 | AC94: 3.898441692e-29 | AE94: 760 | AF94: 0.001316135937 | AG94: 0.004610336709 | AH94: 0 | AI94: 1.332575955e-25 | AJ94: 0 | AK94: 3.318062289e-25 | AL94: 0 | AM94: 5.806500104e-27
A95: 770 | B95: 0.01138584721 | C95: 0.04029114261 | D95: 0 | E95: 0 | F95: 0 | G95: 9.290099548e-24 | H95: 0 | I95: 6.470972447e-26 | K95: 770 | L95: 0.01138592218 | M95: 0.04025884979 | N95: 0 | O95: 0 | P95: 0 | Q95: 8.45822961e-24 | R95: 0 | S95: 6.538011582e-26 | U95: 770 | V95: 8.807510545e-06 | W95: 3.110339023e-05 | X95: 0 | Y95: 1.058322089e-27 | Z95: 0 | AA95: 4.576578303e-27 | AB95: 0 | AC95: 5.123559993e-29 | AE95: 770 | AF95: 0.001310381139 | AG95: 0.00462949192 | AH95: 0 | AI95: 7.465140992e-26 | AJ95: 0 | AK95: 7.980952986e-25 | AL95: 0 | AM95: 7.5923912e-27
A96: 780 | B96: 0.01133564203 | C96: 0.04044183297 | D96: 0 | E96: 0 | F96: 0 | G96: 1.297878581e-23 | H96: 0 | I96: 7.495501165e-26 | K96: 780 | L96: 0.01133571728 | M96: 0.04041178763 | N96: 0 | O96: 0 | P96: 0 | Q96: 1.284958385e-23 | R96: 0 | S96: 7.657575237e-26 | U96: 780 | V96: 8.768675552e-06 | W96: 3.122432621e-05 | X96: 0 | Y96: 5.42729669e-28 | Z96: 0 | AA96: 8.549477374e-27 | AB96: 0 | AC96: 6.099547199e-29 | AE96: 780 | AF96: 0.001304603235 | AG96: 0.004647353747 | AH96: 0 | AI96: 0 | AJ96: 0 | AK96: 1.36727252e-24 | AL96: 0 | AM96: 8.990034332e-27
A97: 790 | B97: 0.01128526833 | C97: 0.04058177056 | D97: 0 | E97: 0 | F97: 0 | G97: 1.643647052e-23 | H97: 0 | I97: 7.678241688e-26 | K97: 790 | L97: 0.01128534381 | M97: 0.04055390312 | N97: 0 | O97: 0 | P97: 0 | Q97: 1.734735301e-23 | R97: 0 | S97: 7.962156907e-26 | U97: 790 | V97: 8.72971011e-06 | W97: 3.133680937e-05 | X97: 0 | Y97: 0 | Z97: 0 | AA97: 1.309564684e-26 | AB97: 0 | AC97: 6.478485161e-29 | AE97: 790 | AF97: 0.001298805926 | AG97: 0.004663962005 | AH97: 0 | AI97: 0 | AJ97: 0 | AK97: 1.995888587e-24 | AL97: 0 | AM97: 9.482390748e-27
A98: 800 | B98: 0.01123475585 | C98: 0.04071128964 | D98: 0 | E98: 0 | F98: 0 | G98: 1.90678896e-23 | H98: 0 | I98: 6.483332935e-26 | K98: 800 | L98: 0.01123483152 | M98: 0.04068553224 | N98: 0 | O98: 0 | P98: 0 | Q98: 2.133539884e-23 | R98: 0 | S98: 6.907805886e-26 | U98: 800 | V98: 8.69063724e-06 | W98: 3.144110158e-05 | X98: 0 | Y98: 0 | Z98: 0 | AA98: 1.777206425e-26 | AB98: 0 | AC98: 5.831042256e-29 | AE98: 800 | AF98: 0.001292992635 | AG98: 0.004679355558 | AH98: 0 | AI98: 0 | AJ98: 0 | AK98: 2.615003695e-24 | AL98: 0 | AM98: 8.434777936e-27
A99: 810 | B99: 0.01118413214 | C99: 0.04083071623 | D99: 0 | E99: 0 | F99: 0 | G99: 2.017278701e-23 | H99: 0 | I99: 3.333239535e-26 | K99: 810 | L99: 0.01118420795 | M99: 0.04080700266 | N99: 0 | O99: 0 | P99: 0 | Q99: 2.404161951e-23 | R99: 0 | S99: 3.90154707e-26 | U99: 810 | V99: 8.651478245e-06 | W99: 3.153745829e-05 | X99: 0 | Y99: 0 | Z99: 0 | AA99: 2.195115555e-26 | AB99: 0 | AC99: 3.6812605e-29 | AE99: 810 | AF99: 0.001287166534 | AG99: 0.004693572313 | AH99: 0 | AI99: 0 | AJ99: 0 | AK99: 3.131384917e-24 | AL99: 0 | AM99: 5.147491716e-27
A100: 820 | B100: 0.01113342267 | C100: 0.04094036809 | D100: 0 | E100: 0 | F100: 0 | G100: 1.900286282e-23 | H100: 0 | I100: 0 | K100: 820 | L100: 0.01113349859 | M100: 0.04091863387 | N100: 0 | O100: 0 | P100: 0 | Q100: 2.458994622e-23 | R100: 0 | S100: 0 | U100: 820 | V100: 8.612252845e-06 | W100: 3.162612855e-05 | X100: 0 | Y100: 0 | Z100: 0 | AA100: 2.484667012e-26 | AB100: 0 | AC100: 0 | AE100: 820 | AF100: 0.001281330554 | AG100: 0.004706649228 | AH100: 0 | AI100: 0 | AJ100: 0 | AK100: 3.43225993e-24 | AL100: 0 | AM100: 0
A101: 830 | B101: 0.01108265102 | C101: 0.04104055483 | D101: 0 | E101: 0 | F101: 0 | G101: 1.483936769e-23 | H101: 0 | I101: 0 | K101: 830 | L101: 0.01108272702 | M101: 0.04102073712 | N101: 0 | O101: 0 | P101: 0 | Q101: 2.207892774e-23 | R101: 0 | S101: 0 | U101: 830 | V101: 8.572979286e-06 | W101: 3.17073551e-05 | X101: 0 | Y101: 0 | Z101: 0 | AA101: 2.55669827e-26 | AB101: 0 | AC101: 0 | AE101: 830 | AF101: 0.001275487412 | AG101: 0.004718622322 | AH101: 0 | AI101: 0 | AJ101: 0 | AK101: 3.393826771e-24 | AL101: 0 | AM101: 0
A102: 840 | B102: 0.01103183903 | C102: 0.04113157798 | D102: 0 | E102: 0 | F102: 0 | G102: 7.086592396e-24 | H102: 0 | I102: 0 | K102: 840 | L102: 0.01103191507 | M102: 0.0411136156 | N102: 0 | O102: 0 | P102: 0 | Q102: 1.568314759e-23 | R102: 0 | S102: 0 | U102: 840 | V102: 8.533674454e-06 | W102: 3.178137438e-05 | X102: 0 | Y102: 0 | Z102: 0 | AA102: 2.319519531e-26 | AB102: 0 | AC102: 0 | AE102: 840 | AF102: 0.001269639618 | AG102: 0.004729526676 | AH102: 0 | AI102: 0 | AJ102: 0 | AK102: 2.893288283e-24 | AL102: 0 | AM102: 0
A103: 850 | B103: 0.01098100688 | C103: 0.04121373108 | D103: 0 | E103: 6.179417128e-25 | F103: 0 | G103: 0 | H103: 0 | I103: 0 | K103: 850 | L103: 0.01098108294 | M103: 0.04119756447 | N103: 0 | O103: 0 | P103: 0 | Q103: 4.770409041e-24 | R103: 0 | S103: 0 | U103: 850 | V103: 8.494353972e-06 | W103: 3.18484166e-05 | X103: 0 | Y103: 0 | Z103: 0 | AA103: 1.689205234e-26 | AB103: 0 | AC103: 0 | AE103: 850 | AF103: 0.001263789498 | AG103: 0.004739396447 | AH103: 0 | AI103: 0 | AJ103: 0 | AK103: 1.823717606e-24 | AL103: 0 | AM103: 0
A104: 860 | B104: 0.01093017325 | C104: 0.04128729979 | D104: 0 | E104: 5.868119032e-24 | F104: 0 | G104: 0 | H104: 0 | I104: 0 | K104: 860 | L104: 0.01093024929 | M104: 0.041272871 | N104: 0 | O104: 0 | P104: 0 | Q104: 0 | R104: 0 | S104: 0 | U104: 860 | V104: 8.455032293e-06 | W104: 3.190870586e-05 | X104: 0 | Y104: 0 | Z104: 0 | AA104: 6.014353164e-27 | AB104: 0 | AC104: 0 | AE104: 860 | AF104: 0.001257939201 | AG104: 0.004748264883 | AH104: 0 | AI104: 0 | AJ104: 0 | AK104: 1.106203886e-25 | AL104: 0 | AM104: 0
A105: 870 | B105: 0.01087935542 | C105: 0.04135256201 | D105: 0 | E105: 1.273413209e-23 | F105: 0 | G105: 0 | H105: 0 | I105: 0 | K105: 870 | L105: 0.01087943143 | M105: 0.04133981468 | N105: 0 | O105: 1.781398423e-24 | P105: 0 | Q105: 0 | R105: 0 | S105: 0 | U105: 870 | V105: 8.41572279e-06 | W105: 3.196246017e-05 | X105: 0 | Y105: 0 | Z105: 0 | AA105: 0 | AB105: 0 | AC105: 0 | AE105: 870 | AF105: 0.001252090717 | AG105: 0.00475616433 | AH105: 0 | AI105: 0 | AJ105: 0 | AK105: 0 | AL105: 0 | AM105: 0
A106: 880 | B106: 0.01082856937 | C106: 0.04140978799 | D106: 0 | E106: 2.102116376e-23 | F106: 0 | G106: 0 | H106: 0 | I106: 0 | K106: 880 | L106: 0.01082864532 | M106: 0.04139866731 | N106: 0 | O106: 1.063903925e-23 | P106: 0 | Q106: 0 | R106: 0 | S106: 0 | U106: 880 | V106: 8.376437827e-06 | W106: 3.200989162e-05 | X106: 0 | Y106: 0 | Z106: 0 | AA106: 0 | AB106: 0 | AC106: 0 | AE106: 880 | AF106: 0.001246245886 | AG106: 0.00476312625 | AH106: 0 | AI106: 0 | AJ106: 0 | AK106: 0 | AL106: 0 | AM106: 0
A107: 890 | B107: 0.01077782988 | C107: 0.0414592405 | D107: 0 | E107: 3.030233906e-23 | F107: 0 | G107: 0 | H107: 0 | I107: 0 | K107: 890 | L107: 0.01077790575 | M107: 0.04144969318 | N107: 0 | O107: 2.20362932e-23 | P107: 0 | Q107: 0 | R107: 0 | S107: 0 | U107: 890 | V107: 8.337188837e-06 | W107: 3.205120642e-05 | X107: 0 | Y107: 0 | Z107: 0 | AA107: 0 | AB107: 0 | AC107: 0 | AE107: 890 | AF107: 0.001240406408 | AG107: 0.004769181237 | AH107: 0 | AI107: 3.735505583e-25 | AJ107: 0 | AK107: 0 | AL107: 0 | AM107: 0
A108: 900 | B108: 0.01072715061 | C108: 0.04150117496 | D108: 0 | E108: 3.989550906e-23 | F108: 0 | G108: 0 | H108: 1.686364544e-40 | I108: 0 | K108: 900 | L108: 0.01072722638 | M108: 0.04149314921 | N108: 0 | O108: 3.559143617e-23 | P108: 0 | Q108: 0 | R108: 1.107001204e-40 | S108: 0 | U108: 900 | V108: 8.297986393e-06 | W108: 3.208660504e-05 | X108: 0 | Y108: 3.318655902e-27 | Z108: 0 | AA108: 0 | AB108: 0 | AC108: 0 | AE108: 900 | AF108: 0.001234573856 | AG108: 0.004774359029 | AH108: 0 | AI108: 1.961499268e-24 | AJ108: 0 | AK108: 0 | AL108: 0 | AM108: 0
A109: 910 | B109: 0.01067654418 | C109: 0.04153583953 | D109: 0 | E109: 4.886082451e-23 | F109: 0 | G109: 0 | H109: 2.633440082e-40 | I109: 0 | K109: 910 | L109: 0.01067661984 | M109: 0.04152928503 | N109: 0 | O109: 5.054982943e-23 | P109: 0 | Q109: 0 | R109: 2.601287775e-40 | S109: 0 | U109: 910 | V109: 8.25884026e-06 | W109: 3.211628232e-05 | X109: 0 | Y109: 1.628342631e-26 | Z109: 0 | AA109: 0 | AB109: 0 | AC109: 0 | AE109: 910 | AF109: 0.001228749683 | AG109: 0.004778688529 | AH109: 0 | AI109: 3.98897908e-24 | AJ109: 0 | AK109: 0 | AL109: 0 | AM109: 0
A110: 920 | B110: 0.01062602227 | C110: 0.04156347536 | D110: 0 | E110: 5.602377138e-23 | F110: 0 | G110: 0 | H110: 3.085820358e-40 | I110: 0 | K110: 920 | L110: 0.01062609779 | M110: 0.04155834323 | N110: 0 | O110: 6.575665464e-23 | P110: 0 | Q110: 0 | R110: 4.367821203e-40 | S110: 0 | U110: 920 | V110: 8.219759465e-06 | W110: 3.214042756e-05 | X110: 0 | Y110: 3.278241233e-26 | Z110: 0 | AA110: 0 | AB110: 0 | AC110: 0 | AE110: 920 | AF110: 0.001222935232 | AG110: 0.004782197818 | AH110: 0 | AI110: 6.384715161e-24 | AJ110: 0 | AK110: 0 | AL110: 0 | AM110: 0
A111: 930 | B111: 0.01057559563 | C111: 0.04158431665 | D111: 0 | E111: 6.002663855e-23 | F111: 0 | G111: 0 | H111: 2.141948333e-40 | I111: 0 | K111: 930 | L111: 0.010575671 | M111: 0.04158055941 | N111: 0 | O111: 7.966418801e-23 | P111: 0 | Q111: 0 | R111: 5.534541205e-40 | S111: 0 | U111: 930 | V111: 8.180752343e-06 | W111: 3.215922467e-05 | X111: 0 | Y111: 5.223150178e-26 | Z111: 0 | AA111: 0 | AB111: 0 | AC111: 0 | AE111: 930 | AF111: 0.001217131744 | AG111: 0.004784914176 | AH111: 0 | AI111: 9.012903471e-24 | AJ111: 0 | AK111: 0 | AL111: 0 | AM111: 0
A112: 940 | B112: 0.01052527421 | C112: 0.04159859087 | D112: 0 | E112: 5.940916965e-23 | F112: 0 | G112: 0 | H112: 0 | I112: 2.183287722e-25 | K112: 940 | L112: 0.01052534942 | M112: 0.04159616241 | N112: 0 | O112: 9.037992981e-23 | P112: 0 | Q112: 0 | R112: 4.569183379e-40 | S112: 1.481659014e-25 | U112: 940 | V112: 8.141826586e-06 | W112: 3.217285226e-05 | X112: 0 | Y112: 7.352983645e-26 | Z112: 0 | AA112: 0 | AB112: 0 | AC112: 3.087685156e-29 | AE112: 940 | AF112: 0.001211340361 | AG112: 0.004786864098 | AH112: 0 | AI112: 1.166919671e-23 | AJ112: 0 | AK112: 0 | AL112: 1.023928519e-40 | AM112: 8.791511799e-27
A113: 950 | B113: 0.0104750672 | C113: 0.04160651885 | D113: 0 | E113: 5.271657745e-23 | F113: 0 | G113: 0 | H113: 0 | I113: 1.035856613e-24 | K113: 950 | L113: 0.01047514222 | M113: 0.04160537441 | N113: 0 | O113: 9.575896396e-23 | P113: 0 | Q113: 0 | R113: 0 | S113: 9.632698333e-25 | U113: 950 | V113: 8.102989296e-06 | W113: 3.218148377e-05 | X113: 0 | Y113: 9.502880367e-26 | Z113: 0 | AA113: 0 | AB113: 0 | AC113: 6.573733175e-28 | AE113: 950 | AF113: 0.001205562141 | AG113: 0.004788073309 | AH113: 0 | AI113: 1.408270161e-23 | AJ113: 0 | AK113: 0 | AL113: 0 | AM113: 1.022254054e-25
A114: 960 | B114: 0.01042498304 | C114: 0.04160831503 | D114: 0 | E114: 3.863037703e-23 | F114: 0 | G114: 0 | H114: 0 | I114: 2.073766374e-24 | K114: 960 | L114: 0.01042505788 | M114: 0.04160841114 | N114: 0 | O114: 9.354028364e-23 | P114: 0 | Q114: 0 | R114: 0 | S114: 2.005571406e-24 | U114: 960 | V114: 8.064247019e-06 | W114: 3.218528759e-05 | X114: 0 | Y114: 1.145489243e-25 | Z114: 0 | AA114: 0 | AB114: 0 | AC114: 1.467478569e-27 | AE114: 960 | AF114: 0.001199798059 | AG114: 0.004788566788 | AH114: 0 | AI114: 1.592499442e-23 | AJ114: 0 | AK114: 0 | AL114: 0 | AM114: 2.225878517e-25
A115: 970 | B115: 0.01037502955 | C115: 0.0416041875 | D115: 0 | E115: 1.611485467e-23 | F115: 0 | G115: 0 | H115: 0 | I115: 3.307787075e-24 | K115: 970 | L115: 0.01037510418 | M115: 0.04160548199 | N115: 0 | O115: 8.152276482e-23 | P115: 0 | Q115: 0 | R115: 0 | S115: 3.252623373e-24 | U115: 970 | V115: 8.025605791e-06 | W115: 3.218442719e-05 | X115: 0 | Y115: 1.294525613e-25 | Z115: 0 | AA115: 0 | AB115: 0 | AC115: 2.446058208e-27 | AE115: 970 | AF115: 0.001194049011 | AG115: 0.004788368781 | AH115: 0 | AI115: 1.682664536e-23 | AJ115: 0 | AK115: 0 | AL115: 0 | AM115: 3.675143355e-25
A116: 980 | B116: 0.0103252139 | C116: 0.04159433825 | D116: 0 | E116: 0 | F116: 0 | G116: 2.749160493e-23 | H116: 0 | I116: 4.687703808e-24 | K116: 980 | L116: 0.01032528832 | M116: 0.04159679019 | N116: 0 | O116: 5.777233908e-23 | P116: 0 | Q116: 0 | R116: 0 | S116: 4.655738338e-24 | U116: 980 | V116: 7.987071171e-06 | W116: 3.217906124e-05 | X116: 0 | Y116: 1.367762857e-25 | Z116: 0 | AA116: 0 | AB116: 0 | AC116: 3.557359904e-27 | AE116: 980 | AF116: 0.001188315824 | AG116: 0.004787502822 | AH116: 0 | AI116: 1.640111511e-23 | AJ116: 0 | AK116: 0 | AL116: 0 | AM116: 5.315881887e-25
A117: 990 | B117: 0.0102755427 | C117: 0.04157896328 | D117: 0 | E117: 0 | F117: 0 | G117: 1.137653305e-22 | H117: 0 | I117: 6.134820983e-24 | K117: 990 | L117: 0.01027561691 | M117: 0.04158253295 | N117: 0 | O117: 2.084807288e-23 | P117: 0 | Q117: 6.23007202e-23 | R117: 0 | S117: 6.13723931e-24 | U117: 990 | V117: 7.948648276e-06 | W117: 3.21693437e-05 | X117: 0 | Y117: 1.334217705e-25 | Z117: 0 | AA117: 0 | AB117: 0 | AC117: 4.742632351e-27 | AE117: 990 | AF117: 0.001182599261 | AG117: 0.004785991747 | AH117: 0 | AI117: 1.427519693e-23 | AJ117: 0 | AK117: 0 | AL117: 0 | AM117: 7.059990934e-25
A118: 1000 | B118: 0.01022602205 | C118: 0.04155825277 | D118: 0 | E118: 0 | F118: 0 | G118: 2.151882837e-22 | H118: 5.153487856e-39 | I118: 7.541278054e-24 | K118: 1000 | L118: 0.01022609603 | M118: 0.04156290164 | N118: 0 | O118: 0 | P118: 0 | Q118: 1.702127271e-22 | R118: 0 | S118: 7.589563169e-24 | U118: 1000 | V118: 7.910341812e-06 | W118: 3.215542399e-05 | X118: 0 | Y118: 1.16398626e-25 | Z118: 0 | AA118: 5.430325627e-26 | AB118: 0 | AC118: 5.919175098e-27 | AE118: 1000 | AF118: 0.001176900021 | AG118: 0.004783857717 | AH118: 0 | AI118: 1.012448461e-23 | AJ118: 0 | AK118: 1.244497628e-23 | AL118: 0 | AM118: 8.784146493e-25
A121: Saved 27/02/2023: 14:41:25 Level Number: 5
A123: BREAKTHROUGH RESULTS
A125: Advanced
A126: Pollutant Linkage: Inert Restorati, Attenution Layer, Beenham Grange Formation | K126: Pollutant Linkage: Inert Restorati, Attenution Layer, Beenham Grange Formation, Groundwater | U126: Pollutant Linkage: Inert Restorati, Attenution Layer, Beenham Grange Formation, River Enborne | AE126: Pollutant Linkage: Inert Restorati, Attenution Layer, Beenham Grange Formation, Spring Ditch
A127: Concentrations in mg/L in Beenham Grange Formation | K127: Concentrations in mg/L in Groundwater | U127: Concentrations in mg/L in River Enborne | AE127: Concentrations in mg/L in Spring Ditch
A129: Compared with EAL (GW) target concentration in mg/L | K129: No target concentrations specified for comparison | U129: Compared with EAL (River Enborne) target concentration in mg/L | AE129: Compared with EAL (Spring Ditch) target concentration in mg/L
B130: 0.266 | C130: 0.0482 | D130: 0.001 | E130: 0.004365 | F130: 2e-05 | G130: 0.002 | H130: 0.0002 | I130: 0.001 | V130: 0.266 | W130: 0.0276 | X130: 0.0047 | Y130: 0.028 | Z130: 0.0005 | AA130: 0.00175 | AB130: 0.0012 | AC130: 0.001 | AF130: 0.266 | AG130: 0.03 | AH130: 0.0047 | AI130: 0.028 | AJ130: 0.0005 | AK130: 0.0015 | AL130: 0.0012 | AM130: 0.005
A132: Time(years) | B132: Species1 | C132: Species2 | D132: Species3 | E132: Species4 | F132: Species5 | G132: Species6 | H132: Species7 | I132: Species8 | K132: Time(years) | L132: Species1 | M132: Species2 | N132: Species3 | O132: Species4 | P132: Species5 | Q132: Species6 | R132: Species7 | S132: Species8 | U132: Time(years) | V132: Species1 | W132: Species2 | X132: Species3 | Y132: Species4 | Z132: Species5 | AA132: Species6 | AB132: Species7 | AC132: Species8 | AE132: Time(years) | AF132: Species1 | AG132: Species2 | AH132: Species3 | AI132: Species4 | AJ132: Species5 | AK132: Species6 | AL132: Species7 | AM132: Species8
B133: Ammoniacal Nitrogen | C133: Barium | D133: Total Chromiun | E133: Copper | F133: Mercury | G133: Molybdenum | H133: Lead | I133: Antimony | L133: Ammoniacal Nitrogen | M133: Barium | N133: Total Chromiun | O133: Copper | P133: Mercury | Q133: Molybdenum | R133: Lead | S133: Antimony | V133: Ammoniacal Nitrogen | W133: Barium | X133: Total Chromiun | Y133: Copper | Z133: Mercury | AA133: Molybdenum | AB133: Lead | AC133: Antimony | AF133: Ammoniacal Nitrogen | AG133: Barium | AH133: Total Chromiun | AI133: Copper | AJ133: Mercury | AK133: Molybdenum | AL133: Lead | AM133: Antimony
A134: 10 | B134: 1.597107698e-12 | C134: 1.959288206e-22 | D134: 0 | E134: 0 | F134: 0 | G134: 0 | H134: 0 | I134: 0 | K134: 10 | L134: 1.542194118e-12 | M134: 0 | N134: 0 | O134: 0 | P134: 0 | Q134: 0 | R134: 0 | S134: 0 | U134: 10 | V134: 1.132204981e-15 | W134: 4.294760866e-26 | X134: 0 | Y134: 0 | Z134: 0 | AA134: 0 | AB134: 0 | AC134: 0 | AE134: 10 | AF134: 1.71404722e-13 | AG134: 2.145487248e-24 | AH134: 0 | AI134: 0 | AJ134: 0 | AK134: 0 | AL134: 0 | AM134: 0
A135: 20 | B135: 2.079373126e-07 | C135: 1.5145223e-15 | D135: 0 | E135: 0 | F135: 0 | G135: 0 | H135: 0 | I135: 0 | K135: 20 | L135: 2.060996247e-07 | M135: 9.841483819e-17 | N135: 0 | O135: 0 | P135: 0 | Q135: 0 | R135: 0 | S135: 0 | U135: 20 | V135: 1.573167886e-10 | W135: 2.714108201e-21 | X135: 0 | Y135: 0 | Z135: 0 | AA135: 0 | AB135: 0 | AC135: 0 | AE135: 20 | AF135: 2.350977945e-08 | AG135: 1.346921217e-18 | AH135: 0 | AI135: 0 | AJ135: 0 | AK135: 0 | AL135: 0 | AM135: 0
A136: 30 | B136: 1.103456844e-05 | C136: 5.955399692e-11 | D136: 0 | E136: 0 | F136: 0 | G136: 0 | H136: 0 | I136: 0 | K136: 30 | L136: 1.099073789e-05 | M136: 1.527668105e-11 | N136: 0 | O136: 0 | P136: 0 | Q136: 0 | R136: 0 | S136: 0 | U136: 30 | V136: 8.451105323e-09 | W136: 2.026682266e-15 | X136: 0 | Y136: 0 | Z136: 0 | AA136: 0 | AB136: 0 | AC136: 0 | AE136: 30 | AF136: 1.259865669e-06 | AG136: 5.265553e-13 | AH136: 0 | AI136: 0 | AJ136: 0 | AK136: 0 | AL136: 0 | AM136: 0
A137: 40 | B137: 8.15080335e-05 | C137: 1.216855308e-08 | D137: 0 | E137: 0 | F137: 0 | G137: 0 | H137: 0 | I137: 0 | K137: 40 | L137: 8.132488274e-05 | M137: 5.465174013e-09 | N137: 0 | O137: 0 | P137: 0 | Q137: 0 | R137: 0 | S137: 0 | U137: 40 | V137: 6.269571415e-08 | W137: 1.379635484e-12 | X137: 0 | Y137: 0 | Z137: 0 | AA137: 0 | AB137: 0 | AC137: 0 | AE137: 40 | AF137: 9.338402896e-06 | AG137: 2.94953394e-10 | AH137: 0 | AI137: 0 | AJ137: 0 | AK137: 0 | AL137: 0 | AM137: 0
A138: 50 | B138: 0.0002716293226 | C138: 3.007350639e-07 | D138: 0 | E138: 0 | F138: 0 | G138: 0 | H138: 0 | I138: 0 | K138: 50 | L138: 0.0002712379557 | M138: 1.781248732e-07 | N138: 0 | O138: 0 | P138: 0 | Q138: 0 | R138: 0 | S138: 0 | U138: 50 | V138: 2.09358861e-07 | W138: 6.416519688e-11 | X138: 0 | Y138: 0 | Z138: 0 | AA138: 0 | AB138: 0 | AC138: 0 | AE138: 50 | AF138: 3.117098798e-05 | AG138: 1.227349079e-08 | AH138: 0 | AI138: 0 | AJ138: 0 | AK138: 0 | AL138: 0 | AM138: 0
A139: 60 | B139: 0.0006060760439 | C139: 2.574426501e-06 | D139: 0 | E139: 0 | F139: 0 | G139: 0 | H139: 0 | I139: 0 | K139: 60 | L139: 0.000605470377 | M139: 1.781376021e-06 | N139: 0 | O139: 0 | P139: 0 | Q139: 0 | R139: 0 | S139: 0 | U139: 60 | V139: 4.676510513e-07 | W139: 7.949137693e-10 | X139: 0 | Y139: 0 | Z139: 0 | AA139: 0 | AB139: 0 | AC139: 0 | AE139: 60 | AF139: 6.961215345e-05 | AG139: 1.419616918e-07 | AH139: 0 | AI139: 0 | AJ139: 0 | AK139: 0 | AL139: 0 | AM139: 0
A140: 70 | B140: 0.001073522851 | C140: 1.199746155e-05 | D140: 0 | E140: 0 | F140: 0 | G140: 0 | H140: 0 | I140: 0 | K140: 70 | L140: 0.001072737813 | M140: 9.134789131e-06 | N140: 0 | O140: 0 | P140: 0 | Q140: 0 | R140: 0 | S140: 0 | U140: 70 | V140: 8.288911064e-07 | W140: 4.676645654e-09 | X140: 0 | Y140: 0 | Z140: 0 | AA140: 0 | AB140: 0 | AC140: 0 | AE140: 70 | AF140: 0.0001233679443 | AG140: 7.985947134e-07 | AH140: 0 | AI140: 0 | AJ140: 0 | AK140: 0 | AL140: 0 | AM140: 0
A141: 80 | B141: 0.001644514474 | C141: 3.818138615e-05 | D141: 0 | E141: 0 | F141: 0 | G141: 0 | H141: 0 | I141: 0 | K141: 80 | L141: 0.0016435997 | M141: 3.095720064e-05 | N141: 0 | O141: 0 | P141: 0 | Q141: 0 | R141: 0 | S141: 0 | U141: 80 | V141: 1.270322804e-06 | W141: 1.738882151e-08 | X141: 0 | Y141: 0 | Z141: 0 | AA141: 0 | AB141: 0 | AC141: 0 | AE141: 80 | AF141: 0.0001890518291 | AG141: 2.879919859e-06 | AH141: 0 | AI141: 0 | AJ141: 0 | AK141: 0 | AL141: 0 | AM141: 0
A142: 90 | B142: 0.002285589879 | C142: 9.414542749e-05 | D142: 0 | E142: 0 | F142: 0 | G142: 0 | H142: 0 | I142: 0 | K142: 90 | L142: 0.002284594143 | M142: 7.972459967e-05 | N142: 0 | O142: 0 | P142: 0 | Q142: 0 | R142: 0 | S142: 0 | U142: 90 | V142: 1.766061185e-06 | W142: 4.779961043e-08 | X142: 0 | Y142: 0 | Z142: 0 | AA142: 0 | AB142: 0 | AC142: 0 | AE142: 90 | AF142: 0.0002628126795 | AG142: 7.7468253e-06 | AH142: 0 | AI142: 0 | AJ142: 0 | AK142: 0 | AL142: 0 | AM142: 0
A143: 100 | B143: 0.002966449207 | C143: 0.0001940506927 | D143: 0 | E143: 0 | F143: 0 | G143: 0 | H143: 0 | I143: 0 | K143: 100 | L143: 0.002965413837 | M143: 0.0001695526284 | N143: 0 | O143: 0 | P143: 0 | Q143: 0 | R143: 0 | S143: 0 | U143: 100 | V143: 2.292653815e-06 | W143: 1.065979505e-07 | X143: 0 | Y143: 0 | Z143: 0 | AA143: 0 | AB143: 0 | AC143: 0 | AE143: 100 | AF143: 0.0003411616595 | AG143: 1.700456894e-05 | AH143: 0 | AI143: 0 | AJ143: 0 | AK143: 0 | AL143: 0 | AM143: 0
A144: 110 | B144: 0.003662497641 | C144: 0.0003509471539 | D144: 0 | E144: 0 | F144: 0 | G144: 0 | H144: 0 | I144: 0 | K144: 110 | L144: 0.003661454898 | M144: 0.0003138652865 | N144: 0 | O144: 0 | P144: 0 | Q144: 0 | R144: 0 | S144: 0 | U144: 110 | V144: 2.83105818e-06 | W144: 2.044674465e-07 | X144: 0 | Y144: 0 | Z144: 0 | AA144: 0 | AB144: 0 | AC144: 0 | AE144: 110 | AF144: 0.0004212661369 | AG144: 3.223068559e-05 | AH144: 0 | AI144: 0 | AJ144: 0 | AK144: 0 | AL144: 0 | AM144: 0
A145: 120 | B145: 0.004355067815 | C145: 0.0005752301667 | D145: 0 | E145: 0 | F145: 0 | G145: 0 | H145: 0 | I145: 0 | K145: 120 | L145: 0.004354041507 | M145: 0.0005236821057 | N145: 0 | O145: 0 | P145: 0 | Q145: 0 | R145: 0 | S145: 0 | U145: 120 | V145: 3.366818047e-06 | W145: 3.505847659e-07 | X145: 0 | Y145: 0 | Z145: 0 | AA145: 0 | AB145: 0 | AC145: 0 | AE145: 120 | AF145: 0.0005009757931 | AG145: 5.475977803e-05 | AH145: 0 | AI145: 0 | AJ145: 0 | AK145: 0 | AL145: 0 | AM145: 0
A146: 130 | B146: 0.005030695413 | C146: 0.000873925745 | D146: 0 | E146: 0 | F146: 0 | G146: 0 | H146: 0 | I146: 0 | K146: 130 | L146: 0.005029702287 | M146: 0.0008067417601 | N146: 0 | O146: 0 | P146: 0 | Q146: 0 | R146: 0 | S146: 0 | U146: 130 | V146: 3.889504618e-06 | W146: 5.517451727e-07 | X146: 0 | Y146: 0 | Z146: 0 | AA146: 0 | AB146: 0 | AC146: 0 | AE146: 130 | AF146: 0.0005787394337 | AG146: 8.556325948e-05 | AH146: 0 | AI146: 0 | AJ146: 0 | AK146: 0 | AL146: 0 | AM146: 0
A147: 140 | B147: 0.005680131326 | C147: 0.001250628154 | D147: 0 | E147: 0 | F147: 0 | G147: 0 | H147: 0 | I147: 0 | K147: 140 | L147: 0.005679182562 | M147: 0.001167324931 | N147: 0 | O147: 0 | P147: 0 | Q147: 0 | R147: 0 | S147: 0 | U147: 140 | V147: 4.391952604e-06 | W147: 8.120742687e-07 | X147: 0 | Y147: 0 | Z147: 0 | AA147: 0 | AB147: 0 | AC147: 0 | AE147: 140 | AF147: 0.0006534913241 | AG147: 0.0001252143106 | AH147: 0 | AI147: 0 | AJ147: 0 | AK147: 0 | AL147: 0 | AM147: 0
A148: 150 | B148: 0.006297387462 | C148: 0.001705843454 | D148: 0 | E148: 0 | F148: 0 | G148: 0 | H148: 0 | I148: 0 | K148: 150 | L148: 0.006296490008 | M148: 0.001606532737 | N148: 0 | O148: 0 | P148: 0 | Q148: 0 | R148: 0 | S148: 0 | U148: 150 | V148: 4.869521813e-06 | W148: 1.133150959e-06 | X148: 0 | Y148: 0 | Z148: 0 | AA148: 0 | AB148: 0 | AC148: 0 | AE148: 150 | AF148: 0.0007245413382 | AG148: 0.0001739111046 | AH148: 0 | AI148: 0 | AJ148: 0 | AK148: 0 | AL148: 0 | AM148: 0
A149: 160 | B149: 0.006878922707 | C149: 0.002237529609 | D149: 0 | E149: 0 | F149: 0 | G149: 0 | H149: 0 | I149: 0 | K149: 160 | L149: 0.006878080379 | M149: 0.002122799777 | N149: 0 | O149: 0 | P149: 0 | Q149: 0 | R149: 0 | S149: 0 | U149: 160 | V149: 5.319467004e-06 | W149: 1.514360737e-06 | X149: 0 | Y149: 0 | Z149: 0 | AA149: 0 | AB149: 0 | AC149: 0 | AE149: 160 | AF149: 0.000791481218 | AG149: 0.0002315317907 | AH149: 0 | AI149: 0 | AJ149: 0 | AK149: 0 | AL149: 0 | AM149: 0
A150: 170 | B150: 0.007422989658 | C150: 0.002841689324 | D150: 0 | E150: 0 | F150: 0 | G150: 0 | H150: 0 | I150: 0 | K150: 170 | L150: 0.007422203998 | M150: 0.002712484363 | N150: 0 | O150: 0 | P150: 0 | Q150: 0 | R150: 0 | S150: 0 | U150: 170 | V150: 5.7404321e-06 | W150: 1.953341749e-06 | X150: 0 | Y150: 0 | Z150: 0 | AA150: 0 | AB150: 0 | AC150: 0 | AE150: 170 | AF150: 0.000854109337 | AG150: 0.0002977015465 | AH150: 0 | AI150: 0 | AJ150: 0 | AK150: 0 | AL150: 0 | AM150: 0
A151: 180 | B151: 0.007929128295 | C151: 0.003512931084 | D151: 0 | E151: 0 | F151: 0 | G151: 0 | H151: 0 | I151: 0 | K151: 180 | L151: 0.007928399235 | M151: 0.003370440415 | N151: 0 | O151: 0 | P151: 0 | Q151: 0 | R151: 0 | S151: 0 | U151: 180 | V151: 6.132058141e-06 | W151: 2.446435872e-06 | X151: 0 | Y151: 0 | Z151: 0 | AA151: 0 | AB151: 0 | AC151: 0 | AE151: 180 | AF151: 0.0009123723817 | AG151: 0.0003718593466 | AH151: 0 | AI151: 0 | AJ151: 0 | AK151: 0 | AL151: 0 | AM151: 0
A152: 190 | B152: 0.008397782022 | C152: 0.00424495677 | D152: 0 | E152: 0 | F152: 0 | G152: 0 | H152: 0 | I152: 0 | K152: 190 | L152: 0.008397108377 | M152: 0.004090521904 | N152: 0 | O152: 0 | P152: 0 | Q152: 0 | R152: 0 | S152: 0 | U152: 190 | V152: 6.494685955e-06 | W152: 2.989096879e-06 | X152: 0 | Y152: 0 | Z152: 0 | AA152: 0 | AB152: 0 | AC152: 0 | AE152: 190 | AF152: 0.0009663211249 | AG152: 0.000453317839 | AH152: 0 | AI152: 0 | AJ152: 0 | AK152: 0 | AL152: 0 | AM152: 0
A153: 200 | B153: 0.008830010825 | C153: 0.005030961567 | D153: 0 | E153: 0 | F153: 0 | G153: 0 | H153: 0 | I153: 0 | K153: 200 | L153: 0.008829390662 | M153: 0.004866001007 | N153: 0 | O153: 0 | P153: 0 | Q153: 0 | R153: 0 | S153: 0 | U153: 200 | V153: 6.829134034e-06 | W153: 3.576234883e-06 | X153: 0 | Y153: 0 | Z153: 0 | AA153: 0 | AB153: 0 | AC153: 0 | AE153: 200 | AF153: 0.001016077385 | AG153: 0.0005413135571 | AH153: 0 | AI153: 0 | AJ153: 0 | AK153: 0 | AL153: 0 | AM153: 0
A154: 210 | B154: 0.009227279459 | C154: 0.005863947414 | D154: 0 | E154: 0 | F154: 0 | G154: 0 | H154: 0 | I154: 0 | K154: 210 | L154: 0.009226710367 | M154: 0.005689898735 | N154: 0 | O154: 0 | P154: 0 | Q154: 0 | R154: 0 | S154: 0 | U154: 210 | V154: 7.136534494e-06 | W154: 4.202492572e-06 | X154: 0 | Y154: 0 | Z154: 0 | AA154: 0 | AB154: 0 | AC154: 0 | AE154: 210 | AF154: 0.001061809627 | AG154: 0.0006350469952 | AH154: 0 | AI154: 0 | AJ154: 0 | AK154: 0 | AL154: 0 | AM154: 0
A155: 220 | B155: 0.009591302602 | C155: 0.006736959003 | D155: 0 | E155: 0 | F155: 0 | G155: 0 | H155: 0 | I155: 0 | K155: 220 | L155: 0.009590781889 | M155: 0.006555235942 | N155: 0 | O155: 0 | P155: 0 | Q155: 0 | R155: 0 | S155: 0 | U155: 220 | V155: 7.418213156e-06 | W155: 4.862457612e-06 | X155: 0 | Y155: 0 | Z155: 0 | AA155: 0 | AB155: 0 | AC155: 0 | AE155: 220 | AF155: 0.001103715123 | AG155: 0.0007337132882 | AH155: 0 | AI155: 0 | AJ155: 0 | AK155: 0 | AL155: 0 | AM155: 0
A156: 230 | B156: 0.009923932821 | C156: 0.007643254329 | D156: 0 | E156: 0 | F156: 0 | G156: 3.353859709e-40 | H156: 0 | I156: 0 | K156: 230 | L156: 0.009923457656 | M156: 0.007455216309 | N156: 0 | O156: 0 | P156: 0 | Q156: 2.165735832e-40 | R156: 0 | S156: 0 | U156: 230 | V156: 7.675602778e-06 | W156: 5.550819556e-06 | X156: 0 | Y156: 0 | Z156: 0 | AA156: 0 | AB156: 0 | AC156: 0 | AE156: 230 | AF156: 0.001142007048 | AG156: 0.0008365247775 | AH156: 0 | AI156: 0 | AJ156: 0 | AK156: 0 | AL156: 0 | AM156: 0
A157: 240 | B157: 0.01022708046 | C157: 0.008576422114 | D157: 0 | E157: 0 | F157: 0 | G157: 0 | H157: 0 | I157: 0 | K157: 240 | L157: 0.01022664798 | M157: 0.008383353748 | N157: 0 | O157: 0 | P157: 0 | Q157: 8.543805724e-40 | R157: 0 | S157: 0 | U157: 240 | V157: 7.910181008e-06 | W157: 6.262480821e-06 | X157: 0 | Y157: 0 | Z157: 0 | AA157: 0 | AB157: 0 | AC157: 0 | AE157: 240 | AF157: 0.001176905248 | AG157: 0.0009427268879 | AH157: 0 | AI157: 0 | AJ157: 0 | AK157: 1.860925687e-40 | AL157: 0 | AM157: 0
A158: 250 | B158: 0.01050265723 | C158: 0.009530457427 | D158: 0 | E158: 0 | F158: 0 | G158: 0 | H158: 0 | I158: 0 | K158: 250 | L158: 0.01050226458 | M158: 0.009333555779 | N158: 0 | O158: 0 | P158: 0 | Q158: 0 | R158: 0 | S158: 0 | U158: 250 | V158: 8.12342667e-06 | W158: 6.992630949e-06 | X158: 0 | Y158: 0 | Z158: 0 | AA158: 0 | AB158: 0 | AC158: 0 | AE158: 250 | AF158: 0.001208629742 | AG158: 0.001051608677 | AH158: 0 | AI158: 0 | AJ158: 0 | AK158: 0 | AL158: 0 | AM158: 0
A159: 260 | B159: 0.01075253719 | C159: 0.01049980527 | D159: 0 | E159: 3.467129431e-40 | F159: 0 | G159: 7.444348731e-38 | H159: 0 | I159: 0 | K159: 260 | L159: 0.01075218161 | M159: 0.010300173 | N159: 0 | O159: 0 | P159: 0 | Q159: 2.445082283e-38 | R159: 0 | S159: 0 | U159: 260 | V159: 8.316789582e-06 | W159: 7.736792343e-06 | X159: 0 | Y159: 0 | Z159: 0 | AA159: 0 | AB159: 0 | AC159: 0 | AE159: 260 | AF159: 0.001237396231 | AG159: 0.001162509255 | AH159: 0 | AI159: 0 | AJ159: 0 | AK159: 0 | AL159: 0 | AM159: 0
A160: 270 | B160: 0.01097853067 | C160: 0.01147938018 | D160: 0 | E160: 1.163239034e-39 | F160: 0 | G160: 4.849421326e-37 | H160: 0 | I160: 0 | K160: 270 | L160: 0.01097820952 | M160: 0.01127802308 | N160: 0 | O160: 4.860283183e-40 | P160: 0 | Q160: 3.144793724e-37 | R160: 0 | S160: 0 | U160: 270 | V160: 8.491670315e-06 | W160: 8.490844386e-06 | X160: 0 | Y160: 0 | Z160: 0 | AA160: 1.065314908e-40 | AB160: 0 | AC160: 0 | AE160: 270 | AF160: 0.001263413085 | AG160: 0.00127482109 | AH160: 0 | AI160: 0 | AJ160: 0 | AK160: 2.388300325e-38 | AL160: 0 | AM160: 0
A161: 280 | B161: 0.01118236754 | C161: 0.01246456841 | D161: 0 | E161: 0 | F161: 0 | G161: 3.269543061e-36 | H161: 0 | I161: 0 | K161: 280 | L161: 0.01118207829 | M161: 0.01226239603 | N161: 0 | O161: 6.718501208e-39 | P161: 0 | Q161: 1.404313357e-36 | R161: 0 | S161: 0 | U161: 280 | V161: 8.649407216e-06 | W161: 9.251031592e-06 | X161: 0 | Y161: 0 | Z161: 0 | AA161: 6.798992368e-40 | AB161: 0 | AC161: 0 | AE161: 280 | AF161: 0.001286879417 | AG161: 0.001387991006 | AH161: 0 | AI161: 1.48082163e-40 | AJ161: 0 | AK161: 1.092577814e-37 | AL161: 0 | AM161: 0
A162: 290 | B162: 0.01136568718 | C162: 0.01345121764 | D162: 0 | E162: 4.343773398e-39 | F162: 0 | G162: 2.360351308e-35 | H162: 0 | I162: 1.126965081e-40 | K162: 290 | L162: 0.01136542745 | M162: 0.01324904618 | N162: 0 | O162: 0 | P162: 0 | Q162: 1.069702213e-35 | R162: 0 | S162: 1.094223716e-40 | U162: 290 | V162: 8.791268696e-06 | W162: 1.001396026e-05 | X162: 0 | Y162: 0 | Z162: 0 | AA162: 2.526954923e-39 | AB162: 0 | AC162: 0 | AE162: 290 | AF162: 0.001307983934 | AG162: 0.001501519539 | AH162: 0 | AI162: 1.631416103e-39 | AJ162: 0 | AK162: 5.320694769e-37 | AL162: 0 | AM162: 0
A163: 300 | B163: 0.01153003353 | C163: 0.01443561838 | D163: 0 | E163: 2.370629592e-37 | F163: 0 | G163: 1.295072359e-34 | H163: 0 | I163: 1.337578556e-40 | K163: 300 | L163: 0.01152980108 | M163: 0.014234175 | N163: 0 | O163: 0 | P163: 0 | Q163: 7.274288414e-35 | R163: 0 | S163: 1.847078342e-40 | U163: 300 | V163: 8.918449321e-06 | W163: 1.077658712e-05 | X163: 0 | Y163: 0 | Z163: 0 | AA163: 2.071335289e-38 | AB163: 0 | AC163: 0 | AE163: 300 | AF163: 0.001326904355 | AG163: 0.001614959147 | AH163: 0 | AI163: 0 | AJ163: 0 | AK163: 4.391901781e-36 | AL163: 0 | AM163: 0
A164: 310 | B164: 0.01167685349 | C164: 0.01541447985 | D164: 0 | E164: 1.209205307e-36 | F164: 0 | G164: 5.496093157e-34 | H164: 0 | I164: 0 | K164: 310 | L164: 0.01167664623 | M164: 0.01521440792 | N164: 0 | O164: 3.548756827e-37 | P164: 0 | Q164: 3.501368172e-34 | R164: 0 | S164: 0 | U164: 310 | V164: 9.032068599e-06 | W164: 1.153620266e-05 | X164: 0 | Y164: 0 | Z164: 0 | AA164: 1.324725412e-37 | AB164: 0 | AC164: 0 | AE164: 310 | AF164: 0.001343807234 | AG164: 0.001727911664 | AH164: 0 | AI164: 0 | AJ164: 0 | AK164: 2.524523228e-35 | AL164: 0 | AM164: 0
A165: 320 | B165: 0.01180749781 | C165: 0.01638490267 | D165: 0 | E165: 6.036637453e-36 | F165: 0 | G165: 1.911112141e-33 | H165: 0 | I165: 5.432495266e-40 | K165: 320 | L165: 0.01180731379 | M165: 0.01618676754 | N165: 0 | O165: 2.02748208e-36 | P165: 0 | Q165: 1.333706204e-33 | R165: 0 | S165: 0 | U165: 320 | V165: 9.133171663e-06 | W165: 1.229041112e-05 | X165: 0 | Y165: 0 | Z165: 0 | AA165: 5.8159443e-37 | AB165: 0 | AC165: 0 | AE165: 320 | AF165: 0.001358848056 | AG165: 0.001840025282 | AH165: 0 | AI165: 6.082244058e-38 | AJ165: 0 | AK165: 1.048116891e-34 | AL165: 0 | AM165: 0
A166: 330 | B166: 0.01192322366 | C166: 0.01734435001 | D166: 0 | E166: 3.48123427e-35 | F166: 0 | G166: 5.404708218e-33 | H166: 0 | I166: 3.147561436e-38 | K166: 330 | L166: 0.01192306106 | M166: 0.01714864496 | N166: 0 | O166: 5.786284242e-36 | P166: 0 | Q166: 4.254229841e-33 | R166: 0 | S166: 2.857913752e-38 | U166: 330 | V166: 9.222731242e-06 | W166: 1.30371087e-05 | X166: 0 | Y166: 1.831172902e-39 | Z166: 0 | AA166: 2.050561092e-36 | AB166: 0 | AC166: 0 | AE166: 330 | AF166: 0.001372171538 | AG166: 0.001950991291 | AH166: 0 | AI166: 4.210206561e-37 | AJ166: 0 | AK166: 3.591753818e-34 | AL166: 0 | AM166: 2.964565607e-39
A167: 340 | B167: 0.01202519828 | C167: 0.01829061833 | D167: 0 | E167: 1.707608001e-34 | F167: 0 | G167: 1.137948304e-32 | H167: 0 | I167: 1.483559281e-37 | K167: 340 | L167: 0.01202505543 | M167: 0.0180977706 | N167: 0 | O167: 3.111877634e-35 | P167: 0 | Q167: 1.092527486e-32 | R167: 0 | S167: 1.389013943e-37 | U167: 340 | V167: 9.301650496e-06 | W167: 1.3774461e-05 | X167: 0 | Y167: 6.05054009e-39 | Z167: 0 | AA167: 6.172915494e-36 | AB167: 0 | AC167: 0 | AE167: 340 | AF167: 0.001383912045 | AG167: 0.002060540717 | AH167: 0 | AI167: 1.077533995e-36 | AJ167: 0 | AK167: 1.039772167e-33 | AL167: 0 | AM167: 1.506537447e-38
A168: 350 | B168: 0.01211450335 | C168: 0.01922180857 | D168: 0 | E168: 6.732978207e-34 | F168: 0 | G168: 1.224758171e-32 | H168: 0 | I168: 6.030659354e-37 | K168: 350 | L168: 0.01211437869 | M168: 0.01903218516 | N168: 0 | O168: 1.855903641e-34 | P168: 0 | Q168: 1.954641282e-32 | R168: 0 | S168: 5.438458631e-37 | U168: 350 | V168: 9.370766382e-06 | W168: 1.450088051e-05 | X168: 0 | Y168: 1.702619888e-38 | Z168: 0 | AA168: 1.500859962e-35 | AB168: 0 | AC168: 3.643453928e-40 | AE168: 350 | AF168: 0.001394194091 | AG168: 0.002168440977 | AH168: 0 | AI168: 4.573042704e-36 | AJ168: 0 | AK168: 2.343342103e-33 | AL168: 0 | AM168: 5.677315372e-38
A169: 360 | B169: 0.01219213972 | C169: 0.02013629841 | D169: 0 | E169: 2.232688918e-33 | F169: 0 | G169: 0 | H169: 0 | I169: 2.928977008e-36 | K169: 360 | L169: 0.01219203181 | M169: 0.01995021169 | N169: 0 | O169: 8.054269008e-34 | P169: 0 | Q169: 9.380569997e-33 | R169: 0 | S169: 2.623513101e-36 | U169: 360 | V169: 9.430853326e-06 | W169: 1.521500466e-05 | X169: 0 | Y169: 9.646039339e-38 | Z169: 0 | AA169: 2.461106685e-35 | AB169: 0 | AC169: 1.718039177e-39 | AE169: 360 | AF169: 0.00140313289 | AG169: 0.002274492632 | AH169: 0 | AI169: 2.788590035e-35 | AJ169: 0 | AK169: 3.182361782e-33 | AL169: 0 | AM169: 2.702355248e-37
A170: 370 | B170: 0.01225903237 | C170: 0.02103271582 | D170: 0 | E170: 6.402773477e-33 | F170: 0 | G170: 0 | H170: 0 | I170: 1.346736413e-35 | K170: 370 | L170: 0.01225893988 | M170: 0.02085042882 | N170: 0 | O170: 2.745527314e-33 | P170: 0 | Q170: 0 | R170: 0 | S170: 1.231707408e-35 | U170: 370 | V170: 9.482627032e-06 | W170: 1.591567489e-05 | X170: 0 | Y170: 5.057111864e-37 | Z170: 0 | AA170: 4.368036292e-36 | AB170: 0 | AC170: 8.312239419e-39 | AE170: 370 | AF170: 0.001410834918 | AG170: 0.002378526277 | AH170: 0 | AI170: 1.258695766e-34 | AJ170: 0 | AK170: 0 | AL170: 0 | AM170: 1.294716648e-36
A171: 380 | B171: 0.01231603529 | C171: 0.02190991431 | D171: 0 | E171: 1.56770737e-32 | F171: 0 | G171: 0 | H171: 0 | I171: 5.166860763e-35 | K171: 380 | L171: 0.01231595699 | M171: 0.02173164567 | N171: 0 | O171: 8.07847474e-33 | P171: 0 | Q171: 0 | R171: 0 | S171: 4.8137831e-35 | U171: 380 | V171: 9.526748306e-06 | W171: 1.660191677e-05 | X171: 0 | Y171: 1.938015759e-36 | Z171: 0 | AA171: 0 | AB171: 0 | AC171: 3.344641324e-38 | AE171: 380 | AF171: 0.001417398484 | AG171: 0.002480399611 | AH171: 0 | AI171: 4.309513914e-34 | AJ171: 0 | AK171: 0 | AL171: 0 | AM171: 5.158284069e-36
A172: 390 | B172: 0.0123639364 | C172: 0.02276694979 | D172: 0 | E172: 3.092142442e-32 | F172: 0 | G172: 0 | H172: 0 | I172: 1.679745179e-34 | K172: 390 | L172: 0.01236387116 | M172: 0.02259287838 | N172: 0 | O172: 2.110913591e-32 | P172: 0 | Q172: 0 | R172: 0 | S172: 1.584393025e-34 | U172: 390 | V172: 9.563826815e-06 | W172: 1.727292149e-05 | X172: 0 | Y172: 5.965582859e-36 | Z172: 0 | AA172: 0 | AB172: 0 | AC172: 1.121958112e-37 | AE172: 390 | AF172: 0.00142291429 | AG172: 0.002579994698 | AH172: 0 | AI172: 1.247496496e-33 | AJ172: 0 | AK172: 0 | AL172: 0 | AM172: 1.719279498e-35
A173: 400 | B173: 0.01240346225 | C173: 0.02360305934 | D173: 0 | E173: 4.101164567e-32 | F173: 0 | G173: 0 | H173: 0 | I173: 4.790829539e-34 | K173: 400 | L173: 0.01240340902 | M173: 0.02343332846 | N173: 0 | O173: 4.72182839e-32 | P173: 0 | Q173: 0 | R173: 0 | S173: 4.563548511e-34 | U173: 400 | V173: 9.594424729e-06 | W173: 1.792802863e-05 | X173: 0 | Y173: 1.609242092e-35 | Z173: 0 | AA173: 0 | AB173: 0 | AC173: 3.277741159e-37 | AE173: 400 | AF173: 0.00142746597 | AG173: 0.002677215434 | AH173: 0 | AI173: 3.23143027e-33 | AJ173: 0 | AK173: 0 | AL173: 0 | AM173: 4.99942998e-35
A174: 410 | B174: 0.01243528246 | C174: 0.02441764155 | D174: 0 | E174: 0 | F174: 0 | G174: 0 | H174: 0 | I174: 1.214193839e-33 | K174: 410 | L174: 0.01243524029 | M174: 0.02425236282 | N174: 0 | O174: 8.209824467e-32 | P174: 0 | Q174: 0 | R174: 0 | S174: 1.169435532e-33 | U174: 410 | V174: 9.619060198e-06 | W174: 1.856671039e-05 | X174: 0 | Y174: 3.900945082e-35 | Z174: 0 | AA174: 0 | AB174: 0 | AC174: 8.529925434e-37 | AE174: 410 | AF174: 0.00143113061 | AG174: 0.002771985205 | AH174: 0 | AI174: 7.385177023e-33 | AJ174: 0 | AK174: 0 | AL174: 0 | AM174: 1.294564647e-34
A175: 420 | B175: 0.01246001405 | C175: 0.02521023861 | D175: 0 | E175: 0 | F175: 0 | G175: 2.113733481e-31 | H175: 0 | I175: 2.69339559e-33 | K175: 420 | L175: 0.01245998205 | M175: 0.02504949554 | N175: 0 | O175: 7.932791342e-32 | P175: 0 | Q175: 0 | R175: 0 | S175: 2.63266359e-33 | U175: 420 | V175: 9.638210649e-06 | W175: 1.918855702e-05 | X175: 0 | Y175: 8.168753125e-35 | Z175: 0 | AA175: 0 | AB175: 0 | AC175: 1.96038738e-36 | AE175: 420 | AF175: 0.001433979238 | AG175: 0.002864244757 | AH175: 0 | AI175: 1.38152411e-32 | AJ175: 0 | AK175: 0 | AL175: 0 | AM175: 2.955361904e-34
A176: 430 | B176: 0.01247822542 | C176: 0.02598052009 | D176: 0 | E176: 0 | F176: 0 | G176: 1.474576493e-29 | H176: 0 | I176: 4.992399739e-33 | K176: 430 | L176: 0.01247820278 | M176: 0.02582437126 | N176: 0 | O176: 0 | P176: 0 | Q176: 4.700849046e-30 | R176: 0 | S176: 4.987983448e-33 | U176: 430 | V176: 9.652315898e-06 | W176: 1.979326362e-05 | X176: 0 | Y176: 1.328462655e-34 | Z176: 0 | AA176: 0 | AB176: 0 | AC176: 3.828949048e-36 | AE176: 430 | AF176: 0.001436077285 | AG176: 0.002953950234 | AH176: 0 | AI176: 1.730125428e-32 | AJ176: 0 | AK176: 0 | AL176: 0 | AM176: 5.715833589e-34
A177: 440 | B177: 0.01249044013 | C177: 0.02672826806 | D177: 0 | E177: 0 | F177: 0 | G177: 4.922568516e-29 | H177: 0 | I177: 6.816011139e-33 | K177: 440 | L177: 0.01249042609 | M177: 0.02657675007 | N177: 0 | O177: 0 | P177: 0 | Q177: 3.246366079e-29 | R177: 0 | S177: 7.114563597e-33 | U177: 440 | V177: 9.661781055e-06 | W177: 2.038061808e-05 | X177: 0 | Y177: 1.123833337e-34 | Z177: 0 | AA177: 6.705737941e-33 | AB177: 0 | AC177: 5.783431563e-36 | AE177: 440 | AF177: 0.00143748502 | AG177: 0.003041071417 | AH177: 0 | AI177: 0 | AJ177: 0 | AK177: 1.827845613e-30 | AL177: 0 | AM177: 8.478401629e-34
A178: 450 | B178: 0.01249714039 | C178: 0.02745336378 | D178: 0 | E178: 0 | F178: 0 | G178: 1.100597138e-28 | H178: 0 | I178: 2.959280775e-33 | K178: 450 | L178: 0.01249713425 | M178: 0.02730649387 | N178: 0 | O178: 0 | P178: 0 | Q178: 9.132668794e-29 | R178: 0 | S178: 4.148256192e-33 | U178: 450 | V178: 9.666979241e-06 | W178: 2.09504902e-05 | X178: 0 | Y178: 0 | Z178: 0 | AA178: 4.051970538e-32 | AB178: 0 | AC178: 4.450056784e-36 | AE178: 450 | AF178: 0.001438257953 | AG178: 0.003125590112 | AH178: 0 | AI178: 0 | AJ178: 0 | AK178: 7.557001984e-30 | AL178: 0 | AM178: 6.032277234e-34
A179: 460 | B179: 0.01249877031 | C179: 0.02815577557 | D179: 0 | E179: 0 | F179: 0 | G179: 1.88848044e-28 | H179: 0 | I179: 0 | K179: 460 | L179: 0.01249877145 | M179: 0.02801355402 | N179: 0 | O179: 0 | P179: 0 | Q179: 1.853827898e-28 | R179: 0 | S179: 0 | U179: 460 | V179: 9.668254108e-06 | W179: 2.150282184e-05 | X179: 0 | Y179: 0 | Z179: 0 | AA179: 1.104281643e-31 | AB179: 0 | AC179: 0 | AE179: 460 | AF179: 0.00143844721 | AG179: 0.003207498702 | AH179: 0 | AI179: 0 | AJ179: 0 | AK179: 1.844524994e-29 | AL179: 0 | AM179: 0
A180: 470 | B180: 0.01249573896 | C180: 0.02883554798 | D180: 0 | E180: 0 | F180: 0 | G180: 2.431045736e-28 | H180: 0 | I180: 0 | K180: 470 | L180: 0.01249574678 | M180: 0.02869796023 | N180: 0 | O180: 0 | P180: 0 | Q180: 2.909337208e-28 | R180: 0 | S180: 0 | U180: 470 | V180: 9.665922179e-06 | W180: 2.203761803e-05 | X180: 0 | Y180: 0 | Z180: 0 | AA180: 2.198965338e-31 | AB180: 0 | AC180: 0 | AE180: 470 | AF180: 0.00143809988 | AG180: 0.003286798843 | AH180: 0 | AI180: 0 | AJ180: 0 | AK180: 3.400815445e-29 | AL180: 0 | AM180: 0
A181: 480 | B181: 0.01248842314 | C181: 0.02949279204 | D181: 0 | E181: 0 | F181: 0 | G181: 1.752859835e-28 | H181: 0 | I181: 0 | K181: 480 | L181: 0.01248843711 | M181: 0.0293598106 | N181: 0 | O181: 0 | P181: 0 | Q181: 3.290424105e-28 | R181: 0 | S181: 0 | U181: 480 | V181: 9.660275013e-06 | W181: 2.255493901e-05 | X181: 0 | Y181: 0 | Z181: 0 | AA181: 3.399359149e-31 | AB181: 0 | AC181: 0 | AE181: 480 | AF181: 0.001437259338 | AG181: 0.003363500285 | AH181: 0 | AI181: 0 | AJ181: 0 | AK181: 4.8262664e-29 | AL181: 0 | AM181: 0
A182: 490 | B182: 0.01247716997 | C182: 0.03012767642 | D182: 0 | E182: 1.728635082e-29 | F182: 0 | G182: 0 | H182: 0 | I182: 0 | K182: 490 | L182: 0.01247718959 | M182: 0.02999926264 | N182: 0 | O182: 0 | P182: 0 | Q182: 1.411728627e-28 | R182: 0 | S182: 0 | U182: 490 | V182: 9.651581196e-06 | W182: 2.305489303e-05 | X182: 0 | Y182: 0 | Z182: 0 | AA182: 3.788727833e-31 | AB182: 0 | AC182: 0 | AE182: 490 | AF182: 0.001435965543 | AG182: 0.003437619819 | AH182: 0 | AI182: 0 | AJ182: 0 | AK182: 4.561895262e-29 | AL182: 0 | AM182: 0
A183: 500 | B183: 0.01246229926 | C183: 0.03074041967 | D183: 0 | E183: 7.487262319e-29 | F183: 0 | G183: 0 | H183: 0 | I183: 0 | K183: 500 | L183: 0.01246232406 | M183: 0.03061652522 | N183: 0 | O183: 0 | P183: 0 | Q183: 0 | R183: 0 | S183: 0 | U183: 500 | V183: 9.640088192e-06 | W183: 2.353762995e-05 | X183: 0 | Y183: 0 | Z183: 0 | AA183: 1.56685679e-31 | AB183: 0 | AC183: 0 | AE183: 500 | AF183: 0.00143425531 | AG183: 0.003509180334 | AH183: 0 | AI183: 0 | AJ183: 0 | AK183: 0 | AL183: 0 | AM183: 0
A184: 510 | B184: 0.01244410571 | C184: 0.03133128315 | D184: 0 | E184: 1.848804535e-28 | F184: 0 | G184: 0 | H184: 0 | I184: 0 | K184: 510 | L184: 0.01244413527 | M184: 0.03121185146 | N184: 0 | O184: 5.692545639e-29 | P184: 0 | Q184: 0 | R184: 0 | S184: 0 | U184: 510 | V184: 9.62602403e-06 | W184: 2.400333547e-05 | X184: 0 | Y184: 0 | Z184: 0 | AA184: 0 | AB184: 0 | AC184: 0 | AE184: 510 | AF184: 0.001432162564 | AG184: 0.003578209968 | AH184: 0 | AI184: 0 | AJ184: 0 | AK184: 0 | AL184: 0 | AM184: 0
A185: 520 | B185: 0.01242286092 | C185: 0.0319005648 | D185: 0 | E185: 3.548515923e-28 | F185: 0 | G185: 0 | H185: 0 | I185: 0 | K185: 520 | L185: 0.01242289485 | M185: 0.03178553223 | N185: 0 | O185: 1.946002318e-28 | P185: 0 | Q185: 0 | R185: 0 | S185: 0 | U185: 520 | V185: 9.609598872e-06 | W185: 2.4452226e-05 | X185: 0 | Y185: 0 | Z185: 0 | AA185: 0 | AB185: 0 | AC185: 0 | AE185: 520 | AF185: 0.00142971857 | AG185: 0.003644741354 | AH185: 0 | AI185: 3.603146652e-30 | AJ185: 0 | AK185: 0 | AL185: 0 | AM185: 0
A186: 530 | B186: 0.01239881526 | C186: 0.03244859352 | D186: 0 | E186: 5.605802769e-28 | F186: 0 | G186: 0 | H186: 0 | I186: 0 | K186: 530 | L186: 0.01239885321 | M186: 0.0323378905 | N186: 0 | O186: 4.401204709e-28 | P186: 0 | Q186: 0 | R186: 0 | S186: 0 | U186: 530 | V186: 9.591006445e-06 | W186: 2.48845441e-05 | X186: 0 | Y186: 6.30433538e-32 | Z186: 0 | AA186: 0 | AB186: 0 | AC186: 0 | AE186: 530 | AF186: 0.001426952149 | AG186: 0.003708810948 | AH186: 0 | AI186: 2.096493851e-29 | AJ186: 0 | AK186: 0 | AL186: 0 | AM186: 0
A187: 540 | B187: 0.01237219956 | C187: 0.03297572423 | D187: 0 | E187: 7.158950751e-28 | F187: 0 | G187: 0 | H187: 0 | I187: 2.362710609e-30 | K187: 540 | L187: 0.01237224119 | M187: 0.03286927621 | N187: 0 | O187: 7.955513359e-28 | P187: 0 | Q187: 0 | R187: 0 | S187: 1.918240563e-30 | U187: 540 | V187: 9.570425362e-06 | W187: 2.530055434e-05 | X187: 0 | Y187: 2.410158035e-31 | Z187: 0 | AA187: 0 | AB187: 0 | AC187: 9.832353579e-34 | AE187: 540 | AF187: 0.001423889874 | AG187: 0.003770458424 | AH187: 0 | AI187: 5.525532504e-29 | AJ187: 0 | AK187: 0 | AL187: 0 | AM187: 1.707875081e-31
A188: 550 | B188: 0.0123432267 | C188: 0.03348233342 | D188: 0 | E188: 6.410456983e-28 | F188: 0 | G188: 0 | H188: 0 | I188: 1.015119185e-29 | K188: 550 | L188: 0.01234327171 | M188: 0.03338006175 | N188: 0 | O188: 1.18988079e-27 | P188: 0 | Q188: 0 | R188: 0 | S188: 9.430751094e-30 | U188: 550 | V188: 9.548020333e-06 | W188: 2.570053974e-05 | X188: 0 | Y188: 5.677238502e-31 | Z188: 0 | AA188: 0 | AB188: 0 | AC188: 6.459574125e-33 | AE188: 550 | AF188: 0.001420556249 | AG188: 0.003829726143 | AH188: 0 | AI188: 1.104039987e-28 | AJ188: 0 | AK188: 0 | AL188: 0 | AM188: 1.002431021e-30
A189: 560 | B189: 0.01231209301 | C189: 0.03396881527 | D189: 0 | E189: 4.556756572e-29 | F189: 0 | G189: 6.631541885e-28 | H189: 0 | I189: 2.470075736e-29 | K189: 560 | L189: 0.01231214111 | M189: 0.03387063795 | N189: 0 | O189: 1.422271203e-27 | P189: 0 | Q189: 0 | R189: 0 | S189: 2.374747169e-29 | U189: 560 | V189: 9.523943278e-06 | W189: 2.608479845e-05 | X189: 0 | Y189: 1.060933708e-30 | Z189: 0 | AA189: 0 | AB189: 0 | AC189: 1.722469121e-32 | AE189: 560 | AF189: 0.001416973876 | AG189: 0.00388665868 | AH189: 0 | AI189: 1.821113759e-28 | AJ189: 0 | AK189: 0 | AL189: 0 | AM189: 2.620160771e-30
A190: 570 | B190: 0.01227897962 | C190: 0.0344355781 | D190: 0 | E190: 0 | F190: 0 | G190: 1.555319626e-26 | H190: 0 | I190: 4.747086389e-29 | K190: 570 | L190: 0.01227903055 | M190: 0.03434141049 | N190: 0 | O190: 1.110151795e-27 | P190: 0 | Q190: 5.625513212e-27 | R190: 0 | S190: 4.654657344e-29 | U190: 570 | V190: 9.49833435e-06 | W190: 2.645364098e-05 | X190: 0 | Y190: 1.655394689e-30 | Z190: 0 | AA190: 0 | AB190: 0 | AC190: 3.482000592e-32 | AE190: 570 | AF190: 0.001413163605 | AG190: 0.003941302399 | AH190: 0 | AI190: 2.490266198e-28 | AJ190: 0 | AK190: 0 | AL190: 0 | AM190: 5.241465638e-30
A191: 580 | B191: 0.01224405366 | C191: 0.03488304136 | D191: 0 | E191: 0 | F191: 0 | G191: 4.008096139e-26 | H191: 0 | I191: 7.7174105e-29 | K191: 580 | L191: 0.01224410719 | M191: 0.03479279676 | N191: 0 | O191: 0 | P191: 0 | Q191: 2.879461495e-26 | R191: 0 | S191: 7.690477576e-29 | U191: 580 | V191: 9.471322875e-06 | W191: 2.680738761e-05 | X191: 0 | Y191: 2.129377662e-30 | Z191: 0 | AA191: 5.692570009e-30 | AB191: 0 | AC191: 5.895044031e-32 | AE191: 580 | AF191: 0.001409144676 | AG191: 0.003993705083 | AH191: 0 | AI191: 2.627967843e-28 | AJ191: 0 | AK191: 1.697350541e-27 | AL191: 0 | AM191: 8.801750678e-30
A192: 590 | B192: 0.0122074694 | C192: 0.03531163288 | D192: 0 | E192: 0 | F192: 0 | G192: 7.364401687e-26 | H192: 0 | I192: 1.069358271e-28 | K192: 590 | L192: 0.0122075253 | M192: 0.03522522306 | N192: 0 | O192: 0 | P192: 0 | Q192: 6.452472556e-26 | R192: 0 | S192: 1.084377565e-28 | U192: 590 | V192: 9.44302821e-06 | W192: 2.714636614e-05 | X192: 0 | Y192: 2.029091064e-30 | Z192: 0 | AA192: 3.092502319e-29 | AB192: 0 | AC192: 8.526015232e-32 | AE192: 590 | AF192: 0.001404934846 | AG192: 0.004043915605 | AH192: 0 | AI192: 1.409587159e-28 | AJ192: 0 | AK192: 5.667841859e-27 | AL192: 0 | AM192: 1.262381848e-29
A193: 600 | B193: 0.01216936923 | C193: 0.03572178648 | D193: 0 | E193: 0 | F193: 0 | G193: 1.116794883e-25 | H193: 0 | I193: 1.209595948e-28 | K193: 600 | L193: 0.0121694273 | M193: 0.03563912215 | N193: 0 | O193: 0 | P193: 0 | Q193: 1.105677101e-25 | R193: 0 | S193: 1.258633882e-28 | U193: 600 | V193: 9.413560538e-06 | W193: 2.747090994e-05 | X193: 0 | Y193: 6.26654285e-31 | Z193: 0 | AA193: 6.983782399e-29 | AB193: 0 | AC193: 1.025671805e-31 | AE193: 600 | AF193: 0.001400550507 | AG193: 0.004091983635 | AH193: 0 | AI193: 0 | AJ193: 0 | AK193: 1.142962779e-26 | AL193: 0 | AM193: 1.501149971e-29
A194: 610 | B194: 0.01212988463 | C194: 0.03611393984 | D194: 0 | E194: 0 | F194: 0 | G194: 1.44225894e-25 | H194: 0 | I194: 9.170667026e-29 | K194: 610 | L194: 0.01212994468 | M194: 0.03603493108 | N194: 0 | O194: 0 | P194: 0 | Q194: 1.589656994e-25 | R194: 0 | S194: 1.019636184e-28 | U194: 610 | V194: 9.383021593e-06 | W194: 2.778135619e-05 | X194: 0 | Y194: 0 | Z194: 0 | AA194: 1.200421939e-28 | AB194: 0 | AC194: 9.027041371e-32 | AE194: 610 | AF194: 0.001396006795 | AG194: 0.004137959386 | AH194: 0 | AI194: 0 | AJ194: 0 | AK194: 1.841886927e-26 | AL194: 0 | AM194: 1.287570387e-29
A195: 620 | B195: 0.01208913701 | C195: 0.03648853267 | D195: 0 | E195: 0 | F195: 0 | G195: 1.552821494e-25 | H195: 0 | I195: 0 | K195: 620 | L195: 0.01208919886 | M195: 0.03641308928 | N195: 0 | O195: 0 | P195: 0 | Q195: 1.945144851e-25 | R195: 0 | S195: 0 | U195: 620 | V195: 9.351505324e-06 | W195: 2.807804437e-05 | X195: 0 | Y195: 0 | Z195: 0 | AA195: 1.730523782e-28 | AB195: 0 | AC195: 1.720822889e-32 | AE195: 620 | AF195: 0.001391317687 | AG195: 0.00418189339 | AH195: 0 | AI195: 0 | AJ195: 0 | AK195: 2.516669041e-26 | AL195: 0 | AM195: 1.584252581e-30
A196: 630 | B196: 0.01204723854 | C196: 0.03684600509 | D196: 0 | E196: 0 | F196: 0 | G196: 1.236172484e-25 | H196: 0 | I196: 0 | K196: 630 | L196: 0.01204730204 | M196: 0.03677403689 | N196: 0 | O196: 0 | P196: 0 | Q196: 1.945280348e-25 | R196: 0 | S196: 0 | U196: 630 | V196: 9.319098514e-06 | W196: 2.836131486e-05 | X196: 0 | Y196: 0 | Z196: 0 | AA196: 2.126692613e-28 | AB196: 0 | AC196: 0 | AE196: 630 | AF196: 0.001386496092 | AG196: 0.004223836296 | AH196: 0 | AI196: 0 | AJ196: 0 | AK196: 2.913074329e-26 | AL196: 0 | AM196: 0
A197: 640 | B197: 0.01200429283 | C197: 0.03718679621 | D197: 0 | E197: 0 | F197: 0 | G197: 2.558711218e-26 | H197: 0 | I197: 0 | K197: 640 | L197: 0.01200435782 | M197: 0.03711821333 | N197: 0 | O197: 0 | P197: 0 | Q197: 1.3069777e-25 | R197: 0 | S197: 0 | U197: 640 | V197: 9.285881338e-06 | W197: 2.863150783e-05 | X197: 0 | Y197: 0 | Z197: 0 | AA197: 2.147493841e-28 | AB197: 0 | AC197: 0 | AE197: 640 | AF197: 0.001381553939 | AG197: 0.004263838704 | AH197: 0 | AI197: 0 | AJ197: 0 | AK197: 2.675202058e-26 | AL197: 0 | AM197: 0
A198: 650 | B198: 0.01196039563 | C198: 0.03751134289 | D198: 0 | E198: 1.651495603e-26 | F198: 0 | G198: 0 | H198: 0 | I198: 0 | K198: 650 | L198: 0.01196046197 | M198: 0.03744605601 | N198: 0 | O198: 0 | P198: 0 | Q198: 0 | R198: 0 | S198: 0 | U198: 650 | V198: 9.251927879e-06 | W198: 2.888896219e-05 | X198: 0 | Y198: 0 | Z198: 0 | AA198: 1.491871762e-28 | AB198: 0 | AC198: 0 | AE198: 650 | AF198: 0.00137650225 | AG198: 0.004301951009 | AH198: 0 | AI198: 0 | AJ198: 0 | AK198: 1.384222043e-26 | AL198: 0 | AM198: 0
A199: 660 | B199: 0.01191563541 | C199: 0.03782007867 | D199: 0 | E199: 6.314319903e-26 | F199: 0 | G199: 0 | H199: 0 | I199: 0 | K199: 660 | L199: 0.01191570298 | M199: 0.03775799923 | N199: 0 | O199: 0 | P199: 0 | Q199: 0 | R199: 0 | S199: 0 | U199: 660 | V199: 9.217306608e-06 | W199: 2.91340147e-05 | X199: 0 | Y199: 0 | Z199: 0 | AA199: 0 | AB199: 0 | AC199: 0 | AE199: 660 | AF199: 0.001371351211 | AG199: 0.004338223276 | AH199: 0 | AI199: 0 | AJ199: 0 | AK199: 0 | AL199: 0 | AM199: 0
A200: 670 | B200: 0.01187009399 | C200: 0.03811343287 | D200: 0 | E200: 1.318972014e-25 | F200: 0 | G200: 0 | H200: 0 | I200: 0 | K200: 670 | L200: 0.01187016267 | M200: 0.03805447324 | N200: 0 | O200: 4.020905066e-26 | P200: 0 | Q200: 0 | R200: 0 | S200: 0 | U200: 670 | V200: 9.182080814e-06 | W200: 2.936699918e-05 | X200: 0 | Y200: 0 | Z200: 0 | AA200: 0 | AB200: 0 | AC200: 0 | AE200: 670 | AF200: 0.001366110237 | AG200: 0.004372705125 | AH200: 0 | AI200: 0 | AJ200: 0 | AK200: 0 | AL200: 0 | AM200: 0
A201: 680 | B201: 0.01182384698 | C201: 0.03839182981 | D201: 0 | E201: 2.204135267e-25 | F201: 0 | G201: 0 | H201: 0 | I201: 0 | K201: 680 | L201: 0.01182391666 | M201: 0.03833590344 | N201: 0 | O201: 1.29714073e-25 | P201: 0 | Q201: 0 | R201: 0 | S201: 0 | U201: 680 | V201: 9.146309012e-06 | W201: 2.958824589e-05 | X201: 0 | Y201: 0 | Z201: 0 | AA201: 0 | AB201: 0 | AC201: 0 | AE201: 680 | AF201: 0.001360788035 | AG201: 0.004405445631 | AH201: 0 | AI201: 0 | AJ201: 0 | AK201: 0 | AL201: 0 | AM201: 0
A202: 690 | B202: 0.0117769643 | C202: 0.03865568808 | D202: 0 | E202: 3.192267669e-25 | F202: 0 | G202: 0 | H202: 0 | I202: 0 | K202: 690 | L202: 0.01177703489 | M202: 0.03860270963 | N202: 0 | O202: 2.577185326e-25 | P202: 0 | Q202: 0 | R202: 0 | S202: 0 | U202: 690 | V202: 9.110045308e-06 | W202: 2.979808096e-05 | X202: 0 | Y202: 6.173341628e-30 | Z202: 0 | AA202: 0 | AB202: 0 | AC202: 0 | AE202: 690 | AF202: 0.001355392652 | AG202: 0.004436493247 | AH202: 0 | AI202: 1.051980326e-26 | AJ202: 0 | AK202: 0 | AL202: 0 | AM202: 0
A203: 700 | B203: 0.01172951063 | C203: 0.03890542003 | D203: 0 | E203: 4.096548771e-25 | F203: 0 | G203: 0 | H203: 0 | I203: 0 | K203: 700 | L203: 0.01172958202 | M203: 0.03885530549 | N203: 0 | O203: 4.179160778e-25 | P203: 0 | Q203: 0 | R203: 0 | S203: 0 | U203: 700 | V203: 9.073339737e-06 | W203: 2.999682585e-05 | X203: 0 | Y203: 1.053885008e-28 | Z203: 0 | AA203: 0 | AB203: 0 | AC203: 0 | AE203: 700 | AF203: 0.001349931534 | AG203: 0.004465895731 | AH203: 0 | AI203: 2.839820706e-26 | AJ203: 0 | AK203: 0 | AL203: 0 | AM203: 0
A204: 710 | B204: 0.01168154578 | C204: 0.03914143127 | D204: 0 | E204: 4.626978691e-25 | F204: 0 | G204: 0 | H204: 0 | I204: 0 | K204: 710 | L204: 0.01168161789 | M204: 0.03909409804 | N204: 0 | O204: 5.911089266e-25 | P204: 0 | Q204: 0 | R204: 0 | S204: 0 | U204: 710 | V204: 9.036238581e-06 | W204: 3.018479704e-05 | X204: 0 | Y204: 2.59187159e-28 | Z204: 0 | AA204: 0 | AB204: 0 | AC204: 0 | AE204: 710 | AF204: 0.001344411565 | AG204: 0.004493700086 | AH204: 0 | AI204: 5.310059147e-26 | AJ204: 0 | AK204: 0 | AL204: 0 | AM204: 0
A205: 720 | B205: 0.01163312507 | C205: 0.03936412026 | D205: 0 | E205: 4.396878619e-25 | F205: 0 | G205: 0 | H205: 0 | I205: 4.152107214e-27 | K205: 720 | L205: 0.01163319783 | M205: 0.03931948724 | N205: 0 | O205: 7.420180552e-25 | P205: 0 | Q205: 0 | R205: 0 | S205: 3.633355545e-27 | U205: 720 | V205: 8.99878465e-06 | W205: 3.036230559e-05 | X205: 0 | Y205: 4.67111614e-28 | Z205: 0 | AA205: 0 | AB205: 0 | AC205: 2.197966616e-30 | AE205: 720 | AF205: 0.001338839115 | AG205: 0.00451995251 | AH205: 0 | AI205: 8.306987476e-26 | AJ205: 0 | AK205: 0 | AL205: 0 | AM205: 3.575825352e-28
A206: 730 | B206: 0.01158429969 | C206: 0.03957387801 | D206: 0 | E206: 2.953612717e-25 | F206: 0 | G206: 0 | H206: 0 | I206: 1.174028745e-26 | K206: 730 | L206: 0.01158437302 | M206: 0.03953186564 | N206: 0 | O206: 8.180981799e-25 | P206: 0 | Q206: 0 | R206: 0 | S206: 1.114894907e-26 | U206: 730 | V206: 8.96101755e-06 | W206: 3.052965696e-05 | X206: 0 | Y206: 7.142938814e-28 | Z206: 0 | AA206: 0 | AB206: 0 | AC206: 7.910300117e-30 | AE206: 730 | AF206: 0.001333220076 | AG206: 0.00454469836 | AH206: 0 | AI206: 1.14356067e-25 | AJ206: 0 | AK206: 0 | AL206: 0 | AM206: 1.212824639e-27
A207: 740 | B207: 0.011535117 | C207: 0.0397710878 | D207: 0 | E207: 0 | F207: 0 | G207: 6.448155493e-25 | H207: 0 | I207: 2.235836791e-26 | K207: 740 | L207: 0.01153519083 | M207: 0.03973161813 | N207: 0 | O207: 7.515529891e-25 | P207: 0 | Q207: 0 | R207: 0 | S207: 2.179102249e-26 | U207: 740 | V207: 8.922973927e-06 | W207: 3.06871507e-05 | X207: 0 | Y207: 9.661925844e-28 | Z207: 0 | AA207: 0 | AB207: 0 | AC207: 1.614810266e-29 | AE207: 740 | AF207: 0.0013275599 | AG207: 0.004567982113 | AH207: 0 | AI207: 1.401221776e-25 | AJ207: 0 | AK207: 0 | AL207: 0 | AM207: 2.438605034e-27
A208: 750 | B208: 0.01148562083 | C208: 0.039956125 | D208: 0 | E208: 0 | F208: 0 | G208: 2.891626081e-24 | H208: 0 | I208: 3.566252932e-26 | K208: 750 | L208: 0.01148569509 | M208: 0.0399191217 | N208: 0 | O208: 4.655557835e-25 | P208: 0 | Q208: 1.554264413e-24 | R208: 0 | S208: 3.527507418e-26 | U208: 750 | V208: 8.884687689e-06 | W208: 3.083508032e-05 | X208: 0 | Y208: 1.164994326e-27 | Z208: 0 | AA208: 0 | AB208: 0 | AC208: 2.676220676e-29 | AE208: 750 | AF208: 0.00132186363 | AG208: 0.004589847345 | AH208: 0 | AI208: 1.505374216e-25 | AJ208: 0 | AK208: 0 | AL208: 0 | AM208: 4.009175013e-27
A209: 760 | B209: 0.01143585172 | C209: 0.0401293569 | D209: 0 | E209: 0 | F209: 0 | G209: 5.82633573e-24 | H209: 0 | I209: 5.05037804e-26 | K209: 760 | L209: 0.01143592637 | M209: 0.04009474533 | N209: 0 | O209: 0 | P209: 0 | Q209: 4.608502526e-24 | R209: 0 | S209: 5.051244827e-26 | U209: 760 | V209: 8.846190216e-06 | W209: 3.097373316e-05 | X209: 0 | Y209: 1.229254773e-27 | Z209: 0 | AA209: 1.434581708e-27 | AB209: 0 | AC209: 3.898441692e-29 | AE209: 760 | AF209: 0.001316135937 | AG209: 0.004610336709 | AH209: 0 | AI209: 1.332575955e-25 | AJ209: 0 | AK209: 3.318062289e-25 | AL209: 0 | AM209: 5.806500104e-27
A210: 770 | B210: 0.01138584721 | C210: 0.04029114261 | D210: 0 | E210: 0 | F210: 0 | G210: 9.290099548e-24 | H210: 0 | I210: 6.470972447e-26 | K210: 770 | L210: 0.01138592218 | M210: 0.04025884979 | N210: 0 | O210: 0 | P210: 0 | Q210: 8.45822961e-24 | R210: 0 | S210: 6.538011582e-26 | U210: 770 | V210: 8.807510545e-06 | W210: 3.110339023e-05 | X210: 0 | Y210: 1.058322089e-27 | Z210: 0 | AA210: 4.576578303e-27 | AB210: 0 | AC210: 5.123559993e-29 | AE210: 770 | AF210: 0.001310381139 | AG210: 0.00462949192 | AH210: 0 | AI210: 7.465140992e-26 | AJ210: 0 | AK210: 7.980952986e-25 | AL210: 0 | AM210: 7.5923912e-27
A211: 780 | B211: 0.01133564203 | C211: 0.04044183297 | D211: 0 | E211: 0 | F211: 0 | G211: 1.297878581e-23 | H211: 0 | I211: 7.495501165e-26 | K211: 780 | L211: 0.01133571728 | M211: 0.04041178763 | N211: 0 | O211: 0 | P211: 0 | Q211: 1.284958385e-23 | R211: 0 | S211: 7.657575237e-26 | U211: 780 | V211: 8.768675552e-06 | W211: 3.122432621e-05 | X211: 0 | Y211: 5.42729669e-28 | Z211: 0 | AA211: 8.549477374e-27 | AB211: 0 | AC211: 6.099547199e-29 | AE211: 780 | AF211: 0.001304603235 | AG211: 0.004647353747 | AH211: 0 | AI211: 0 | AJ211: 0 | AK211: 1.36727252e-24 | AL211: 0 | AM211: 8.990034332e-27
A212: 790 | B212: 0.01128526833 | C212: 0.04058177056 | D212: 0 | E212: 0 | F212: 0 | G212: 1.643647052e-23 | H212: 0 | I212: 7.678241688e-26 | K212: 790 | L212: 0.01128534381 | M212: 0.04055390312 | N212: 0 | O212: 0 | P212: 0 | Q212: 1.734735301e-23 | R212: 0 | S212: 7.962156907e-26 | U212: 790 | V212: 8.72971011e-06 | W212: 3.133680937e-05 | X212: 0 | Y212: 0 | Z212: 0 | AA212: 1.309564684e-26 | AB212: 0 | AC212: 6.478485161e-29 | AE212: 790 | AF212: 0.001298805926 | AG212: 0.004663962005 | AH212: 0 | AI212: 0 | AJ212: 0 | AK212: 1.995888587e-24 | AL212: 0 | AM212: 9.482390748e-27
A213: 800 | B213: 0.01123475585 | C213: 0.04071128964 | D213: 0 | E213: 0 | F213: 0 | G213: 1.90678896e-23 | H213: 0 | I213: 6.483332935e-26 | K213: 800 | L213: 0.01123483152 | M213: 0.04068553224 | N213: 0 | O213: 0 | P213: 0 | Q213: 2.133539884e-23 | R213: 0 | S213: 6.907805886e-26 | U213: 800 | V213: 8.69063724e-06 | W213: 3.144110158e-05 | X213: 0 | Y213: 0 | Z213: 0 | AA213: 1.777206425e-26 | AB213: 0 | AC213: 5.831042256e-29 | AE213: 800 | AF213: 0.001292992635 | AG213: 0.004679355558 | AH213: 0 | AI213: 0 | AJ213: 0 | AK213: 2.615003695e-24 | AL213: 0 | AM213: 8.434777936e-27
... 1110 more rows

Sheet User_Water_Balance
A1: Input | C1: RAINFALL
A2: Output | C2: Annual Effective Rainfall | D2: 255 | E2: mm
C3: Effective Rainfall | D3: =D2/s_per_year/1000 -> 8.080462393e-09 | E3: m3/s
G4: Void B
C5: VOID PARAMETERS
C6: Void Area | D6: 160618 | E6: m2 | G6: Max Elevation of void surface | H6: =maxele_b -> 57.33 | I6: mAOD
C7: Void Perimeter | D7: 2332 | E7: m | G7: Average GW head downstream | H7: =gwele_b -> 54.5 | I7: mAOD
G8: Distance from centre of void to perimeter | H8: =distancetoedge_b -> 150 | I8: m
C9: Restoration Material Thickness | D9: =maxele_b-D11 -> 6.28 | E9: m | G9: Average depth of restoration material | H9: =thick_b -> 6.28 | I9: m
G10: Perimeter of void | H10: =peri_b -> 2332 | I10: m
C11: Base of Void B | D11: 51.05 | E11: mAOD | G11: K | H11: =AL_K -> 1e-07 | I11: m/s
C12: Maximum Elevation | D12: 57.33 | E12: mAOD | G12: QS | H12: =((H6-H7)/H8)*H9*H10*H11 -> 2.763015787e-05 | I12: m3/s
C14: GW Elevation at perimeter | D14: 54.5 | E14: mAOD | G14: Qer_b | H14: =area_b*effective_rainfall -> 0.001297867709 | I14: m3/s
C16: Distance from centre void to edge | D16: 150 | E16: m | G16: QRO_b | H16: =H14-H12 -> 0.001270237551 | I16: m3/s
C18: Total Volume of restoration material | D18: 1153000 | E18: m3
C19: Volume in Void B | D19: 417835.8075 | E19: m3
C22: AQUIFER PROPERTIES
C24: Attenuation Layer Hydraulic Conductivity | D24: 1e-07 | E24: m/s
C25: Beenham Grange Formation Hydraulic Conductivity | D25: 0.001412 | E25: m/s
C26: Attenuation Layer Hydraulic Gradient | D26: =(maxele_b-gwele_b)/distancetoedge_b -> 0.01886666667 | E26: -
C27: Beenham Grange Formation Hydraulic Gradient | D27: 0.003 | E27: m/s
C28: Attenuation Layer Bulk Density | D28: 2000 | E28: kg/m3
C29: Beenham Grange Formation Bulk Density | D29: 1600 | E29: kg/m3
C30: Attenuation Layer Porosity | D30: 0.05 | E30: -
C31: Beenham Grange Formation Porosity | D31: 0.2 | E31: -
C32: Tortuosity | D32: 5
C34: RECEPTOR TRAVEL DISTANCES
C36: Attenuation Layer Travel Distance | D36: 1 | E36: m
C37: Distance to River Enborne | D37: 25 | E37: m
C38: Distance to GW Receptor | D38: 10 | E38: m
C39: Distance to Spring Ditch | D39: 20 | E39: m
C41: RIVER FLOWS
C42: River Enborne Q95 | D42: 0.168 | E42: m3/s
C43: Spring Ditch Q95 | D43: 0.01 | E43: m3/s
D46: =Q_springditch/0.00000282 -> 3546.099291

Sheet User_Attenuation_Parameters
D2: Attenuation Layer | G2: Beenham Grange Formation
A3: Parameter | D3: Kd (L/kg) | E3: Comment | G3: Kd (L/kg) | H3: Comment
A4: Ammoniacial Nitrogen | D4: 0.5 | E4: Mid-range value for engineered clay barriers in Table 4.1 of Buss et al. (2003) | G4: 0 | H4: Conservative Assumption
A5: Arsenic | B5: As | C5: Haz | D5: 137 | E5: Midpoint from range by Golder Associates (2007) | G5: 25 | H5: Minimum value from range by Golder Associates (2007)
A6: Barium | B6: Ba | C6: Non Haz | D6: 17 | E6: Value at pH 8 (representative of Water Chemistry) for unspecified material by Golder Associates (2003) | G6: 17 | H6: Value at pH 8 (representative of Water Chemistry) for unspecified material by Golder Associates (2003)
A7: Cadmium | B7: Cd | C7: Non Haz | D7: 222 | E7: Value for glacial till (representative of clayey conditions) Golder Associates (2003) | G7: 74 | H7: Value for sand Golder Associates (2003)
A8: Total Chromium | B8: Cr total | C8: Haz | D8: 966 | E8: Value for glacial till (representative of clayey conditions) Golder Associates (2003) | G8: 67 | H8: Value for sand Golder Associates (2003)
A9: Copper | B9: Cu | C9: Non Haz | D9: 126.8 | E9: Value for glacial till (representative of clayey conditions) Golder Associates (2003) | G9: 295 | H9: Value for unspecified conditions, Golder Associates(2003)
A10: Mercury | B10: Hg | C10: Haz | D10: 2142 | E10: Midpoint from range by Golder Associates (2007) | G10: 450 | H10: Value for sand Golder Associates (2003)
A11: Molybdenum | B11: Mo | C11: Non Haz | D11: 110 | E11: Value for unspecified conditions, Golder Associates(2003) | G11: 110 | H11: Value for unspecified conditions, Golder Associates(2003)
A12: Nickel | B12: Ni | C12: Non Haz | D12: 410 | E12: Midpoint from range by Golder Associates (2007) | G12: 400 | H12: Value for sand Golder Associates (2003)
A13: Lead | B13: Pb | C13: Haz | D13: 434.6 | E13: Value for glacial till (representative of clayey conditions) Golder Associates (2003) | G13: 270 | H13: Value for sand Golder Associates (2003)
A14: Antimony | B14: Sb | C14: Non Haz | D14: 140 | E14: Geometric mean value for clay (Sheppard et al., 2009) | G14: 17 | H14: Value for sand Golder Associates (2003)
A15: Selenium | B15: Se | C15: Non Haz | D15: 9.5 | E15: Value for unspecified conditions, Golder Associates(2003) | G15: 9.5 | H15: Value for unspecified conditions, Golder Associates(2003)
A16: Zinc | B16: Zn | C16: Non Haz | D16: 20.7 | E16: Value for glacial till (representative of clayey conditions) Golder Associates (2003) | G16: 200 | H16: Value for sand Golder Associates (2003)
A17: Chloride | B17: Cl | C17: Non Haz | D17: 0 | E17: assume zero retardation | G17: 0 | H17: assume zero retardation
A18: Fluoride | B18: F | C18: Non Haz
A19: Sulphate(a) | B19: SO4 | C19: Non Haz | D19: 0 | E19: assume zero retardation | G19: 0 | H19: assume zero retardation
C22: Free Water Diffusion Coefficient | D22: 2e-09

Sheet User_ScreeningAssessment_VoidB
A1: Waste Source Screening Assessment - Groundwater North of River Enborne
A2: Chemical Name | B2: Symbol | C2: Haz / Non Haz | D2: Pass/Fail | E2: Source Term concentration (mg/l) | F2: Max acceptable concentration (mg/l) | G2: Target Concentration to assess against (mg/l) | H2: UK DWS (mg/l) | I2: UKTAG Quantification Limit (mg/l) | J2: Baseline 95th percentile concentration from ESSD (mg/l) | K2: Comment
A3: Arsenic | B3: As | C3: Haz | D3: =IF(E3<=F3,"Pass","FAIL") -> Pass | E3: 0.06 | F3: =G3/$B$21 -> 0.0939457324 | G3: =MIN(H3:J3) -> 0.002 | H3: 0.01 | I3: 0.005 | J3: 0.002 | P3: =F3/E3 -> 1.565762207
A4: Barium | B4: Ba | C4: Non Haz | D4: =IF(E4<=F4,"Pass","FAIL") -> FAIL | E4: 4 | F4: =G4/$B$21 -> 2.34864331 | G4: 0.05 | J4: 0.05 | P4: =F4/E4 -> 0.5871608275
A5: Cadmium | B5: Cd | C5: Non Haz | D5: FAIL | E5: 0.02 | F5: 0.01179018942 | G5: 0.000251 | H5: 0.005 | J5: 0.000251 | P5: 0.5895094708
A6: Total Chromium | B6: Cr total | C6: Haz | D6: FAIL | E6: 0.1 | F6: 0.0234864331 | G6: 0.0005 | H6: 0.05 | I6: 0.001 | J6: 0.0005 | K6: Chromium VI hazardous. Most WIF's only include total chromium so assume all chromium is chromium VI which is very conservative. | P6: 0.234864331
A7: Copper | B7: Cu | C7: Non Haz | D7: =IF(E7<=F7,"Pass","FAIL") -> FAIL | E7: 0.6 | F7: 0.197286038 | G7: 0.0042 | H7: 2 | J7: 0.0042 | P7: 0.3288100634
A8: Mercury | B8: Hg | C8: Haz | D8: FAIL | E8: 0.002 | F8: 0.000939457324 | G8: 2e-05 | H8: 0.001 | I8: 2e-05 | J8: 5.1e-05 | P8: 0.469728662
A9: Molybdenum | B9: Mo | C9: Non Haz | D9: FAIL | E9: 0.2 | F9: 0.0469728662 | G9: =MIN(H9:J9) -> 0.001 | J9: 0.001 | P9: 0.234864331
A10: Nickel | B10: Ni | C10: Non Haz | D10: Pass | E10: 0.12 | F10: 0.3757829296 | G10: 0.008 | H10: 0.02 | J10: 0.008 | P10: 3.131524413
A11: Lead | B11: Pb | C11: Haz | D11: FAIL | E11: 0.15 | F11: 0.000939457324 | G11: 2e-05 | H11: 0.01 | I11: 2e-05 | J11: 0.004 | P11: 0.006263048827
A12: Antimony | B12: Sb | C12: Non Haz | D12: =IF(E12<=F12,"Pass","FAIL") -> FAIL | E12: 0.1 | F12: 0.0469728662 | G12: 0.001 | H12: 0.005 | J12: 0.001 | P12: 0.469728662
A13: Selenium | B13: Se | C13: Non Haz | D13: Pass | E13: 0.04 | F13: 0.234864331 | G13: 0.005 | H13: 0.01 | J13: 0.005 | P13: 5.871608275
A14: Zinc | B14: Zn | C14: Non Haz | D14: Pass | E14: 1.2 | F14: 2.945198711 | G14: 0.0627 | J14: 0.0627 | P14: 2.454332259
A15: Chloride | B15: Cl | C15: Non Haz | D15: Pass | E15: 460 | F15: 1550.104585 | G15: 33 | H15: 250 | J15: 33 | P15: 3.369792575
A16: Fluoride | B16: F | C16: Non Haz | D16: Pass | E16: 2.5 | F16: 9.39457324 | G16: 0.2 | H16: 1.5 | J16: 0.2 | P16: 3.757829296
A17: Sulphate(a) | B17: SO4 | C17: Non Haz | D17: Pass | E17: 1500 | F17: 2921.712278 | G17: 62.2 | H17: 250 | J17: 62.2 | P17: 1.947808185
A18: Ammoniacal N | B18: NH3-N | C18: Non Haz | D18: Pass | E18: 1 | F18: =G18/B$21 -> 18.31941782 | G18: 0.39 | H18: 0.39 | J18: 1.3
A19: Dilution | B19: =QRO_b -> 0.001270237551 | C19: m3/s
A20: Q Side | B20: =QSide_B -> 2.763015787e-05 | C20: m3/s
A21: Dilution Factor | B21: =B20/(B20+B19) -> 0.02128888614
